Workbook

Sheet LSC_Properties
A1: Untreated FFT | B1: Summary | J1: AP-g-PAM | S1: P(VBTMAC) | AE1: FLOPAM
A2: e | B2: Eff_Stress | C2: Ksat (m/s) | D2: Ksat (m/day) | E2: Gs | F2: e0 | G2: SC0 | H2: H0 (m) | J2: e | K2: Eff_Stress | L2: Ksat (m/s) | M2: Ksat (m/day) | N2: Gs | O2: e0 | P2: SC0 | Q2: H0 (m) | S2: e | T2: e_UNSATCON | U2: Eff_Stress | V2: Ksat (m/s) | W2: Ksat (m/day) | X2: Ksat_UNSATCON | Y2: Ksat_UNSATCON (m/d) | Z2: Gs | AA2: e0 | AB2: SC0 | AC2: H0 (m) | AE2: e | AF2: Eff_Stress | AG2: Ksat (m/s) | AH2: Ksat (m/day) | AI2: Gs | AJ2: e0 | AK2: SC0 | AL2: H0 (m)
A3: =2.103*B3^(-0.28) -> 7.635531492 | B3: 0.01 | C3: =AVERAGE(0.000000000003,0.0000000003,0.0000000005)*A3^5.25 -> 1.15478324e-05 | D3: =C3*86400 -> 0.9977327195 | E3: 2.27 | F3: 5.16 | G3: =1/((F3/E3)+1) -> 0.3055181696 | H3: 100 | J3: =3.15*K3^(-0.201) -> 20.05905891 | K3: 0.0001 | L3: =0.00000000007*J3^4.4 -> 3.760663515e-05 | M3: =L3*86400 -> 3.249213277 | N3: 2.27 | O3: 14.23 | P3: =1/((O3/N3)+1) -> 0.1375757576 | Q3: 100 | S3: =5.04*(U3+0.434)^(-0.28) -> 6.366568211 | T3: =5.04*(U3)^(-0.28) -> 66.44013962 | U3: 0.0001 | V3: =0.0000000005*(S3^5)/(1+S3) -> 7.099565525e-07 | W3: =V3*86400 -> 0.06134024614 | X3: =0.0000000005*(T3^5) -> 0.6473254569 | Y3: =X3*86400 -> 55928.91948 | Z3: 2.27 | AA3: 7.42 | AB3: =1/((AA3/Z3)+1) -> 0.2342621259 | AC3: 100 | AE3: =2.8*AF3^(-0.284) -> 10.35518903 | AF3: 0.01 | AG3: =0.00000000004*AE3^5 -> 4.762666241e-06 | AH3: =AG3*86400 -> 0.4114943633 | AI3: 2.27 | AJ3: 5.6 | AK3: =1/((AJ3/AI3)+1) -> 0.2884371029 | AL3: 100
A4: =2.103*B4^(-0.28) -> 6.81606495 | B4: =B3+0.005 -> 0.015 | C4: =AVERAGE(0.000000000003,0.0000000003,0.0000000005)*A4^5.25 -> 6.362771415e-06 | D4: =C4*86400 -> 0.5497434503 | E4: =AVERAGE(0.000000000003,0.0000000003,0.0000000005) -> 2.676666667e-10 | J4: =3.15*K4^(-0.201) -> 17.4503252 | K4: =K3+0.0001 -> 0.0002 | L4: =0.00000000007*J4^4.4 -> 2.037199442e-05 | M4: =L4*86400 -> 1.760140318 | S4: =5.04*(U4+0.434)^(-0.28) -> 5.605276636 | T4: =5.04*(U4)^(-0.28) -> 7.429484873 | U4: =U3+0.25 -> 0.2501 | V4: =0.0000000005*(S4^5)/(1+S4) -> 4.188555254e-07 | W4: =V4*86400 -> 0.0361891174 | X4: =0.0000000005*(T4^5) -> 1.131783917e-05 | Y4: =X4*86400 -> 0.9778613042 | AE4: =2.8*AF4^(-0.284) -> 9.228861188 | AF4: =AF3+0.005 -> 0.015 | AG4: =0.00000000004*AE4^5 -> 2.67793826e-06 | AH4: =AG4*86400 -> 0.2313738657
A5: 6.288555149 | B5: =B4+0.005 -> 0.02 | C5: =AVERAGE(0.000000000003,0.0000000003,0.0000000005)*A5^5.25 -> 4.168563087e-06 | D5: 0.3601638508 | J5: 16.08455987 | K5: =K4+0.0001 -> 0.0003 | L5: 1.423306521e-05 | M5: =L5*86400 -> 1.229736834 | S5: =5.04*(U5+0.434)^(-0.28) -> 5.137128062 | T5: 6.119199567 | U5: =U4+0.25 -> 0.5001 | V5: 2.914786705e-07 | W5: 0.02518375713 | X5: 4.289859714e-06 | Y5: 0.3706438793 | AE5: =2.8*AF5^(-0.284) -> 8.504827562 | AF5: =AF4+0.005 -> 0.02 | AG5: 1.779867013e-06 | AH5: 0.1537805099
A6: 5.907667857 | B6: 0.025 | C6: =AVERAGE(0.000000000003,0.0000000003,0.0000000005)*A6^5.25 -> 3.002815572e-06 | D6: 0.2594432655 | J6: 15.18086421 | K6: 0.0004 | L6: 1.103576948e-05 | M6: =L6*86400 -> 0.9534904835 | S6: =5.04*(U6+0.434)^(-0.28) -> 4.80708487 | T6: 5.462571948 | U6: 0.7501 | V6: 2.210145064e-07 | W6: 0.01909565335 | X6: 2.431956793e-06 | Y6: 0.210121067 | AE6: =2.8*AF6^(-0.284) -> 7.982576126 | AF6: 0.025 | AG6: 1.296508403e-06 | AH6: 0.112018326
A7: 5.613649866 | B7: 0.03 | C7: 2.296847853e-06 | D7: 0.1984476545 | J7: 14.51501814 | K7: 0.0005 | L7: 9.059315921e-06 | M7: 0.7827248956 | S7: 4.556048037 | T7: 5.039858889 | U7: 1.0001 | V7: 1.766629526e-07 | W7: 0.0152636791 | X7: 1.625780418e-06 | Y7: 0.1404674281 | AE7: 7.579762449 | AF7: 0.03 | AG7: 1.000778499e-06 | AH7: 0.08646726232
A8: 5.376507058 | B8: 0.035 | C8: 1.831135351e-06 | D8: 0.1582100943 | J8: 13.99272028 | K8: =K7+0.0001 -> 0.0006 | L8: 7.710233149e-06 | M8: 0.6661641441 | S8: 4.355595407 | T8: 4.734629557 | U8: 1.2501 | V8: 1.463524172e-07 | W8: 0.01264484885 | X8: 1.189597463e-06 | Y8: 0.1027812208 | AE8: 7.255088371 | AF8: 0.035 | AG8: 8.040323542e-07 | AH8: 0.0694683954
A9: 5.179197532 | B9: 0.04 | C9: 1.504777486e-06 | D9: 0.1300127748 | J9: 13.56581367 | K9: 0.0007 | L9: 6.727593931e-06 | M9: 0.5812641156 | S9: 4.190023295 | T9: 4.49900916 | U9: 1.5001 | V9: 1.244179051e-07 | W9: 0.010749707 | X9: 9.21625306e-07 | Y9: 0.07962842643 | AE9: 6.985105885 | AF9: 0.04 | AG9: 6.651582168e-07 | AH9: 0.05746966993
A10: 5.011177301 | B10: 0.045 | C10: 1.265546412e-06 | D10: 0.10934321 | J10: 13.20655263 | K10: =K9+0.0001 -> 0.0008 | L10: 5.978217234e-06 | M10: 0.516517969 | S10: 4.049806109 | T10: 4.30896468 | U10: 1.7501 | V10: 1.078615003e-07 | W10: 0.009319233625 | X10: 7.427363444e-07 | Y10: 0.06417242016 | AE10: 6.755316127 | AF10: 0.045 | AG10: 5.627148528e-07 | AH10: 0.04861856328
A11: 4.86550218 | B11: 0.05 | C11: 1.083963268e-06 | D11: 0.09365442639 | J11: 12.8975675 | K11: 0.0009 | L11: 5.386819224e-06 | M11: 0.465421181 | S11: 3.928762537 | T11: 4.150840616 | U11: 2.0001 | V11: 9.495350686e-08 | W11: 0.008203982993 | X11: 6.160987005e-07 | Y11: 0.05323092773 | AE11: 6.556175192 | AF11: 0.05 | AG11: 4.845211528e-07 | AH11: 0.04186262761
A12: 4.737374517 | B12: 0.055 | C12: 9.422525438e-07 | D12: 0.08141061979 | J12: 12.62730161 | K12: 0.001 | L12: 4.907547103e-06 | M12: 0.4240120697 | S12: 3.822670831 | T12: 4.016187933 | U12: 2.2501 | V12: 8.46285495e-08 | W12: 0.007311906677 | X12: 5.224444729e-07 | Y12: 0.04513920246 | AE12: 6.381092314 | AF12: 0.055 | AG12: 4.231897391e-07 | AH12: 0.03656359345
A13: 4.623351604 | B13: 0.06 | C13: 8.291214181e-07 | D13: 0.07163609052 | J13: 12.38769843 | K13: 0.0011 | L13: 4.510833384e-06 | M13: 0.3897360044 | S13: 3.728529308 | T13: 3.899442044 | U13: 2.5001 | V13: 7.619592144e-08 | W13: 0.006583327613 | X13: 4.50798388e-07 | Y13: 0.03894898073 | AE13: 6.225340009 | AF13: 0.06 | AG13: 3.740032469e-07 | AH13: 0.03231388053
A14: 4.52088576 | B14: 0.065 | C14: 7.370854492e-07 | D14: 0.06368418281 | J14: 12.17292996 | K14: 0.0012 | L14: 4.176731741e-06 | M14: 0.3608696224 | S14: 3.64413335 | T14: 3.796758382 | U14: 2.7501 | V14: 6.918893199e-08 | W14: 0.005977923724 | X14: 3.944889167e-07 | Y14: 0.0340838424 | AE14: 6.085421129 | AF14: 0.065 | AG14: 3.338206371e-07 | AH14: 0.02884210304
A15: 4.428042917 | B15: 0.07 | C15: 6.610074485e-07 | D15: 0.05711104355 | J15: 11.97865178 | K15: 0.0013 | L15: 3.891284426e-06 | M15: 0.3362069744 | S15: 3.567819821 | T15: 3.705378112 | U15: 3.0001 | V15: 6.32813316e-08 | W15: 0.005467507051 | X15: 3.492469831e-07 | Y15: 0.03017493934 | AE15: 5.958681714 | AF15: 0.07 | AG15: 3.004767901e-07 | AH15: 0.02596119467
A16: 4.343322912 | B16: 0.075 | C16: 5.972558537e-07 | D16: 0.05160290576 | J16: 11.80154369 | K16: 0.0014 | L16: 3.64442353e-06 | M16: 0.314878193 | S16: 3.498305571 | T16: 3.623259619 | U16: 3.2501 | V16: 5.823844341e-08 | W16: 0.005031801511 | X16: 3.122247118e-07 | Y16: 0.0269762151 | AE16: 5.843063856 | AF16: 0.075 | AG16: 2.724351587e-07 | AH16: 0.02353839771
A17: 4.265540564 | B17: 0.08 | C17: 5.431980363e-07 | D17: 0.04693231034 | J17: 11.63901454 | K17: 0.0015 | L17: 3.428699051e-06 | M17: 0.296239598 | S17: 3.434581496 | T17: 3.548852994 | U17: 3.5001 | V17: 5.388730857e-08 | W17: 0.004655863461 | X17: 2.81455703e-07 | Y17: 0.02431777274 | AE17: 5.736942209 | AF17: 0.08 | AG17: 2.485778151e-07 | AH17: 0.02147712323
A18: 4.193744553 | B18: 0.085 | C18: 4.968835869e-07 | D18: 0.04293074191 | J18: 11.4890055 | K18: 0.0016 | L18: 3.238476605e-06 | M18: 0.2798043787 | S18: 3.375840825 | T18: 3.48095604 | U18: 3.7501 | V18: 5.009775828e-08 | W18: 0.004328446315 | X18: 2.555422406e-07 | Y18: 0.02207884958 | AE18: 5.639012489 | AF18: 0.085 | AG18: 2.280737344e-07 | AH18: 0.01970557065
A19: 4.127160611 | B19: 0.09 | C19: 4.568398532e-07 | D19: 0.03947096331 | J19: 11.34985519 | K19: 0.0017 | L19: 3.069413865e-06 | M19: 0.265197358 | S19: 3.321429213 | T19: 3.418618975 | U19: 4.0001 | V19: 4.677002548e-08 | W19: 0.004040930201 | X19: 2.334659226e-07 | Y19: 0.02017145571 | AE19: 5.548213422 | AF19: 0.09 | AG19: 2.102934687e-07 | AH19: 0.0181693557
A20: 4.065150823 | B20: 0.095 | C20: 4.219361856e-07 | D20: 0.03645528643 | J20: 11.2202047 | K20: 0.0018 | L20: 2.918108752e-06 | M20: 0.2521245962 | S20: 3.270809211 | T20: 3.361079421 | U20: 4.2501 | V20: 4.382640971e-08 | W20: 0.003786601799 | X20: 2.144686798e-07 | Y20: 0.01853009394 | AE20: 5.463670842 | AF20: 0.095 | AG20: 1.947523149e-07 | AH20: 0.01682660001
A21: 4.00718389 | B21: 0.1 | C21: 3.912915525e-07 | D21: 0.03380759014 | J21: 10.26672169 | K21: =K20+0.001 -> 0.0028 | L21: 1.974230758e-06 | M21: 0.1705735375 | S21: 3.223534416 | T21: 3.307716886 | U21: 4.5001 | V21: 4.120553177e-08 | W21: 0.003560157945 | X21: 1.979755946e-07 | Y21: 0.01710509138 | AE21: 5.384656841 | AF21: 0.1 | AG21: 1.810715203e-07 | AH21: 0.01564457936
A22: 3.952812998 | B22: 0.105 | C22: 3.642102823e-07 | D22: 0.03146776839 | J22: 9.655484052 | K22: =K21+0.001 -> 0.0038 | L22: 1.506967422e-06 | M22: 0.1302019853 | S22: 3.179230328 | T22: 3.258020148 | U22: =U21+0.25 -> 4.7501 | V22: 3.885828786e-08 | W22: 0.003357356071 | X22: 1.835434256e-07 | Y22: 0.01585815197 | AE22: 5.310559394 | AF22: 0.105 | AG22: 1.689512244e-07 | AH22: 0.01459738578
A23: 3.901659098 | B23: 0.11 | C23: 3.401364894e-07 | D23: 0.02938779268 | J23: 9.212575606 | K23: 0.0048 | L23: 1.225673302e-06 | M23: 0.1058981733 | S23: 3.13757995 | T23: 3.211563424 | U23: 5.0001 | V23: 3.674494581e-08 | W23: 0.003174763318 | X23: 1.708254291e-07 | Y23: 0.01475931708 | AE23: 5.2408594 | AF23: 0.11 | AG23: 1.581512159e-07 | AH23: 0.01366426505
A24: 3.853398087 | B24: 0.115 | C24: 3.186211838e-07 | D24: 0.02752887028 | J24: 8.868731913 | K24: 0.0058 | L24: 1.036785129e-06 | M24: 0.08957823512 | S24: 3.098312775 | T24: 3.167988638 | U24: 5.2501 | V24: 3.483302512e-08 | W24: 0.003009573371 | X24: 1.595467936e-07 | Y24: 0.01378484297 | AE24: 5.17511309 | AF24: 0.115 | AG24: 1.484770105e-07 | AH24: 0.01282841371
A25: 3.80775085 | B25: 0.12 | C25: 2.992981555e-07 | D25: 0.02585936064 | J25: 8.589665708 | K25: 0.0068 | L25: 9.007278566e-07 | M25: 0.07782288681 | S25: 3.06119627 | T25: 3.126992017 | U25: 5.5001 | V25: 3.309572529e-08 | W25: 0.002859470665 | X25: 1.494871516e-07 | Y25: 0.01291568989 | AE25: 5.112938365 | AF25: 0.12 | AG25: 1.397696181e-07 | AH25: 0.01207609501
A26: 3.764475448 | B26: 0.125 | C26: 2.818660394e-07 | D26: 0.0243532258 | J26: 8.356021306 | K26: 0.0078 | L26: 7.978036338e-07 | M26: 0.06893023396 | S26: 3.026029206 | T26: 3.088313822 | U26: 5.7501 | V26: 3.15107442e-08 | W26: 0.002722528299 | X26: 1.40467913e-07 | Y26: 0.01213642768 | AE26: 5.054004074 | AF26: 0.125 | AG26: 1.318979147e-07 | AH26: 0.01139597983
A27: 3.723360902 | B27: 0.13 | C27: 2.660747999e-07 | D27: 0.02298886271 | J27: 8.155855764 | K27: 0.0088 | L27: 7.170740421e-07 | M27: 0.06195519724 | S27: 2.992636376 | T27: 3.05173037 | U27: 6.0001 | V27: 3.005937858e-08 | W27: 0.00259713031 | X27: 1.323429474e-07 | Y27: 0.01143443066 | AE27: 4.998021492 | AF27: 0.13 | AG27: 1.247528821e-07 | AH27: 0.01077864902
A28: 3.17362405 | B28: =B27+0.1 -> 0.23 | C28: 1.150166074e-07 | D28: 0.009937434879 | J28: 7.981308771 | K28: 0.0098 | L28: 6.519647802e-07 | M28: 0.05632975701 | S28: 2.960864368 | T28: 3.017047766 | U28: 6.2501 | V28: 2.872583101e-08 | W28: 0.002481911799 | X28: 1.249916307e-07 | Y28: 0.01079927689 | AE28: 4.944737498 | AF28: 0.135 | AG28: 1.182432061e-07 | AH28: 0.010216213
A29: 2.868503404 | B29: =B28+0.1 -> 0.33 | C29: 6.765267612e-08 | D29: 0.005845191217 | J29: 7.826946746 | K29: 0.0108 | L29: 5.982800308e-07 | M29: 0.05169139466 | S29: 2.930578157 | T29: 2.98409693 | U29: 6.5001 | V29: 2.74966705e-08 | W29: 0.002375712331 | X29: 1.183135902e-07 | Y29: 0.0102222942 | AE29: 4.893929054 | AF29: 0.14 | AG29: 1.12291876e-07 | AH29: 0.009702018085
A30: 2.663594473 | B30: 0.43 | C30: 4.584604142e-08 | D30: 0.003961097979 | J30: 7.688865613 | K30: 0.0118 | L30: 5.532125572e-07 | M30: 0.04779756494 | S30: 2.901658331 | T30: 2.952729606 | U30: 6.7501 | V30: 2.636040841e-08 | W30: 0.002277539286 | X30: 1.122246855e-07 | Y30: 0.009696212829 | AE30: 4.845398703 | AF30: 0.145 | AG30: 1.068335315e-07 | AH30: 0.009230417125
A31: 2.512129533 | B31: 0.53 | C31: 3.371436186e-08 | D31: 0.002912920865 | J31: 7.564171204 | K31: 0.0128 | L31: 5.148111916e-07 | M31: 0.04447968695 | S31: 2.873998815 | T31: 2.922815139 | U31: 7.0001 | V31: 2.530716198e-08 | W31: 0.002186538795 | X31: 1.066539009e-07 | Y31: 0.009214897042 | AE31: 4.79897087 | AF31: 0.15 | AG31: 1.018123731e-07 | AH31: 0.008796589033
A32: 2.393447572 | B32: 0.63 | C32: 2.614988989e-08 | D32: 0.002259350486 | J32: 7.450661921 | K32: 0.0138 | L32: 4.816764492e-07 | M32: 0.04161684521 | S32: 2.847504992 | T32: 2.89423784 | U32: =U31+0.25 -> 7.2501 | V32: 2.432838518e-08 | W32: 0.00210197248 | X32: 1.015409193e-07 | Y32: 0.008773135429 | AE32: 4.754488804 | AF32: 0.155 | AG32: 9.718050166e-08 | AH32: 0.008396395344
A33: 2.296724334 | B33: 0.73 | C33: 2.105793922e-08 | D33: 0.001819405948 | J33: 7.346626297 | K33: 0.0148 | L33: 4.52777686e-07 | M33: 0.03911999207 | S33: 2.822092138 | T33: 2.866894829 | U33: 7.5001 | V33: 2.341665171e-08 | W33: 0.002023198707 | X33: 9.683420938e-08 | Y33: 0.008366475691 | AE33: 4.711812026 | AF33: 0.16 | AG33: 9.289659005e-08 | AH33: 0.00802626538
A34: 2.215630867 | B34: 0.83 | C34: 1.743635395e-08 | D34: 0.001506500981 | J34: 7.250709064 | K34: 0.0158 | L34: 4.273386257e-07 | M34: 0.03692205726 | S34: 2.797684114 | T34: 2.84069424 | U34: 7.7501 | V34: 2.256547867e-08 | W34: 0.001949657357 | X34: 9.248950557e-08 | Y34: 0.007991093281 | AE34: 4.670814193 | AF34: 0.165 | AG34: 8.892481027e-08 | AH34: 0.007683103607
A35: 2.146169641 | B35: 0.93 | C35: 1.475130823e-08 | D35: 0.001274513031 | J35: 7.161819779 | K35: 0.0168 | L35: 4.047631322e-07 | M35: 0.03497153462 | S35: 2.774212266 | T35: 2.815553734 | U35: 8.0001 | V35: 2.176918251e-08 | W35: 0.001880857369 | X35: 8.846858981e-08 | Y35: 0.00764368616 | AE35: 4.631381299 | AF35: 0.17 | AG35: 8.523396261e-08 | AH35: 0.007364214369
A36: 2.085666424 | B36: 1.03 | C36: 1.269491367e-08 | D36: 0.001096840541 | J36: 7.079068803 | K36: 0.0178 | L36: 3.845856068e-07 | M36: 0.03322819643 | S36: 2.751614491 | T36: 2.791399246 | U36: 8.2501 | V36: 2.102276035e-08 | W36: 0.001816366494 | X36: 8.473830815e-08 | Y36: 0.007321389824 | AE36: 4.593410148 | AF36: 0.175 | AG36: 8.179676329e-08 | AH36: 0.007067240348
A37: 2.032250825 | B37: 1.13 | C37: 1.1078352e-08 | D37: 0.000957169613 | J37: 7.0017214 | K37: 0.0188 | L37: 3.664369628e-07 | M37: 0.03166015358 | S37: 2.729834448 | T37: 2.768163938 | U37: 8.5001 | V37: 2.032179181e-08 | W37: 0.001755802813 | X37: 8.126977128e-08 | Y37: 0.007021708239 | AE37: 4.556807054 | AF37: 0.18 | AG37: 7.858925843e-08 | AH37: 0.006790111929
A38: 1.984567347 | B38: 1.23 | C38: 9.780024851e-09 | D38: 0.0008449941472 | J38: 6.929164162 | K38: 0.0198 | L38: 3.50020743e-07 | M38: 0.0302417922 | S38: 2.708820874 | T38: 2.745787299 | U38: 8.7501 | V38: 1.966235725e-08 | W38: 0.001698827666 | X38: 7.803770048e-08 | Y38: 0.006742457322 | AE38: 4.521486729 | AF38: 0.185 | AG38: 7.559033912e-08 | AH38: 0.0065310053
A39: 1.941604694 | B39: 1.33 | C39: 8.71843552e-09 | D39: 0.0007532728289 | J39: 6.860880001 | K39: 0.0208 | L39: 3.35096015e-07 | M39: 0.0289522957 | S39: 2.688527006 | T39: 2.72421439 | U39: 9.0001 | V39: 1.904096933e-08 | W39: 0.00164513975 | X39: 7.501988908e-08 | Y39: 0.006481718417 | AE39: 4.487371328 | AF39: 0.19 | AG39: 7.278133789e-08 | AH39: 0.006288307594
A40: 1.902589879 | B40: 1.43 | C40: 7.837120008e-09 | D40: 0.0006771271687 | J40: 6.796429223 | K40: 0.0218 | L40: 3.214648952e-07 | M40: 0.02777456694 | S40: 2.668910081 | T40: 2.70339519 | U40: 9.2501 | V40: 1.845451546e-08 | W40: 0.001594470136 | X40: 7.219675662e-08 | Y40: 0.006237799772 | AE40: 4.454389622 | AF40: 0.195 | AG40: 7.014569134e-08 | AH40: 0.006060587732
A41: 1.866919844 | B41: 1.53 | C41: 7.09584416e-09 | D41: 0.0006130809354 | J41: 6.735435003 | K41: 0.0228 | L41: 3.089633021e-07 | M41: 0.0266944293 | S41: 2.649930896 | T41: 2.683284037 | U41: 9.5001 | V41: 1.790020918e-08 | W41: 0.001546578073 | X41: 6.955097765e-08 | Y41: 0.006009204469 | AE41: 4.422476283 | AF41: 0.2 | AG41: 6.766865652e-08 | AH41: 0.005846571924
A42: 1.834115763 | B42: 1.63 | C42: 6.465240632e-09 | D42: 0.0005585967906 | J42: 6.677572092 | K42: 0.0238 | L42: 2.974540017e-07 | M42: 0.02570002574 | S42: 2.631553435 | T42: 2.663839147 | U42: 9.7501 | V42: 1.73755488e-08 | W42: 0.001501247417 | X42: 6.706717117e-08 | Y42: 0.005794603589 | AE42: 4.391571266 | AF42: 0.205 | AG42: 6.533707157e-08 | AH42: 0.005645122984
A43: 1.803791615 | B43: 1.73 | C43: 5.923422362e-09 | D43: 0.0005117836921 | J43: 6.62255793 | K43: 0.0248 | L43: 2.868213068e-07 | M43: 0.02478136091 | S43: 2.613744536 | T43: 2.645022194 | U43: 10.0001 | V43: 1.687828228e-08 | W43: 0.001458283589 | X43: 6.473163945e-08 | Y43: 0.005592813648 | AE43: 4.361619257 | AF43: 0.21 | AG43: 6.313915269e-08 | AH43: 0.005455222793
A44: 1.775632018 | B44: 1.83 | C44: 5.453776927e-09 | D44: 0.0004712063265 | J44: 6.570145583 | K44: 0.0258 | L44: 2.769669884e-07 | M44: 0.0239299478 | S44: 2.596473605 | T44: 2.626797945 | U44: =U43+0.25 -> 10.2501 | V44: 1.640637701e-08 | W44: 0.001417510974 | X44: 6.253214744e-08 | Y44: 0.005402777539 | AE44: 4.332569207 | AF44: 0.215 | AG44: 6.106432137e-08 | AH44: 0.005275957366
A45: 1.74937625 | B45: 1.93 | C45: 5.043490742e-09 | D45: 0.0004357576001 | J45: 6.520118069 | K45: 0.0268 | L45: 2.678070865e-07 | M45: 0.02313853228 | S45: 2.579712362 | T45: 2.609133942 | U45: 10.5001 | V45: 1.595799398e-08 | W45: 0.00137877068 | X45: 6.045773565e-08 | Y45: 0.00522354836 | AE45: 4.304373906 | AF45: 0.22 | AG45: 5.910305655e-08 | AH45: 0.005106504086
A46: 1.724806508 | B46: 2.03 | C46: 4.682537849e-09 | D46: 0.0004045712701 | J46: 6.472283765 | K46: 0.0278 | L46: 2.592693979e-07 | M46: 0.02240087598 | S46: 2.563434617 | T46: 2.592000227 | U46: 10.7501 | V46: 1.553146541e-08 | W46: 0.001341918611 | X46: 5.849856068e-08 | Y46: 0.005054275643 | AE46: 4.276989619 | AF46: 0.225 | AG46: 5.724676796e-08 | AH46: 0.004946120752
A47: 1.701739124 | B47: 2.13 | C47: 4.362972294e-09 | D47: 0.0003769608062 | J47: 6.426472652 | K47: 0.0288 | L47: 2.512914779e-07 | M47: 0.02171158369 | S47: 2.547616074 | T47: 2.575369091 | U47: 11.0001 | V47: 1.512527544e-08 | W47: 0.001306823798 | X47: 5.664575896e-08 | Y47: 0.004894193574 | AE47: 4.250375758 | AF47: 0.23 | AG47: 5.54876869e-08 | AH47: 0.004794136148
A48: 1.680017908 | B48: 2.23 | C48: 4.078423528e-09 | D48: 0.0003523757928 | J48: 6.382533232 | K48: 0.0298 | L48: 2.438190376e-07 | M48: 0.02106596485 | S48: 2.532234154 | T48: 2.559214863 | U48: 11.2501 | V48: 1.473804335e-08 | W48: 0.001273366945 | X48: 5.489132961e-08 | Y48: 0.004742610878 | AE48: 4.224494592 | AF48: 0.235 | AG48: 5.381877194e-08 | AH48: 0.004649941896
A49: 1.65950901 | B49: 2.33 | C49: 3.823730439e-09 | D49: 0.0003303703099 | J49: 6.34032996 | K49: 0.0308 | L49: 2.368046483e-07 | M49: 0.02045992161 | S49: 2.517267844 | T49: 2.543513715 | U49: 11.5001 | V49: 1.436850896e-08 | W49: 0.001241439175 | X49: 5.322803368e-08 | Y49: 0.00459890211 | AE49: 4.199310991 | AF49: 0.24 | AG49: 5.223362717e-08 | AH49: 0.004512985387
A50: 1.640096931 | B50: 2.43 | C50: 3.594671844e-09 | D50: 0.0003105796473 | J50: 6.299741115 | K50: 0.0318 | L50: 2.302066854e-07 | M50: 0.01988985762 | S50: 2.502697554 | T50: 2.528243497 | U50: 11.7501 | V50: 1.401551985e-08 | W50: 0.001210940915 | X50: 5.1649307e-08 | Y50: 0.004462500125 | AE50: 4.1747922 | AF50: 0.245 | AG50: 5.07264311e-08 | AH50: 0.004382763647
A51: 1.621681367 | B51: 2.53 | C51: 3.387765227e-09 | D51: 0.0002927029156 | J51: 6.260657004 | K51: 0.0328 | L51: 2.239884628e-07 | M51: 0.01935260319 | S51: 2.488504995 | T51: 2.513383584 | U51: 12.0001 | V51: 1.367802015e-08 | W51: 0.001181780941 | X51: 5.014918452e-08 | Y51: 0.004332889543 | AE51: 4.150907627 | AF51: 0.25 | AG51: 4.929187469e-08 | AH51: 0.004258817973
A52: 1.604174702 | B52: 2.63 | C52: 3.200114531e-09 | D52: 0.0002764898955 | J52: 6.22297845 | K52: 0.0338 | L52: 2.181175179e-07 | M52: 0.01884535355 | S52: 2.474673071 | T52: 2.498914741 | U52: 12.2501 | V52: 1.335504076e-08 | W52: 0.001153875522 | X52: 4.872223465e-08 | Y52: 0.004209601074 | AE52: 4.127628668 | AF52: 0.255 | AG52: 4.792510707e-08 | AH52: 0.004140729251
A53: 1.587499991 | B53: 2.73 | C53: 3.029293696e-09 | D53: 0.0002617309753 | J53: 6.186615506 | K53: 0.0348 | L53: 2.125650177e-07 | M53: 0.01836561753 | S53: 2.461185776 | T53: 2.484819005 | U53: 12.5001 | V53: 1.304569066e-08 | W53: 0.001127147673 | X53: 4.73635018e-08 | Y53: 0.004092206555 | AE53: 4.104928534 | AF53: 0.26 | AG53: 4.662168803e-08 | AH53: 0.004028113845
A54: 1.571589327 | B54: 2.83 | C54: 2.873256593e-09 | D54: 0.0002482493697 | J54: 6.151486361 | K54: 0.0358 | L54: 2.07305263e-07 | M54: 0.01791117472 | S54: 2.448028106 | T54: 2.471079575 | U54: =U53+0.25 -> 12.7501 | V54: 1.274914926e-08 | W54: 0.001101526496 | X54: 4.606845623e-08 | Y54: 0.003980314619 | AE54: 4.08278211 | AF54: 0.265 | AG54: 4.537754614e-08 | AH54: 0.003920619987
A55: 1.5563825 | B55: 2.93 | C55: 2.730266688e-09 | D55: 0.0002358950418 | J55: 6.117516399 | K55: 0.0368 | L55: 2.023152714e-07 | M55: 0.01748003945 | S55: 2.435185981 | T55: 2.457680719 | U55: 13.0001 | V55: 1.246465965e-08 | W55: 0.001076946593 | X55: 4.483295e-08 | Y55: 0.00387356688 | AE55: 4.06116582 | AF55: 0.27 | AG55: 4.418894194e-08 | AH55: 0.003817924584
A56: 1.5418259 | B56: 3.03 | C56: 2.59884159e-09 | D56: 0.0002245399134 | J56: 6.084637393 | K56: 0.0378 | L56: 1.97574426e-07 | M56: 0.01707043041 | S56: 2.422646169 | T56: 2.444607685 | U56: 13.2501 | V56: 1.219152258e-08 | W56: 0.001053347551 | X56: 4.365317819e-08 | Y56: 0.003771634596 | AE56: 4.040057501 | AF56: 0.275 | AG56: 4.305243531e-08 | AH56: 0.00371973041
A57: 1.527871599 | B57: 3.13 | C57: 2.477708986e-09 | D57: 0.0002140740564 | J57: 6.052786802 | K57: 0.0388 | L57: 1.930641772e-07 | M57: 0.01668074491 | S57: 2.410396222 | T57: 2.431846623 | U57: 13.5001 | V57: 1.192909112e-08 | W57: 0.001030673472 | X57: 4.252564475e-08 | Y57: 0.003674215707 | AE57: 4.019436301 | AF57: 0.28 | AG57: 4.196485661e-08 | AH57: 0.003625763611
A58: 1.514476596 | B58: 3.23 | C58: 2.36577133e-09 | D58: 0.0002044026429 | J58: 6.021907168 | K58: 0.0398 | L58: 1.887677884e-07 | M58: 0.01630953692 | S58: 2.398424417 | T58: 2.419384515 | U58: 13.7501 | V58: 1.167676589e-08 | W58: 0.001008872573 | X58: 4.144713229e-08 | Y58: 0.00358103223 | AE58: 3.999282577 | AF58: 0.285 | AG58: 4.09232811e-08 | AH58: 0.003535771487
A59: 1.50160217 | B59: 3.33 | C59: 2.262077338e-09 | D59: 0.000195443482 | J59: 5.991945589 | K59: 0.0408 | L59: 1.846701187e-07 | M59: 0.01595549826 | S59: 2.3867197 | T59: 2.407209108 | U59: 14.0001 | V59: 1.143399081e-08 | W59: 0.0009878968063 | X59: 4.041467528e-08 | Y59: 0.003491827944 | AE59: 3.979577804 | AF59: 0.29 | AG59: 3.992500609e-08 | AH59: 0.003449520526
A60: 1.489213344 | B60: 3.43 | C60: 2.165798835e-09 | D60: 0.0001871250193 | J60: 5.96285325 | K60: 0.0418 | L60: 1.807574363e-07 | M60: 0.0156174425 | S60: 2.375271638 | T60: 2.395308861 | U60: 14.2501 | V60: 1.12002493e-08 | W60: 0.0009677015399 | X60: 3.942553631e-08 | Y60: 0.003406366337 | AE60: 3.960304496 | AF60: 0.295 | AG60: 3.896753062e-08 | AH60: 0.003366794646
A61: 1.477278425 | B61: 3.53 | C61: 2.076211801e-09 | D61: 0.0001793846996 | J61: 5.934585023 | K61: 0.0428 | L61: 1.770172572e-07 | M61: 0.01529429103 | S61: 2.364070377 | T61: 2.38367289 | U61: 14.5001 | V61: 1.097506085e-08 | W61: 0.0009482452573 | X61: 3.84771849e-08 | Y61: 0.003324428775 | AE61: 3.941446128 | AF61: 0.3 | AG61: 3.804853734e-08 | AH61: 0.003287393626
A62: 1.465768613 | B62: 3.63 | C62: 1.992680787e-09 | D62: 0.00017216762 | J62: 5.90709911 | K62: 0.0438 | L62: 1.734382063e-07 | M62: 0.01498506102 | S62: 2.353106595 | T62: 2.372290919 | U62: 14.7501 | V62: 1.075797794e-08 | W62: 0.000929489294 | X62: 3.756727864e-08 | Y62: 0.003245812874 | AE62: 3.922987072 | AF62: 0.305 | AG62: 3.716587622e-08 | AH62: 0.003211131705
A63: 1.454657665 | B63: 3.73 | C63: 1.914646003e-09 | D63: 0.0001654254146 | J63: 5.880356727 | K63: 0.0448 | L63: 1.700098958e-07 | M63: 0.01468885499 | S63: 2.34237147 | T63: 2.361153236 | U63: =U62+0.25 -> 15.0001 | V63: 1.054858331e-08 | W63: 0.0009113975982 | X63: 3.669364631e-08 | Y63: 0.003170331041 | AE63: 3.904912531 | AF63: 0.31 | AG63: 3.631754997e-08 | AH63: 0.003137836318
A64: 1.443921609 | B64: 3.83 | C64: 1.841612586e-09 | D64: 0.0001591153275 | J64: 5.854321823 | K64: 0.0458 | L64: 1.667228202e-07 | M64: 0.01440485166 | S64: 2.331856644 | T64: 2.350250657 | U64: 15.2501 | V64: 1.034648746e-08 | W64: 0.0008939365163 | X64: 3.585427279e-08 | Y64: 0.003097809169 | AE64: 3.887208485 | AF64: 0.315 | AG64: 3.550170097e-08 | AH64: 0.003067346964
A65: 1.433538492 | B65: 3.93 | C65: 1.773141617e-09 | D65: 0.0001531994357 | J65: 5.828960835 | K65: 0.0468 | L65: 1.635682639e-07 | M65: 0.014132298 | S65: 2.321554191 | T65: 2.339574485 | U65: 15.5001 | V65: 1.015132636e-08 | W65: 0.0008770745977 | X65: 3.504728551e-08 | Y65: 0.003028085468 | AE65: 3.869861637 | AF65: 0.32 | AG65: 3.471659946e-08 | AH65: 0.002999514193
A66: 1.423488162 | B66: 4.03 | C66: 1.70884257e-09 | D66: 0.000147643998 | J66: 5.804242469 | K66: 0.0478 | L66: 1.605382206e-07 | M66: 0.01387050226 | S66: 2.311456589 | T66: 2.329116479 | U66: 15.7501 | V66: 9.962759483e-09 | W66: 0.0008607824193 | X66: 3.427094222e-08 | Y66: 0.002961009408 | AE66: 3.852859364 | AF66: 0.325 | AG66: 3.396063291e-08 | AH66: 0.002934198684
A67: 1.413752084 | B67: 4.13 | C67: 1.648366942e-09 | D67: 0.0001424189038 | J67: 5.780137498 | K67: 0.0488 | L67: 1.576253218e-07 | M67: 0.0136188278 | S67: 2.301556694 | T67: 2.318868822 | U67: 16.0001 | V67: 9.780467894e-09 | W67: 0.000845032426 | X67: 3.352362013e-08 | Y67: 0.002896440779 | AE67: 3.836189678 | AF67: 0.33 | AG67: 3.323229645e-08 | AH67: 0.002871270414
A68: =2.103*B68^(-0.28) -> 1.404313173 | B68: 4.23 | C68: 1.591402852e-09 | D68: =C68*86400 -> 0.0001374972064 | J68: =3.15*K68^(-0.201) -> 5.756618591 | K68: 0.0498 | L68: =0.00000000007*J68^4.4 -> 1.548227745e-07 | M68: 0.01337668772 | S68: 2.291847715 | T68: =5.04*(U68)^(-0.28) -> 2.308824094 | U68: 16.2501 | V68: =0.0000000005*(S68^5)/(1+S68) -> 9.604152617e-09 | W68: =V68*86400 -> 0.0008297987861 | X68: =0.0000000005*(T68^5) -> 3.28038059e-08 | Y68: =X68*86400 -> 0.00283424883 | AE68: 3.819841178 | AF68: 0.335 | AG68: =0.00000000004*AE68^5 -> 3.253018417e-08 | AH68: =AG68*86400 -> 0.002810607912
A69: 1.395155648 | B69: 4.33 | C69: 1.537670436e-09 | D69: 0.0001328547257 | J69: 5.733660151 | K69: 0.0508 | L69: 1.521243059e-07 | M69: 0.01314354003 | S69: 2.282323189 | T69: 2.298975246 | U69: =U68+0.25 -> 16.5001 | V69: 9.433533097e-09 | W69: 0.0008150572596 | X69: 3.211008681e-08 | Y69: 0.002774311501 | AE69: 3.80380302 | AF69: =AF68+0.005 -> 0.34 | AG69: 3.185298124e-08 | AH69: 0.002752097579
A70: 1.386264907 | B70: 4.43 | C70: =AVERAGE(0.000000000003,0.0000000003,0.0000000005)*A70^5.25 -> 1.486917917e-09 | D70: 0.000128469708 | J70: 5.711238178 | K70: 0.0518 | L70: 1.495241138e-07 | M70: =L70*86400 -> 0.01291888343 | S70: =5.04*(U70+0.434)^(-0.28) -> 2.272976967 | T70: 2.289315577 | U70: =U69+0.25 -> 16.7501 | V70: 9.268345817e-09 | W70: 0.0008007850786 | X70: 3.144114263e-08 | Y70: 0.002716514723 | AE70: =2.8*AF70^(-0.284) -> 3.788064876 | AF70: 0.345 | AG70: 3.119945682e-08 | AH70: 0.002695633069
A71: 1.377627413 | B71: 4.53 | C71: 1.438918231e-09 | D71: 0.0001243225352 | J71: 5.689330135 | K71: 0.0528 | L71: 1.470168237e-07 | M71: 0.01270225357 | S71: 2.263803189 | T71: 2.279838709 | U71: =U70+0.25 -> 17.0001 | V71: 9.108343033e-09 | W71: 0.000786960838 | X71: 3.079573828e-08 | Y71: 0.002660751787 | AE71: 3.772616907 | AF71: 0.35 | AG71: 3.056845754e-08 | AH71: 0.002641114731
A72: 1.369230596 | B72: 4.63 | C72: 1.393466124e-09 | D72: 0.0001203954732 | J72: 5.66791484 | K72: 0.0538 | L72: 1.445974493e-07 | M72: 0.01249321962 | S72: 2.254796267 | T72: 2.27053857 | U72: 17.2501 | V72: 8.953291625e-09 | W72: 0.0007735643964 | X72: 3.017271723e-08 | Y72: 0.002606922769 | AE72: 3.757449731 | AF72: 0.355 | AG72: 2.995890161e-08 | AH72: 0.002588449099
A73: 1.361062766 | B73: 4.73 | C73: 1.350375641e-09 | D73: 0.0001166724554 | J73: 5.646972354 | K73: 0.0548 | L73: 1.422613582e-07 | M73: 0.01229138135 | S73: 2.245950871 | T73: 2.261409373 | U73: 17.5001 | V73: 8.802972039e-09 | W73: 0.0007605767842 | X73: 2.957099542e-08 | Y73: 0.002554934005 | AE73: 3.742554395 | AF73: 0.36 | AG73: 2.936977348e-08 | AH73: 0.002537548429
A74: 1.35311303 | B74: 4.83 | C74: 1.30947795e-09 | D74: 0.0001131388949 | J74: 5.626483891 | K74: 0.0558 | L74: 1.400042409e-07 | M74: 0.01209636641 | S74: 2.237261913 | T74: 2.252445602 | U74: 17.7501 | V74: 8.657177326e-09 | W74: 0.000747980121 | X74: 2.89895558e-08 | Y74: 0.002504697621 | AE74: 3.727922351 | AF74: 0.365 | AG74: 2.880011889e-08 | AH74: 0.002488330272
A75: 1.345371227 | B75: 4.93 | C75: 1.270619455e-09 | D75: 0.0001097815209 | J75: 5.606431733 | K75: 0.0568 | L75: 1.378220827e-07 | M75: 0.01190782795 | S75: 2.228724532 | T75: 2.243641991 | U75: 18.0001 | V75: 8.515712256e-09 | W75: 0.0007357575389 | X75: 2.842744327e-08 | Y75: 0.002456131099 | AE75: 3.713545434 | AF75: 0.37 | AG75: 2.824904041e-08 | AH75: 0.002440717091
A76: 1.337827863 | B76: 5.03 | C76: 1.233660144e-09 | D76: 0.0001065882364 | J76: 5.586799148 | K76: 0.0578 | L76: 1.357111393e-07 | M76: 0.01172544243 | S76: 2.220334081 | T76: 2.234993513 | U76: 18.2501 | V76: 8.378392506e-09 | W76: 0.0007238931125 | X76: 2.788376017e-08 | Y76: 0.002409156879 | AE76: 3.699415836 | AF76: 0.375 | AG76: 2.771569337e-08 | AH76: 0.002394635907
A77: 1.330474056 | B77: 5.13 | C77: 1.198472147e-09 | D77: 0.0001035479935 | J77: 5.567570323 | K77: 0.0588 | L77: 1.336679137e-07 | M77: 0.01154890774 | S77: 2.212086115 | T77: 2.226495364 | U77: 18.5001 | V77: 8.245043919e-09 | W77: 0.0007123717946 | X77: 2.735766204e-08 | Y77: 0.002363702 | AE77: 3.68552609 | AF77: 0.38 | AG77: 2.719928207e-08 | AH77: 0.002350017971
A78: 1.323301485 | B78: 5.23 | C78: 1.164938476e-09 | D78: 0.0001006506843 | J78: 5.548730296 | K78: 0.0598 | L78: 1.316891364e-07 | M78: 0.01137794138 | S78: 2.196000806 | T78: 2.209931886 | U78: =U77+0.5 -> 19.0001 | V78: 7.989610361e-09 | W78: 0.0006903023352 | X78: 2.635508645e-08 | Y78: 0.00227707947 | AE78: 3.671869047 | AF78: 0.385 | AG78: 2.669905636e-08 | AH78: 0.00230679847
A79: 1.316302342 | B79: 5.33 | C79: 1.132951907e-09 | D79: 9.788704479e-05 | J79: 5.530264898 | K79: 0.0608 | L79: 1.29771747e-07 | M79: 0.01121227894 | S79: 2.18043668 | T79: 2.193917143 | U79: =U78+0.5 -> 19.5001 | V79: 7.748196877e-09 | W79: 0.0006694442102 | X79: 2.541388806e-08 | Y79: 0.002195759928 | AE79: 3.658437861 | AF79: 0.39 | AG79: 2.62143085e-08 | AH79: 0.002264916254
A80: 1.309469298 | B80: 5.43 | C80: 1.102414007e-09 | D80: 9.524857021e-05 | J80: 5.512160699 | K80: 0.0618 | L80: 1.279128776e-07 | M80: 0.01105167263 | S80: 2.1653644 | T80: 2.178419569 | U80: 20.0001 | V80: 7.51971278e-09 | W80: 0.0006497031842 | X80: 2.452887627e-08 | Y80: 0.00211929491 | AE80: 3.645225974 | AF80: 0.395 | AG80: 2.574437022e-08 | AH80: 0.002224313587
A81: 1.302795458 | B81: 5.53 | C81: 1.073234263e-09 | D81: 9.272744034e-05 | J81: 5.494404958 | K81: 0.0628 | L81: 1.26109838e-07 | M81: 0.01089589 | S81: 2.150756945 | T81: 2.163410146 | U81: 20.5001 | V81: 7.303176088e-09 | W81: 0.000630994414 | X81: 2.369541477e-08 | Y81: 0.002047283837 | AE81: 3.632227095 | AF81: 0.4 | AG81: 2.528861009e-08 | AH81: 0.002184935912
A82: 1.296274334 | B82: 5.63 | C82: 1.04532932e-09 | D82: 9.031645321e-05 | J82: 5.476985578 | K82: 0.0638 | L82: 1.243601017e-07 | M82: 0.01074471278 | S82: 2.136589382 | T82: 2.148862143 | U82: 21.0001 | V82: 7.097700426e-09 | W82: 0.0006132413168 | X82: 2.29093506e-08 | Y82: 0.001979367892 | AE82: 3.619435192 | AF82: 0.405 | AG82: 2.484643103e-08 | AH82: 0.002146731641
A83: 1.289899809 | B83: 5.73 | C83: 1.018622296e-09 | D83: 8.800896636e-05 | J83: 5.459891063 | K83: 0.0648 | L83: 1.226612939e-07 | M83: 0.01059793579 | S83: 2.122838655 | T83: 2.134750884 | U83: 21.5001 | V83: 6.902483757e-09 | W83: 0.0005963745966 | X83: 2.216695373e-08 | Y83: 0.001915224802 | AE83: 3.606844474 | AF83: 0.41 | AG83: 2.441726809e-08 | AH83: 0.002109651963
A84: 1.283666115 | B84: 5.83 | C84: 9.93042182e-10 | D84: 8.579884453e-05 | J84: 5.443110477 | K84: 0.0658 | L84: 1.210111802e-07 | M84: 0.01045536596 | S84: 2.109483409 | T84: 2.121053549 | U84: 22.0001 | V84: 6.716798666e-09 | W84: 0.0005803314047 | X84: 2.146486541e-08 | Y84: 0.001854564372 | AE84: 3.59444938 | AF84: 0.415 | AG84: 2.400058628e-08 | AH84: 0.002073650655
A85: 1.277567804 | B85: 5.93 | C85: 9.685232996e-10 | D85: 8.368041308e-05 | J85: 5.426633417 | K85: 0.0668 | L85: 1.19407656e-07 | M85: 0.01031682148 | S85: 2.096503829 | T85: 2.107748995 | U85: 22.5001 | V85: 6.539983952e-09 | W85: 0.0005650546134 | X85: 2.080005383e-08 | Y85: 0.001797124651 | AE85: 3.582244569 | AF85: 0.42 | AG85: 2.359587874e-08 | AH85: 0.002038683923
A86: 1.271599725 | B86: 6.03 | C86: 9.450048193e-10 | D86: 8.164841639e-05 | J86: 5.410449968 | K86: =K85+0.001 -> 0.0678 | L86: 1.178487378e-07 | M86: 0.01018213095 | S86: 2.083881496 | T86: 2.094817598 | U86: 23.0001 | V86: 6.37143732e-09 | W86: 0.0005504921845 | X86: 2.016977589e-08 | Y86: 0.001742668636 | AE86: 3.570224905 | AF86: 0.425 | AG86: 2.320266487e-08 | AH86: 0.002004710245
A87: 1.265757006 | B87: 6.13 | C87: 9.224303306e-10 | D87: 7.969798056e-05 | J87: 5.394550682 | K87: 0.0688 | L87: 1.163325538e-07 | M87: 0.01005113264 | S87: 2.071599264 | T87: 2.082241115 | U87: 23.5001 | V87: 6.210609023e-09 | W87: 0.0005365966196 | X87: 1.957154416e-08 | Y87: 0.001690981416 | AE87: 3.558385452 | AF87: 0.43 | AG87: 2.282048873e-08 | AH87: 0.001971690226
A88: 1.260035032 | B88: 6.23 | C88: 9.007474547e-10 | D88: 7.782458008e-05 | J88: 5.378926548 | K88: 0.0698 | L88: 1.148573365e-07 | M88: 0.009923673873 | S88: 2.059641146 | T88: 2.070002558 | U88: 24.0001 | V88: 6.056996297e-09 | W88: 0.00052332448 | X88: 1.90030983e-08 | Y88: 0.001641867693 | AE88: 3.546721457 | AF88: 0.435 | AG88: 2.244891746e-08 | AH88: 0.001939586469
A89: 1.254429429 | B89: 6.33 | C89: 8.799074979e-10 | D89: 7.602400782e-05 | J89: 5.363568963 | K89: 0.0708 | L89: 1.134214157e-07 | M89: 0.009799610313 | S89: 2.047992214 | T89: 2.058086086 | U89: 24.5001 | V89: 5.910138488e-09 | W89: 0.0005106359654 | X89: 1.846238005e-08 | Y89: 0.001595149637 | AE89: 3.535228349 | AF89: 0.44 | AG89: 2.208753992e-08 | AH89: 0.001908363449
A90: 1.248936046 | B90: 6.43 | C90: 8.59865139e-10 | D90: 7.429234801e-05 | J90: 5.348469709 | K90: 0.0718 | L90: 1.120232113e-07 | M90: 0.009678805457 | S90: 2.036638511 | T90: 2.046476904 | U90: 25.0001 | V90: 5.769612777e-09 | W90: 0.0004984945439 | X90: 1.794751159e-08 | Y90: 0.001550665001 | AE90: 3.523901725 | AF90: 0.445 | AG90: 2.173596532e-08 | AH90: 0.001877987403
A91: 1.243550945 | B91: 6.53 | C91: 8.405781479e-10 | D91: 7.262595198e-05 | J91: 5.333620932 | K91: 0.0728 | L91: 1.106612279e-07 | M91: 0.00956113009 | S91: 2.025566966 | T91: 2.035161175 | U91: 25.5001 | V91: 5.635030398e-09 | W91: 0.0004868666264 | X91: 1.745677642e-08 | Y91: 0.001508265482 | AE91: 3.512737341 | AF91: 0.45 | AG91: 2.139382202e-08 | AH91: 0.001848426222
A92: 1.238270381 | B92: 6.63 | C92: 8.220071316e-10 | D92: 7.102141617e-05 | J92: 5.319015122 | K92: 0.0738 | L92: 1.093340486e-07 | M92: 0.009446461802 | S92: 2.014765328 | T92: 2.024125943 | U92: 26.0001 | V92: 5.506033313e-09 | W92: 0.0004757212782 | X92: 1.698860274e-08 | Y92: 0.001467815277 | AE92: 3.501731111 | AF92: 0.455 | AG92: 2.10607564e-08 | AH92: 0.001819649353
A93: 1.233090792 | B93: =B92+0.1 -> 6.73 | C93: 8.04115304e-10 | D93: 6.947556227e-05 | J93: 5.304645091 | K93: 0.0748 | L93: 1.080403304e-07 | M93: 0.009334684544 | S93: 2.004222094 | T93: 2.013359058 | U93: 26.5001 | V93: 5.382291256e-09 | W93: 0.0004650299645 | X93: 1.654154873e-08 | Y93: 0.00142918981 | AE93: 3.490879092 | AF93: 0.46 | AG93: 2.073643177e-08 | AH93: 0.001791627705
A94: 1.228008791 | B94: 6.83 | C94: 7.868682786e-10 | D94: 6.798541927e-05 | J94: 5.290503956 | K94: 0.0758 | L94: 1.067787989e-07 | M94: 0.009225688221 | S94: 1.993926455 | T94: 2.002849111 | U94: 27.0001 | V94: 5.263499117e-09 | W94: 0.0004547663237 | X94: 1.611428962e-08 | Y94: 0.001392274623 | AE94: 3.480177483 | AF94: 0.465 | AG94: 2.042052743e-08 | AH94: 0.00176433357
A95: 1.223021149 | B95: 6.93 | C95: 7.70233879e-10 | D95: 6.654820714e-05 | J95: 5.276585122 | K95: 0.0768 | L95: 1.055482443e-07 | M95: 0.009119368309 | S95: 1.983868241 | T95: 1.992585382 | U95: 27.5001 | V95: 5.149374613e-09 | W95: 0.0004449059666 | X95: 1.570560622e-08 | Y95: 0.001356964377 | AE95: 3.469622613 | AF95: 0.47 | AG95: 2.01127377e-08 | AH95: 0.001737740537
A96: 1.21812479 | B96: 7.03 | C96: 7.541819678e-10 | D96: 6.516132202e-05 | J96: 5.262882267 | K96: 0.0778 | L96: 1.043475174e-07 | M96: 0.009015625507 | S96: 1.974037871 | T96: 1.98255778 | U96: 28.0001 | V96: 5.039656208e-09 | W96: 0.0004354262963 | X96: 1.531437478e-08 | Y96: 0.001323161981 | AE96: 3.459210944 | AF96: 0.475 | AG96: 1.981277111e-08 | AH96: 0.001711823424
A97: 1.213316781 | B97: 7.13 | C97: 7.386842909e-10 | D97: 6.382232273e-05 | J97: 5.249389329 | K97: 0.0788 | L97: 1.031755256e-07 | M97: 0.008914365412 | S97: 1.964426312 | T97: 1.9727568 | U97: 28.5001 | V97: 4.934101257e-09 | W97: 0.0004263063486 | X97: 1.493955802e-08 | Y97: 0.001290777813 | AE97: 3.448939053 | AF97: 0.48 | AG97: 1.952034958e-08 | AH97: 0.001686558204
A98: 1.208594322 | B98: 7.23 | C98: 7.237143352e-10 | D98: 6.252891856e-05 | J98: 5.236100487 | K98: 0.0798 | L98: 1.020312294e-07 | M98: 0.00881549822 | S98: 1.955025036 | T98: 1.963173476 | U98: 29.0001 | V98: 4.832484352e-09 | W98: 0.000417526648 | X98: 1.458019703e-08 | Y98: 0.001259729024 | AE98: 3.438803638 | AF98: 0.485 | AG98: 1.923520766e-08 | AH98: 0.001661921942
A99: 1.203954737 | B99: 7.33 | C99: 7.092471992e-10 | D99: 6.127895801e-05 | J99: 5.223010156 | K99: 0.0808 | L99: 1.009136394e-07 | M99: 0.008718938447 | S99: 1.945825986 | T99: 1.953799345 | U99: 29.5001 | V99: 4.734595821e-09 | W99: 0.0004090690789 | X99: 1.42354042e-08 | Y99: 0.001229938923 | AE99: 3.428801507 | AF99: 0.49 | AG99: 1.895709185e-08 | AH99: 0.001637892736
A100: 1.199395472 | B100: 7.43 | C100: 6.952594747e-10 | D100: 6.007041861e-05 | J100: 5.210112965 | K100: 0.0818 | L100: 9.982181335e-08 | M100: 0.008624604673 | S100: 1.936821542 | T100: 1.944626411 | U100: 30.0001 | V100: 4.6402404e-09 | W100: 0.0004009167706 | X100: 1.390435679e-08 | Y100: 0.001201336426 | AE100: 3.418929573 | AF100: 0.495 | AG100: 1.868575996e-08 | AH100: 0.001614449661
A101: 1.194914082 | B101: 7.53 | C101: 6.817291387e-10 | D101: 5.890139758e-05 | J101: 5.197403758 | K101: 0.0828 | L101: 9.875485299e-08 | M101: 0.008532419298 | S101: 1.928004488 | T101: 1.935647107 | U101: 30.5001 | V101: 4.549236021e-09 | W101: 0.0003930539922 | X101: 1.358629118e-08 | Y101: 0.001173855558 | AE101: 3.409184852 | AF101: 0.5 | AG101: 1.842098046e-08 | AH101: 0.001591572712
A102: 1.19050823 | B102: 7.63 | C102: 6.686354545e-10 | D102: 5.777010326e-05 | J102: 5.184877572 | K102: 0.0838 | L102: 9.77119019e-08 | M102: 0.008442308324 | S102: 1.919367991 | T102: 1.926854271 | U102: 31.0001 | V102: 4.461412728e-09 | W102: 0.0003854660597 | X102: 1.328049779e-08 | Y102: 0.001147435009 | AE102: 3.399564457 | AF102: 0.505 | AG102: 1.816253194e-08 | AH102: 0.00156924276
A103: 1.186175677 | B103: 7.73 | C103: 6.559588806e-10 | D103: 5.667484729e-05 | J103: 5.172529634 | K103: 0.0848 | L103: 9.669214284e-08 | M103: 0.008354201142 | S103: 1.910905568 | T103: 1.918241115 | U103: 31.5001 | V103: 4.376611695e-09 | W103: 0.0003781392504 | X103: 1.298631644e-08 | Y103: 0.00112201774 | AE103: 3.390065593 | AF103: 0.51 | AG103: 1.791020257e-08 | AH103: 0.001547441502
A104: 1.181914278 | B104: 7.83 | C104: 6.436809882e-10 | D104: 5.561403738e-05 | J104: 5.160355351 | K104: 0.0858 | L104: 9.569479564e-08 | M104: 0.008268030343 | S104: 1.902611065 | T104: 1.909801203 | U104: 32.0001 | V104: 4.294684336e-09 | W104: 0.0003710607266 | X104: 1.270313217e-08 | Y104: 0.00109755062 | AE104: 3.380685558 | AF104: 0.515 | AG104: 1.766378959e-08 | AH104: 0.001526151421
A105: 1.177721979 | B105: 7.93 | C105: 6.317843835e-10 | D105: 5.458617074e-05 | J105: 5.148350298 | K105: 0.0868 | L105: 9.471911503e-08 | M105: 0.008183731539 | S105: 1.894478638 | T105: 1.901528422 | U105: 32.5001 | V105: 4.215491502e-09 | W105: 0.0003642184658 | X105: 1.243037156e-08 | Y105: 0.001073984103 | AE105: 3.371421731 | AF105: 0.52 | AG105: 1.742309883e-08 | AH105: 0.001505355739
A106: 1.173596809 | B106: 8.03 | C106: 6.202526388e-10 | D106: 5.358982799e-05 | J106: 5.136510215 | K106: 0.0878 | L106: 9.376438875e-08 | M106: 0.008101243188 | S106: 1.88650273 | T106: 1.893416968 | U106: 33.0001 | V106: 4.138902749e-09 | W106: 0.0003576011976 | X106: 1.216749925e-08 | Y106: 0.001051271936 | AE106: 3.362271576 | AF106: 0.525 | AG106: 1.718794428e-08 | AH106: 0.001485038386
A107: 1.169536876 | B107: 8.13 | C107: 6.090702264e-10 | D107: 5.262366757e-05 | J107: 5.124830992 | K107: 0.0888 | L107: 9.282993573e-08 | M107: 0.008020506447 | S107: 1.878678056 | T107: 1.885461321 | U107: 33.5001 | V107: 4.064795676e-09 | W107: 0.0003511983464 | X107: 1.191401498e-08 | Y107: 0.001029370894 | AE107: 3.353232636 | AF107: 0.53 | AG107: 1.695814769e-08 | AH107: 0.00146518396
A108: 1.165540366 | B108: 8.23 | C108: 5.9822246e-10 | D108: 5.168642054e-05 | J108: 5.11330867 | K108: 0.0898 | L108: 9.191510434e-08 | M108: 0.007941465015 | S108: 1.870999581 | T108: 1.877656228 | U108: 34.0001 | V108: 3.993055316e-09 | W108: 0.0003449999793 | X108: 1.166945072e-08 | Y108: 0.001008240542 | AE108: 3.344302529 | AF108: 0.535 | AG108: 1.673353813e-08 | AH108: 0.001445777694
A109: 1.161605534 | B109: 8.33 | C109: 5.876954388e-10 | D109: 5.077688591e-05 | J109: 5.101939428 | K109: 0.0908 | L109: 9.101927089e-08 | M109: 0.007864065005 | S109: 1.86346251 | T109: 1.869996688 | U109: 34.5001 | V109: 3.923573588e-09 | W109: 0.000338996758 | X109: 1.143336824e-08 | Y109: 0.0009878430156 | AE109: 3.335478945 | AF109: 0.54 | AG109: 1.651395166e-08 | AH109: 0.001426805424
A110: 1.157730705 | B110: 8.43 | C110: 5.774759972e-10 | D110: 4.989392616e-05 | J110: 5.090719581 | K110: 0.0918 | L110: 9.014183806e-08 | M110: 0.007788254809 | S110: 1.856062271 | T110: 1.862477936 | U110: 35.0001 | V110: 3.856248793e-09 | W110: 0.0003331798957 | X110: 1.120535673e-08 | Y110: 0.0009681428218 | AE110: 3.326759645 | AF110: 0.545 | AG110: 1.6299231e-08 | AH110: 0.001408253558
A111: 1.15391427 | B111: 8.53 | C111: 5.675516575e-10 | D111: 4.903646321e-05 | J111: 5.079645569 | K111: 0.0928 | L111: 8.928223358e-08 | M111: 0.007713984982 | S111: 1.848794499 | T111: 1.855095428 | U111: 35.5001 | V111: 3.790985154e-09 | W111: 0.0003275411173 | X111: 1.098503082e-08 | Y111: 0.0009491066625 | AE111: 3.318142457 | AF111: 0.55 | AG111: 1.608922514e-08 | AH111: 0.001390109052
A112: 1.150154677 | B112: 8.63 | C112: 5.579105867e-10 | D112: 4.820347469e-05 | J112: 5.068713956 | K112: 0.0938 | L112: 8.843990887e-08 | M112: 0.007641208127 | S112: 1.84165503 | T112: 1.847844827 | U112: 36.0001 | V112: 3.727692395e-09 | W112: 0.0003220726229 | X112: 1.077202857e-08 | Y112: 0.0009307032684 | AE112: 3.309625272 | AF112: 0.555 | AG112: 1.58837891e-08 | AH112: 0.001372359378
A113: 1.146450438 | B113: 8.73 | C113: 5.485415558e-10 | D113: 4.739399042e-05 | J113: 5.057921422 | K113: 0.0948 | L113: 8.761433786e-08 | M113: 0.007569878791 | S113: 1.834639884 | T113: 1.840721993 | U113: 36.5001 | V113: 3.666285355e-09 | W113: 0.0003167670547 | X113: 1.056600983e-08 | Y113: 0.0009129032496 | AE113: 3.301206045 | AF113: 0.56 | AG113: 1.568278359e-08 | AH113: 0.001354992503
A114: 1.142800116 | B114: 8.83 | C114: 5.394339028e-10 | D114: 4.66070892e-05 | J114: 5.047264757 | K114: 0.0958 | L114: 8.68050158e-08 | M114: 0.007499953365 | S114: 1.827745257 | T114: 1.833722969 | U114: 37.0001 | V114: 3.606683636e-09 | W114: 0.0003116174661 | X114: 1.036665462e-08 | Y114: 0.0008956789591 | AE114: 3.292882789 | AF114: 0.565 | AG114: 1.548607478e-08 | AH114: 0.001337996861
A115: 1.139202329 | B115: 8.93 | C115: 5.305774982e-10 | D115: 4.584189584e-05 | J115: 5.03674086 | K115: 0.0968 | L115: 8.601145822e-08 | M115: 0.007431389991 | S115: 1.820967508 | T115: 1.826843975 | U115: 37.5001 | V115: 3.548811272e-09 | W115: 0.0003066172939 | X115: 1.017366166e-08 | Y115: 0.0008790043673 | AE115: 3.284653576 | AF115: 0.57 | AG115: 1.5293534e-08 | AH115: 0.001321361338
A116: 1.135655746 | B116: 9.03 | C116: 5.219627123e-10 | D116: 4.509757834e-05 | J116: 5.02634673 | K116: 0.0978 | L116: 8.523319992e-08 | M116: 0.007364148473 | S116: 1.814303156 | T116: 1.820081391 | U116: 38.0001 | V116: 3.492596438e-09 | W116: 0.0003017603323 | X116: 9.98674708e-09 | Y116: 0.0008628549477 | AE116: 3.276516531 | AF116: 0.575 | AG116: 1.510503753e-08 | AH116: 0.001305075242
A117: 1.132159083 | B117: 9.13 | C117: 5.135803858e-10 | D117: 4.437334533e-05 | J117: 5.016079464 | K117: 0.0988 | L117: 8.446979397e-08 | M117: 0.007298190199 | S117: 1.807748864 | T117: 1.813431755 | U117: 38.5001 | V117: 3.437971169e-09 | W117: 0.000297040709 | X117: 9.80564319e-09 | Y117: 0.0008472075716 | AE117: 3.268469835 | AF117: 0.58 | AG117: 1.492046634e-08 | AH117: 0.001289128292
A118: 1.128711101 | B118: 9.23 | C118: 5.054218018e-10 | D118: 4.366844368e-05 | J118: 5.005936254 | K118: 0.0998 | L118: 8.372081086e-08 | M118: 0.007233478059 | S118: 1.801301435 | T118: 1.806891749 | U118: 39.0001 | V118: 3.384871109e-09 | W118: 0.0002924528638 | X118: 9.630097357e-09 | Y118: 0.0008320404117 | AE118: 3.260511718 | AF118: 0.585 | AG118: 1.47397059e-08 | AH118: 0.00127351059
A119: 1.125310607 | B119: 9.33 | C119: 4.9747866e-10 | D119: 4.298215622e-05 | J119: 4.99591438 | K119: 0.1008 | L119: 8.298583765e-08 | M119: 0.007169976373 | S119: 1.794957806 | T119: 1.800458195 | U119: 39.5001 | V119: 3.333235273e-09 | W119: 0.0002879915276 | X119: 9.459870984e-09 | Y119: 0.000817332853 | AE119: 3.252640461 | AF119: 0.59 | AG119: 1.456264597e-08 | AH119: 0.001258212612
A120: 1.121956448 | B120: 9.43 | C120: 4.897430525e-10 | D120: 4.231379974e-05 | J120: 4.986011208 | K120: 0.1018 | L120: 8.226447716e-08 | M120: 0.007107650826 | S120: 1.788715036 | T120: 1.794128045 | U120: 40.0001 | V120: 3.283005838e-09 | W120: 0.0002836517044 | X120: 9.294738563e-09 | Y120: 0.0008030654118 | AE120: 3.244854391 | AF120: 0.595 | AG120: 1.438918037e-08 | AH120: 0.001243225184
A121: 1.118647511 | B121: 9.53 | C121: 4.822074415e-10 | D121: 4.166272295e-05 | J121: 4.976224186 | K121: 0.1028 | L121: 8.15563472e-08 | M121: 0.007046468398 | S121: 1.782570305 | T121: 1.787898375 | U121: 40.5001 | V121: 3.234127936e-09 | W121: 0.0002794286537 | X121: 9.134486805e-09 | Y121: 0.00078921966 | AE121: 3.237151882 | AF121: 0.6 | AG121: 1.421920686e-08 | AH121: 0.001228539473
A122: 1.115382721 | B122: 9.63 | C122: 4.748646382e-10 | D122: 4.102830474e-05 | J122: 4.966550843 | K122: 0.1038 | L122: 8.086107994e-08 | M122: 0.006986397307 | S122: 1.776520902 | T122: 1.78176638 | U122: 41.0001 | V122: 3.186549473e-09 | W122: 0.0002753178744 | X122: 8.978913841e-09 | Y122: 0.0007757781558 | AE122: 3.229531352 | AF122: 0.605 | AG122: 1.405262691e-08 | AH122: 0.001214146965
A123: 1.11216104 | B123: 9.73 | C123: 4.67707783e-10 | D123: 4.040995245e-05 | J123: 4.956988781 | K123: 0.1048 | L123: 8.017832115e-08 | M123: 0.006927406947 | S123: 1.770564226 | T123: 1.775729364 | U123: 41.5001 | V123: 3.140220954e-09 | W123: 0.0002713150905 | X123: 8.827828472e-09 | Y123: 0.00076272438 | AE123: 3.221991261 | AF123: 0.61 | AG123: 1.388934554e-08 | AH123: 0.001200039454
A124: 1.108981465 | B124: 9.83 | C124: 4.607303279e-10 | D124: 3.980710033e-05 | J124: 4.947535677 | K124: 0.1058 | L124: 7.950772962e-08 | M124: 0.006869467839 | S124: 1.764697773 | T124: 1.769784738 | U124: 42.0001 | V124: 3.095095331e-09 | W124: 0.0002674162366 | X124: 8.681049495e-09 | Y124: 0.0007500426764 | AE124: 3.214530113 | AF124: 0.615 | AG124: 1.372927119e-08 | AH124: 0.001186209031
A125: 1.105843025 | B125: 9.93 | C125: 4.539260187e-10 | D125: 3.921920801e-05 | J125: 4.938189276 | K125: 0.1068 | L125: 7.884897659e-08 | M125: 0.006812551577 | S125: 1.75891914 | T125: 1.763930014 | U125: 42.5001 | V125: 3.051127847e-09 | W125: 0.000263617446 | X125: 8.538405062e-09 | Y125: 0.0007377181973 | AE125: 3.207146448 | AF125: 0.62 | AG125: 1.357231557e-08 | AH125: 0.001172648065
A126: 1.102744782 | B126: 10.03 | C126: 4.472888792e-10 | D126: 3.864575917e-05 | J126: 4.928947392 | K126: 0.1078 | L126: 7.82017451e-08 | M126: 0.006756630776 | S126: 1.75322601 | T126: 1.758162797 | U126: 43.0001 | V126: 3.008275905e-09 | W126: 0.0002599150382 | X126: 8.399732097e-09 | Y126: 0.0007257368531 | AE126: 3.199838846 | AF126: 0.625 | AG126: 1.341839349e-08 | AH126: 0.001159349198
A127: 1.099685827 | B127: 10.13 | C127: 4.408131966e-10 | D127: 3.808626019e-05 | J127: 4.919807903 | K127: 0.1088 | L127: 7.756572955e-08 | M127: 0.006701679033 | S127: 1.747616156 | T127: 1.752480785 | U127: 43.5001 | V127: 2.966498939e-09 | W127: 0.0002563055083 | X127: 8.264875752e-09 | Y127: 0.000714085265 | AE127: 3.192605925 | AF127: 0.63 | AG127: 1.326742276e-08 | AH127: 0.001146305326
A128: 1.096665283 | B128: 10.23 | C128: 4.344935068e-10 | D128: 3.754023899e-05 | J128: 4.910768749 | K128: 0.1098 | L128: 7.694063515e-08 | M128: 0.006647670877 | S128: 1.742087433 | T128: 1.746881762 | U128: 44.0001 | V128: 2.925758294e-09 | W128: 0.0002527855166 | X128: 8.133688905e-09 | Y128: 0.0007027507214 | AE128: 3.185446338 | AF128: 0.635 | AG128: 1.311932401e-08 | AH128: 0.001133509595
A129: 1.093682298 | B129: 10.33 | C129: 4.283245818e-10 | D129: 3.700724387e-05 | J129: 4.901827929 | K129: 0.1108 | L129: 7.632617743e-08 | M129: 0.00659458173 | S129: 1.736637774 | T129: 1.741363592 | U129: 44.5001 | V129: 2.886017119e-09 | W129: 0.0002493518791 | X129: 8.006031691e-09 | Y129: 0.0006917211381 | AE129: 3.178358773 | AF129: 0.64 | AG129: 1.297402065e-08 | AH129: 0.001120955385
A130: 1.090736048 | B130: 10.43 | C130: 4.223014171e-10 | D130: 3.648684244e-05 | J130: 4.8929835 | K130: 0.1118 | L130: 7.572208185e-08 | M130: 0.006542387872 | S130: 1.731265187 | T130: 1.735924219 | U130: 45.0001 | V130: 2.84724026e-09 | W130: 0.0002460015585 | X130: 7.881771065e-09 | Y130: 0.00068098502 | AE130: 3.17134195 | AF130: 0.645 | AG130: 1.283143869e-08 | AH130: 0.001108636303
A131: 1.087825735 | B131: 10.53 | C131: 4.164192202e-10 | D131: 3.597862062e-05 | J131: 4.884233576 | K131: 0.1128 | L131: 7.512808328e-08 | M131: 0.006491066395 | S131: 1.725967752 | T131: 1.730561661 | U131: 45.5001 | V131: 2.809394168e-09 | W131: 0.0002427316561 | X131: 7.760780403e-09 | Y131: 0.0006705314269 | AE131: 3.164394624 | AF131: 0.65 | AG131: 1.269150665e-08 | AH131: 0.001096546174
A132: =2.103*B132^(-0.28) -> 1.084950586 | B132: 10.63 | C132: 4.106733996e-10 | D132: =C132*86400 -> 3.548218172e-05 | J132: =3.15*K132^(-0.201) -> 4.875576321 | K132: 0.1138 | L132: =0.00000000007*J132^4.4 -> 7.454392568e-08 | M132: 0.006440595179 | S132: 1.720743618 | T132: =5.04*(U132)^(-0.28) -> 1.725274007 | U132: 46.0001 | V132: =0.0000000005*(S132^5)/(1+S132) -> 2.772446806e-09 | W132: =V132*86400 -> 0.000239539404 | X132: =0.0000000005*(T132^5) -> 7.642939124e-09 | Y132: =X132*86400 -> 0.0006603499403 | AE132: 3.15751558 | AF132: 0.655 | AG132: =0.00000000004*AE132^5 -> 1.255415545e-08 | AH132: =AG132*86400 -> 0.001084679031
A133: 1.082109851 | B133: 10.73 | C133: 4.050595546e-10 | D133: 3.499714552e-05 | J133: 4.867009952 | K133: 0.1148 | L133: 7.396936167e-08 | M133: 0.006390952848 | S133: 1.715590995 | T133: 1.720059413 | U133: 46.5001 | V133: 2.736367569e-09 | W133: 0.000236422158 | X133: 7.528132337e-09 | Y133: 0.0006504306339 | AE133: 3.150703632 | AF133: =AF132+0.005 -> 0.66 | AG133: 1.241931835e-08 | AH133: 0.001073029105
A134: 1.079302803 | B134: 10.83 | C134: =AVERAGE(0.000000000003,0.0000000003,0.0000000005)*A134^5.25 -> 3.995734661e-10 | D134: 3.452314747e-05 | J134: 4.858532737 | K134: 0.1158 | L134: 7.340415215e-08 | M134: =L134*86400 -> 0.006342118746 | S134: =5.04*(U134+0.434)^(-0.28) -> 1.71050816 | T134: 1.7149161 | U134: 47.0001 | V134: 2.701127203e-09 | W134: 0.0002333773904 | X134: 7.41625052e-09 | Y134: 0.000640764045 | AE134: =2.8*AF134^(-0.284) -> 3.143957626 | AF134: 0.665 | AG134: 1.228693078e-08 | AH134: 0.00106159082
A135: 1.076528737 | B135: 10.93 | C135: 3.942110867e-10 | D135: 3.405983789e-05 | J135: 4.850142989 | K135: 0.1168 | L135: 7.284806602e-08 | M135: 0.006294072904 | S135: 1.705493446 | T135: 1.70984235 | U135: 47.5001 | V135: 2.666697734e-09 | W135: 0.0002304026842 | X135: 7.307189212e-09 | Y135: 0.0006313411479 | AE135: 3.137276435 | AF135: 0.67 | AG135: 1.215693034e-08 | AH135: 0.001050358781
A136: 1.073786969 | B136: 11.03 | C136: 3.889685329e-10 | D136: 3.360688125e-05 | J136: 4.841839069 | K136: 0.1178 | L136: 7.230087976e-08 | M136: 0.006246796011 | S136: 1.700545243 | T136: 1.704836507 | U136: 48.0001 | V136: 2.633052395e-09 | W136: 0.0002274957269 | X136: 7.200848728e-09 | Y136: 0.0006221533301 | AE136: 3.130658958 | AF136: 0.675 | AG136: 1.202925664e-08 | AH136: 0.001039327774
A137: 1.071076835 | B137: 11.13 | C137: 3.83842077e-10 | D137: 3.316395545e-05 | J137: 4.83361938 | K137: 0.1188 | L137: 7.176237718e-08 | M137: 0.006200269388 | S137: 1.695661997 | T137: 1.699896967 | U137: 48.5001 | V137: 2.60016557e-09 | W137: 0.0002246543052 | X137: 7.097133898e-09 | Y137: 0.0006131923687 | AE137: 3.124104124 | AF137: 0.68 | AG137: 1.190385127e-08 | AH137: 0.00102849275
A138: 1.068397691 | B138: 11.23 | C138: 3.788281389e-10 | D138: 3.273075121e-05 | J138: 4.825482371 | K138: 0.1198 | L138: 7.123234911e-08 | M138: 0.006154474963 | S138: 1.690842204 | T138: 1.695022182 | U138: 49.0001 | V138: 2.568012725e-09 | W138: 0.0002218762994 | X138: 6.995953814e-09 | Y138: 0.0006044504095 | AE138: 3.117610885 | AF138: 0.685 | AG138: 1.178065768e-08 | AH138: 0.001017848824
A139: 1.065748912 | B139: 11.33 | C139: 3.7392328e-10 | D139: 3.230697139e-05 | J139: 4.81742653 | K139: 0.1208 | L139: 7.07105931e-08 | M139: 0.006109395244 | S139: 1.686084411 | T139: 1.690210655 | U139: 49.5001 | V139: 2.536570357e-09 | W139: 0.0002191596789 | X139: 6.897221602e-09 | Y139: 0.0005959199464 | AE139: 3.111178218 | AF139: 0.69 | AG139: 1.165962115e-08 | AH139: 0.001007391267
A140: 1.063129889 | B140: 11.43 | C140: 3.691241955e-10 | D140: 3.189233049e-05 | J140: 4.809450385 | K140: 0.1218 | L140: 7.019691317e-08 | M140: 0.006065013298 | S140: 1.68138721 | T140: 1.685460939 | U140: 50.0001 | V140: 2.505815942e-09 | W140: 0.0002165024974 | X140: 6.800854202e-09 | Y140: 0.0005875938031 | AE140: 3.104805127 | AF140: 0.695 | AG140: 1.154068867e-08 | AH140: 0.0009971155015
A141: 1.060540033 | B141: 11.53 | C141: 3.644277087e-10 | D141: 3.148655403e-05 | J141: 4.801552503 | K141: 0.1228 | L141: 6.969111952e-08 | M141: 0.006021312726 | S141: 1.67674924 | T141: 1.680771633 | U141: 50.5001 | V141: 2.475727879e-09 | W141: 0.0002139028887 | X141: 6.706772165e-09 | Y141: 0.000579465115 | AE141: 3.098490636 | AF141: 0.7 | AG141: 1.142380894e-08 | AH141: 0.0009870170928
A142: 1.057978769 | B142: 11.63 | C142: 3.598307645e-10 | D142: 3.108937805e-05 | J142: 4.793731488 | K142: 0.1238 | L142: 6.919302833e-08 | M142: 0.005978277648 | S142: 1.672169185 | T142: 1.676141383 | U142: 51.0001 | V142: 2.44628545e-09 | W142: 0.0002113590629 | X142: 6.614899462e-09 | Y142: 0.0005715273135 | AE142: 3.092233794 | AF142: 0.705 | AG142: 1.130893224e-08 | AH142: 0.0009770917456
A143: 1.055445541 | B143: 11.73 | C143: 3.553304242e-10 | D143: 3.070054865e-05 | J143: 4.785985981 | K143: 0.1248 | L143: 6.87024615e-08 | M143: 0.005935892673 | S143: 1.667645768 | T143: 1.671568876 | U143: =U142+0.5 -> 51.5001 | V143: 2.417468773e-09 | W143: 0.000208869302 | X143: 6.525163306e-09 | Y143: 0.0005637741097 | AE143: 3.086033671 | AF143: 0.71 | AG143: 1.119601039e-08 | AH143: 0.0009673352978
A144: 1.052939806 | B144: 11.83 | C144: 3.509238598e-10 | D144: 3.031982149e-05 | J144: 4.778314655 | K144: 0.1258 | L144: 6.821924642e-08 | M144: 0.005894142891 | S144: 1.663177754 | T144: 1.667052842 | U144: 52.0001 | V144: 2.38925876e-09 | W144: 0.0002064319568 | X144: 6.437493984e-09 | Y144: 0.0005561994803 | AE144: 3.07988936 | AF144: 0.715 | AG144: 1.108499671e-08 | AH144: 0.000957743716
A145: 1.050461037 | B145: 11.93 | C145: 3.466083492e-10 | D145: 2.994696137e-05 | J145: 4.77071622 | K145: 0.1268 | L145: 6.774321579e-08 | M145: 0.005853013844 | S145: 1.658763945 | T145: 1.662592051 | U145: 52.5001 | V145: 2.361637079e-09 | W145: 0.0002040454436 | X145: 6.351824699e-09 | Y145: 0.000548797654 | AE145: 3.073799972 | AF145: 0.72 | AG145: 1.097584595e-08 | AH145: 0.0009483130905
A146: 1.048008722 | B146: 12.03 | C146: 3.423812711e-10 | D146: 2.958174183e-05 | J146: 4.763189415 | K146: 0.1278 | L146: 6.727420737e-08 | M146: 0.005812491517 | S146: 1.654403182 | T146: 1.658185311 | U146: 53.0001 | V146: 2.334586118e-09 | W146: 0.0002017082406 | X146: 6.268091419e-09 | Y146: 0.0005415630986 | AE146: 3.067764641 | AF146: 0.725 | AG146: 1.086851424e-08 | AH146: 0.0009390396303
A147: 1.045582362 | B147: 12.13 | C147: 3.382401007e-10 | D147: 2.92239447e-05 | J147: 4.755733013 | K147: 0.1288 | L147: 6.681206384e-08 | M147: 0.005772562316 | S147: 1.650094339 | T147: 1.653831464 | U147: 53.5001 | V147: 2.30808895e-09 | W147: 0.0001994188852 | X147: 6.186232742e-09 | Y147: 0.0005344905089 | AE147: 3.061782518 | AF147: 0.73 | AG147: 1.076295902e-08 | AH147: 0.0009299196593
A148: 1.043181471 | B148: 12.23 | C148: 3.341824051e-10 | D148: 2.88733598e-05 | J148: 4.748345817 | K148: 0.1298 | L148: 6.635663259e-08 | M148: 0.005733213055 | S148: 1.645836325 | T148: 1.649529392 | U148: 54.0001 | V148: 2.282129298e-09 | W148: 0.0001971759713 | X148: 6.106189764e-09 | Y148: 0.0005275747956 | AE148: 3.055852776 | AF148: 0.735 | AG148: 1.065913902e-08 | AH148: 0.0009209496115
A149: 1.040805578 | B149: 12.33 | C149: 3.302058397e-10 | D149: 2.852978455e-05 | J149: 4.741026658 | K149: 0.1308 | L149: 6.590776551e-08 | M149: 0.00569443094 | S149: 1.641628082 | T149: 1.645278008 | U149: 54.5001 | V149: 2.256691508e-09 | W149: 0.0001949781463 | X149: 6.027905952e-09 | Y149: 0.0005208110742 | AE149: 3.049974602 | AF149: 0.74 | AG149: 1.055701421e-08 | AH149: 0.0009121260275
A150: 1.038454223 | B150: 12.43 | C150: 3.26308144e-10 | D150: 2.819302364e-05 | J150: 4.733774396 | K150: =K149+0.001 -> 0.1318 | L150: 6.546531891e-08 | M150: 0.005656203554 | S150: 1.637468583 | T150: 1.641076257 | U150: 55.0001 | V150: 2.231760518e-09 | W150: 0.0001928241087 | X150: 5.951327031e-09 | Y150: 0.0005141946555 | AE150: 3.044147207 | AF150: 0.745 | AG150: 1.045654572e-08 | AH150: 0.0009034455503
A151: 1.036126957 | B151: 12.53 | C151: 3.224871378e-10 | D151: 2.786288871e-05 | J151: 4.72658792 | K151: 0.1328 | L151: 6.502915326e-08 | M151: 0.005618518842 | S151: 1.633356831 | T151: 1.636923117 | U151: 55.5001 | V151: 2.20732183e-09 | W151: 0.0001907126061 | X151: 5.876400874e-09 | Y151: 0.0005077210355 | AE151: 3.038369813 | AF151: 0.75 | AG151: 1.035769585e-08 | AH151: 0.0008949049216
A152: 1.033823344 | B152: 12.63 | C152: 3.187407182e-10 | D152: 2.753919805e-05 | J152: 4.719466145 | K152: 0.1338 | L152: 6.45991331e-08 | M152: 0.0055813651 | S152: 1.629291859 | T152: 1.632817595 | U152: 56.0001 | V152: 2.183361486e-09 | W152: 0.0001886424324 | X152: 5.803077399e-09 | Y152: 0.0005013858873 | AE152: 3.032641663 | AF152: 0.755 | AG152: 1.026042799e-08 | AH152: 0.0008865009783
A153: 1.03154296 | B153: 12.73 | C153: 3.150668557e-10 | D153: 2.722177633e-05 | J153: 4.712408009 | K153: 0.1348 | L153: 6.417512689e-08 | M153: 0.005544730963 | S153: 1.625272727 | T153: 1.628758727 | U153: 56.5001 | V153: 2.15986604e-09 | W153: 0.0001866124258 | X153: 5.731308468e-09 | Y153: 0.0004951850516 | AE153: 3.026962015 | AF153: 0.76 | AG153: 1.016470659e-08 | AH153: 0.0008782306494
A154: 1.029285391 | B154: 12.83 | C154: 3.114635916e-10 | D154: 2.691045431e-05 | J154: 4.70541248 | K154: 0.1358 | L154: 6.375700682e-08 | M154: 0.005508605389 | S154: 1.621298522 | T154: 1.624745578 | U154: 57.0001 | V154: 2.136822539e-09 | W154: 0.0001846214674 | X154: 5.6610478e-09 | Y154: 0.0004891145299 | AE154: 3.021330144 | AF154: 0.765 | AG154: 1.007049713e-08 | AH154: 0.0008700909522
A155: 1.027050234 | B155: 12.93 | C155: 3.079290347e-10 | D155: 2.66050686e-05 | J155: 4.698478547 | K155: 0.1368 | L155: 6.334464873e-08 | M155: 0.00547297765 | S155: 1.617368358 | T155: 1.620777236 | U155: 57.5001 | V155: 2.114218498e-09 | W155: 0.0001826684782 | X155: 5.592250881e-09 | Y155: 0.0004831704761 | AE155: 3.01574534 | AF155: 0.77 | AG155: 9.977766085e-09 | AH155: 0.0008620789898
A156: 1.024837094 | B156: 13.03 | C156: 3.044613586e-10 | D156: 2.630546139e-05 | J156: 4.691605223 | K156: 0.1378 | L156: 6.293793197e-08 | M156: 0.005437837322 | S156: 1.613481372 | T156: 1.616852821 | U156: 58.0001 | V156: 2.09204188e-09 | W156: 0.0001807524185 | X156: 5.524874882e-09 | Y156: 0.0004773491898 | AE156: 3.010206906 | AF156: 0.775 | AG156: 9.886480873e-09 | AH156: 0.0008541919474
A157: 1.022645589 | B157: =B156+0.1 -> 13.13 | C157: 3.01058799e-10 | D157: 2.601148023e-05 | J157: 4.684791544 | K157: 0.1388 | L157: 6.253673926e-08 | M157: 0.005403174272 | S157: 1.609636727 | T157: 1.612971471 | U157: 58.5001 | V157: 2.070281078e-09 | W157: 0.0001788722851 | X157: 5.458878582e-09 | Y157: 0.0004716471095 | AE157: 3.004714164 | AF157: 0.78 | AG157: 9.796609841e-09 | AH157: 0.0008464270903
A158: 1.020475345 | B158: 13.23 | C158: 2.97719651e-10 | D158: 2.572297785e-05 | J158: 4.678036568 | K158: 0.1398 | L158: 6.214095657e-08 | M158: 0.005368978648 | S158: 1.605833609 | T158: 1.609132354 | U158: 59.0001 | V158: 2.048924892e-09 | W158: 0.0001770271106 | X158: 5.394222296e-09 | Y158: 0.0004660608063 | AE158: 2.999266445 | AF158: 0.785 | AG158: 9.708122225e-09 | AH158: 0.0008387817603
A159: 1.018325996 | B159: 13.33 | C159: 2.944422668e-10 | D159: 2.543981185e-05 | J159: 4.671339375 | K159: 0.1408 | L159: 6.175047303e-08 | M159: 0.00533524087 | S159: 1.602071224 | T159: 1.605334657 | U159: 59.5001 | V159: 2.027962515e-09 | W159: 0.0001752159613 | X159: 5.330867801e-09 | Y159: 0.000460586978 | AE159: 2.993863099 | AF159: 0.79 | AG159: 9.620988121e-09 | AH159: 0.0008312533736
A160: 1.016197189 | B160: 13.43 | C160: 2.912250534e-10 | D160: 2.516184461e-05 | J160: 4.664699067 | K160: 0.1418 | L160: 6.13651808e-08 | M160: 0.005301951621 | S160: 1.598348802 | T160: 1.601577591 | U160: 60.0001 | V160: 2.007383517e-09 | W160: 0.0001734379359 | X160: 5.268778276e-09 | Y160: 0.000455222443 | AE160: 2.988503486 | AF160: 0.795 | AG160: 9.535178452e-09 | AH160: 0.0008238394183
A161: 1.014088574 | B161: 13.53 | C161: 2.880664703e-10 | D161: 2.488894303e-05 | J161: 4.658114763 | K161: 0.1428 | L161: 6.098497499e-08 | M161: 0.005269101839 | S161: 1.594665594 | T161: 1.597860388 | U161: 60.5001 | V161: 1.987177825e-09 | W161: 0.0001716921641 | X161: 5.207918234e-09 | Y161: 0.0004499641354 | AE161: 2.983186981 | AF161: 0.8 | AG161: 9.450664948e-09 | AH161: 0.0008165374515
A162: 1.011999815 | B162: 13.63 | C162: 2.849650274e-10 | D162: 2.462097837e-05 | J162: 4.651585603 | K162: 0.1438 | L162: 6.060975352e-08 | M162: 0.005236682704 | S162: 1.59102087 | T162: 1.594182301 | U162: 61.0001 | V162: 1.96733571e-09 | W162: 0.0001699778053 | X162: 5.148253469e-09 | Y162: 0.0004448090997 | AE162: 2.97791297 | AF162: 0.805 | AG162: 9.36742011e-09 | AH162: 0.0008093450975
A163: 1.009930579 | B163: 13.73 | C163: 2.819192831e-10 | D163: 2.435782606e-05 | J163: 4.645110748 | K163: 0.1448 | L163: 6.023941707e-08 | M163: 0.005204685635 | S163: 1.587413918 | T163: 1.590542603 | U163: 61.5001 | V163: 1.947847773e-09 | W163: 0.0001682940476 | X163: 5.089750994e-09 | Y163: 0.0004397544859 | AE163: 2.972680854 | AF163: 0.81 | AG163: 9.285417191e-09 | AH163: 0.0008022600453
A164: 1.007880545 | B164: 13.83 | C164: 2.789278424e-10 | D164: 2.409936558e-05 | J164: 4.638689376 | K164: 0.1458 | L164: 5.987386896e-08 | M164: 0.005173102278 | S164: 1.583844048 | T164: 1.586940586 | U164: 62.0001 | V164: 1.928704932e-09 | W164: 0.0001666401061 | X164: 5.032378991e-09 | Y164: 0.0004347975448 | AE164: 2.967490043 | AF164: 0.815 | AG164: 9.204630166e-09 | AH164: 0.0007952800464
A165: 1.005849397 | B165: 13.93 | C165: 2.759893547e-10 | D165: 2.384548025e-05 | J165: 4.632320681 | K165: 0.1468 | L165: 5.951301506e-08 | M165: 0.005141924501 | S165: 1.580310586 | T165: 1.58337556 | U165: 62.5001 | V165: 1.909898406e-09 | W165: 0.0001650152223 | X165: 4.976106761e-09 | Y165: 0.0004299356242 | AE165: 2.962339962 | AF165: 0.82 | AG165: 9.125033713e-09 | AH165: 0.0007884029128
A166: 1.003836828 | B166: 14.03 | C166: 2.731025126e-10 | D166: 2.359605709e-05 | J166: 4.626003878 | K166: 0.1478 | L166: 5.915676374e-08 | M166: 0.005111144387 | S166: 1.576812875 | T166: 1.579846854 | U166: 63.0001 | V166: 1.891419705e-09 | W166: 0.0001634186625 | X166: 4.920904675e-09 | Y166: 0.0004251661639 | AE166: 2.957230045 | AF166: 0.825 | AG166: 9.046603185e-09 | AH166: 0.0007816265152
A167: 1.001842537 | B167: 14.13 | C167: 2.702660499e-10 | D167: 2.335098671e-05 | J167: 4.619738198 | K167: 0.1488 | L167: 5.880502573e-08 | M167: 0.005080754223 | S167: 1.573350276 | T167: 1.576353814 | U167: 63.5001 | V167: 1.873260619e-09 | W167: 0.0001618497175 | X167: 4.866744129e-09 | Y167: 0.0004204866928 | AE167: 2.952159739 | AF167: 0.83 | AG167: 8.969314593e-09 | AH167: 0.0007749487808
A168: 0.9998662303 | B168: 14.23 | C168: 2.674787402e-10 | D168: 2.311016315e-05 | J168: 4.613522886 | K168: 0.1498 | L168: 5.84577141e-08 | M168: 0.005050746498 | S168: 1.569922167 | T168: 1.572895803 | U168: 64.0001 | V168: 1.855413203e-09 | W168: 0.0001603077007 | X168: 4.8135975e-09 | Y168: 0.000415894824 | AE168: 2.9471285 | AF168: 0.835 | AG168: 8.893144579e-09 | AH168: 0.0007683676916
A169: 0.9979076211 | B169: 14.33 | C169: 2.647393951e-10 | D169: 2.287348374e-05 | J169: 4.607357206 | K169: 0.1508 | L169: 5.811474416e-08 | M169: 0.005021113895 | S169: 1.56652794 | T169: 1.569472201 | U169: 64.5001 | V169: 1.83786977e-09 | W169: 0.0001587919481 | X169: 4.761438107e-09 | Y169: 0.0004113882525 | AE169: 2.942135797 | AF169: 0.84 | AG169: 8.818070402e-09 | AH169: 0.0007618812827
A170: 0.9959664291 | B170: 14.43 | C170: 2.620468632e-10 | D170: 2.264084898e-05 | J170: 4.601240436 | K170: 0.1518 | L170: 5.777603337e-08 | M170: 0.004991849283 | S170: 1.563167004 | T170: 1.566082402 | U170: 65.0001 | V170: 1.82062288e-09 | W170: 0.0001573018168 | X170: 4.71024017e-09 | Y170: 0.0004069647507 | AE170: 2.937181107 | AF170: 0.845 | AG170: 8.744069913e-09 | AH170: 0.0007554876405
A171: 0.9940423804 | B171: 14.53 | C171: 2.594000283e-10 | D171: 2.241216245e-05 | J171: 4.595171869 | K171: 0.1528 | L171: 5.74415013e-08 | M171: 0.004962945713 | S171: 1.55983878 | T171: 1.562725816 | U171: 65.5001 | V171: 1.803665329e-09 | W171: 0.0001558366844 | X171: 4.659978772e-09 | Y171: 0.0004026221659 | AE171: 2.932263919 | AF171: 0.85 | AG171: 8.671121538e-09 | AH171: 0.0007491849009
A172: 0.9921352071 | B172: 14.63 | C172: 2.567978083e-10 | D172: 2.218733063e-05 | J172: 4.589150816 | K172: 0.1538 | L172: 5.711106956e-08 | M172: 0.00493439641 | S172: 1.556542706 | T172: 1.559401868 | U172: 66.0001 | V172: 1.786990141e-09 | W172: 0.0001543959482 | X172: 4.610629828e-09 | Y172: 0.0003983584171 | AE172: 2.92738373 | AF172: 0.855 | AG172: 8.599204262e-09 | AH172: 0.0007429712482
A173: 0.9902446474 | B173: 14.73 | C173: 2.542391538e-10 | D173: 2.196626288e-05 | J173: 4.583176596 | K173: 0.1548 | L173: 5.678466172e-08 | M173: 0.004906194772 | S173: 1.553278234 | T173: 1.556109997 | U173: 66.5001 | V173: 1.770590558e-09 | W173: 0.0001529790243 | X173: 4.562170047e-09 | Y173: 0.0003941714921 | AE173: 2.922540049 | AF173: 0.86 | AG173: 8.528297607e-09 | AH173: 0.0007368449133
A174: 0.9883704452 | B174: 14.83 | C174: 2.517230471e-10 | D174: 2.174887127e-05 | J174: 4.577248549 | K174: 0.1558 | L174: 5.646220324e-08 | M174: 0.00487833436 | S174: 1.550044827 | T174: 1.552849656 | U174: 67.0001 | V174: 1.754460035e-09 | W174: 0.000151585347 | X174: 4.514576902e-09 | Y174: 0.0003900594444 | AE174: 2.917732392 | AF174: 0.865 | AG174: 8.458381619e-09 | AH174: 0.0007308041719
A175: 0.9865123501 | B175: 14.93 | C175: 2.492485008e-10 | D175: 2.153507047e-05 | J175: 4.571366023 | K175: 0.1568 | L175: 5.614362146e-08 | M175: 0.004850808894 | S175: 1.546841963 | T175: 1.54962031 | U175: 67.5001 | V175: 1.738592225e-09 | W175: 0.0001502143682 | X175: 4.4678286e-09 | Y175: 0.000386020391 | AE175: 2.912960285 | AF175: 0.87 | AG175: 8.38943685e-09 | AH175: 0.0007248473438
A176: 0.9846701172 | B176: 15.03 | C176: 2.468145571e-10 | D176: 2.132477773e-05 | J176: 4.565528383 | K176: 0.1578 | L176: 5.582884548e-08 | M176: 0.004823612249 | S176: 1.543669131 | T176: 1.546421439 | U176: 68.0001 | V176: 1.722980978e-09 | W176: 0.0001488655565 | X176: 4.42190405e-09 | Y176: 0.0003820525099 | AE176: 2.908223264 | AF176: 0.875 | AG176: 8.321444342e-09 | AH176: 0.0007189727911
A177: 0.9828435068 | B177: 15.13 | C177: 2.44420286e-10 | D177: 2.111791271e-05 | J177: 4.559735004 | K177: 0.1588 | L177: 5.551780615e-08 | M177: 0.004796738452 | S177: 1.540525834 | T177: 1.543252535 | U177: 68.5001 | V177: 1.707620332e-09 | W177: 0.0001475383967 | X177: 4.376782838e-09 | Y177: 0.0003781540372 | AE177: 2.903520873 | AF177: 0.88 | AG177: 8.254385613e-09 | AH177: 0.000713178917
A178: 0.9810322847 | B178: 15.23 | C178: 2.420647852e-10 | D178: 2.091439744e-05 | J178: 4.553985275 | K178: 0.1598 | L178: 5.521043601e-08 | M178: 0.004770181671 | S178: 1.537411586 | T178: 1.5401131 | U178: 69.0001 | V178: 1.692504505e-09 | W178: 0.0001462323892 | X178: 4.332445202e-09 | Y178: 0.0003743232655 | AE178: 2.898852663 | AF178: 0.885 | AG178: 8.188242643e-09 | AH178: 0.0007074641643
A179: 0.9792362212 | B179: 15.33 | C179: 2.397471783e-10 | D179: 2.071415621e-05 | J179: 4.548278598 | K179: 0.1608 | L179: 5.490666921e-08 | M179: 0.00474393622 | S179: 1.534325911 | T179: 1.53700265 | U179: 69.5001 | V179: 1.677627886e-09 | W179: 0.0001449470494 | X179: 4.288872002e-09 | Y179: 0.000370558541 | AE179: 2.894218195 | AF179: 0.89 | AG179: 8.122997856e-09 | AH179: 0.0007018270148
A180: 0.977455092 | B180: 15.43 | C180: 2.374666146e-10 | D180: 2.05171155e-05 | J180: 4.542614385 | K180: 0.1618 | L180: 5.460644149e-08 | M180: 0.004717996545 | S180: 1.531268346 | T180: 1.533920712 | U180: 70.0001 | V180: 1.662985034e-09 | W180: 0.000143681907 | X180: 4.246044701e-09 | Y180: 0.0003668582622 | AE180: 2.889617038 | AF180: 0.895 | AG180: 8.058634113e-09 | AH180: 0.0006962659873
A181: 0.9756886772 | B181: 15.53 | C181: 2.352222675e-10 | D181: 2.032320391e-05 | J181: 4.536992061 | K181: 0.1628 | L181: 5.430969012e-08 | M181: 0.004692357227 | S181: 1.528238438 | T181: 1.530866823 | U181: 70.5001 | V181: 1.648570669e-09 | W181: 0.0001424365058 | X181: 4.203945337e-09 | Y181: 0.0003632208771 | AE181: 2.885048767 | AF181: 0.9 | AG181: 7.995134693e-09 | AH181: 0.0006907796375
A182: 0.9739367618 | B182: 15.63 | C182: 2.330133343e-10 | D182: 2.013235208e-05 | J182: 4.531411061 | K182: 0.1638 | L182: 5.401635388e-08 | M182: 0.004667012975 | S182: 1.525235745 | T182: 1.527840533 | U182: 71.0001 | V182: 1.634379664e-09 | W182: 0.000141210403 | X182: 4.162556506e-09 | Y182: 0.0003596448821 | AE182: 2.880512969 | AF182: 0.905 | AG182: 7.932483284e-09 | AH182: 0.0006853665557
A183: 0.972199135 | B183: 15.73 | C183: 2.308390349e-10 | D183: 1.994449261e-05 | J183: 4.525870832 | K183: 0.1648 | L183: 5.372637295e-08 | M183: 0.004641958623 | S183: 1.522259834 | T183: 1.5248414 | U183: 71.5001 | V183: 1.620407044e-09 | W183: 0.0001400031686 | X183: 4.121861337e-09 | Y183: 0.0003561288195 | AE183: 2.876009233 | AF183: 0.91 | AG183: 7.870663968e-09 | AH183: 0.0006800253669
A184: 0.9704755907 | B184: 15.83 | C184: 2.286986112e-10 | D184: 1.975956001e-05 | J184: 4.520370833 | K184: 0.1658 | L184: 5.343968896e-08 | M184: 0.004617189126 | S184: 1.519310283 | T184: 1.521868993 | U184: 72.0001 | V184: 1.606647977e-09 | W184: 0.0001388143852 | X184: 4.081843476e-09 | Y184: 0.0003526712764 | AE184: 2.871537159 | AF184: 0.915 | AG184: 7.809661215e-09 | AH184: 0.0006747547289
A185: 0.9687659267 | B185: 15.93 | C185: 2.265913264e-10 | D185: 1.95774906e-05 | J185: 4.51491053 | K185: 0.1668 | L185: 5.315624487e-08 | M185: 0.004592699556 | S185: 1.516386679 | T185: 1.51892289 | U185: 72.5001 | V185: 1.59309777e-09 | W185: 0.0001376436473 | X185: 4.042487063e-09 | Y185: 0.0003492708822 | AE185: 2.867096354 | AF185: 0.92 | AG185: 7.749459862e-09 | AH185: 0.0006695533321
A186: 0.9670699452 | B186: 16.03 | C186: 2.245164643e-10 | D186: 1.939822252e-05 | J186: 4.509489401 | K186: 0.1678 | L186: 5.287598496e-08 | M186: 0.0045684851 | S186: 1.513488617 | T186: 1.51600268 | U186: 73.0001 | V186: 1.579751864e-09 | W186: 0.0001364905611 | X186: 4.003776715e-09 | Y186: 0.0003459263082 | AE186: 2.862686429 | AF186: 0.925 | AG186: 7.690045113e-09 | AH186: 0.0006644198977
A187: 0.9653874525 | B187: 16.13 | C187: 2.224733283e-10 | D187: 1.922169557e-05 | J187: 4.504106936 | K187: 0.1688 | L187: 5.259885481e-08 | M187: 0.004544541056 | S187: 1.510615704 | T187: 1.51310796 | U187: 73.5001 | V187: 1.566605831e-09 | W187: 0.0001353547438 | X187: 3.96569751e-09 | Y187: 0.0003426362649 | AE187: 2.858307007 | AF187: 0.93 | AG187: 7.63140252e-09 | AH187: 0.0006593531777
A188: 0.9637182585 | B188: 16.23 | C188: 2.204612411e-10 | D188: 1.904785123e-05 | J188: 4.49876263 | K188: 0.1698 | L188: 5.232480124e-08 | M188: 0.004520862827 | S188: 1.507767552 | T188: 1.510238337 | U188: 74.0001 | V188: 1.553655367e-09 | W188: 0.0001342358237 | X188: 3.928234968e-09 | Y188: 0.0003393995012 | AE188: 2.853957713 | AF188: 0.935 | AG188: 7.573517977e-09 | AH188: 0.0006543519532
A189: 0.9620621771 | B189: 16.33 | C189: 2.18479544e-10 | D189: 1.88766326e-05 | J189: 4.493455992 | K189: 0.1708 | L189: 5.205377226e-08 | M189: 0.004497445923 | S189: 1.504943785 | T189: 1.507393426 | U189: 74.5001 | V189: 1.540896287e-09 | W189: 0.0001331334392 | X189: 3.891375037e-09 | Y189: 0.0003362148032 | AE189: 2.84963818 | AF189: 0.94 | AG189: 7.516377709e-09 | AH189: 0.0006494150341
A190: 0.9604190261 | B190: 16.43 | C190: 2.165275959e-10 | D190: 1.870798428e-05 | J190: 4.488186538 | K190: 0.1718 | L190: 5.178571709e-08 | M190: 0.004474285957 | S190: 1.502144032 | T190: 1.504572849 | U190: 75.0001 | V190: 1.528324526e-09 | W190: 0.000132047239 | X190: 3.855104076e-09 | Y190: 0.0003330809921 | AE190: 2.845348049 | AF190: 0.945 | AG190: 7.459968265e-09 | AH190: 0.0006445412581
A191: 0.9587886266 | B191: 16.53 | C191: 2.146047733e-10 | D191: 1.854185241e-05 | J191: 4.482953792 | K191: 0.1728 | L191: 5.152058607e-08 | M191: 0.004451378636 | S191: 1.499367933 | T191: 1.50177624 | U191: 75.5001 | V191: 1.515936128e-09 | W191: 0.0001309768814 | X191: 3.81940884e-09 | Y191: 0.0003299969238 | AE191: 2.841086964 | AF191: 0.95 | AG191: 7.404276503e-09 | AH191: 0.0006397294898
A192: 0.9571708035 | B192: 16.63 | C192: 2.127104693e-10 | D192: 1.837818455e-05 | J192: 4.47775729 | K192: 0.1738 | L192: 5.125833065e-08 | M192: 0.004428719768 | S192: 1.496615135 | T192: 1.499003237 | U192: 76.0001 | V192: 1.503727247e-09 | W192: 0.0001299220341 | X192: 3.78427647e-09 | Y192: 0.000326961487 | AE192: 2.836854579 | AF192: 0.955 | AG192: 7.349289587e-09 | AH192: 0.0006349786203
A193: 0.955565385 | B193: 16.73 | C193: 2.108440933e-10 | D193: 1.821692966e-05 | J193: 4.472596573 | K193: 0.1748 | L193: 5.099890336e-08 | M193: 0.004406305251 | S193: 1.493885289 | T193: 1.496253487 | U193: 76.5001 | V193: 1.491694143e-09 | W193: 0.0001288823739 | X193: 3.749694472e-09 | Y193: 0.0003239736024 | AE193: 2.832650551 | AF193: 0.96 | AG193: 7.294994976e-09 | AH193: 0.0006302875659
A194: 0.9539722027 | B194: 16.83 | C194: 2.090050702e-10 | D194: 1.805803807e-05 | J194: 4.467471193 | K194: 0.1758 | L194: 5.07422578e-08 | M194: 0.004384131074 | S194: 1.491178059 | T194: 1.493526647 | U194: 77.0001 | V194: 1.479833175e-09 | W194: 0.0001278575864 | X194: 3.715650713e-09 | Y194: 0.0003210322216 | AE194: 2.828474543 | AF194: 0.965 | AG194: 7.241380415e-09 | AH194: 0.0006256552679
A195: 0.9523910915 | B195: 16.93 | C195: 2.071928402e-10 | D195: 1.790146139e-05 | J195: 4.462380708 | K195: 0.1768 | L195: 5.048834855e-08 | M195: 0.004362193315 | S195: 1.488493113 | T195: 1.490822377 | U195: 77.5001 | V195: 1.468140804e-09 | W195: 0.0001268473655 | X195: 3.6821334e-09 | Y195: 0.0003181363258 | AE195: 2.824326226 | AF195: 0.97 | AG195: 7.188433929e-09 | AH195: 0.0006210806915
A196: =2.103*B196^(-0.28) -> 0.9508218893 | B196: 17.03 | C196: 2.054068581e-10 | D196: =C196*86400 -> 1.774715254e-05 | J196: =3.15*K196^(-0.201) -> 4.457324686 | K196: 0.1778 | L196: =0.00000000007*J196^4.4 -> 5.023713122e-08 | M196: 0.004340488137 | S196: 1.485830126 | T196: =5.04*(U196)^(-0.28) -> 1.488140348 | U196: 78.0001 | V196: =0.0000000005*(S196^5)/(1+S196) -> 1.456613582e-09 | W196: =V196*86400 -> 0.0001258514135 | X196: =0.0000000005*(T196^5) -> 3.649131075e-09 | Y196: =X196*86400 -> 0.0003152849249 | AE196: 2.820205274 | AF196: 0.975 | AG196: =0.00000000004*AE196^5 -> 7.136143814e-09 | AH196: =AG196*86400 -> 0.0006165628255
A197: 0.9492644374 | B197: 17.13 | C197: 2.036465929e-10 | D197: 1.759506563e-05 | J197: 4.452302702 | K197: 0.1788 | L197: 4.998856236e-08 | M197: 0.004319011788 | S197: 1.483188779 | T197: 1.485480235 | U197: 78.5001 | V197: 1.445248154e-09 | W197: 0.0001248694405 | X197: 3.616632599e-09 | Y197: 0.0003124770566 | AE197: 2.816111369 | AF197: =AF196+0.005 -> 0.98 | AG197: 7.084498628e-09 | AH197: 0.0006121006815
A198: 0.9477185799 | B198: 17.23 | C198: =AVERAGE(0.000000000003,0.0000000003,0.0000000005)*A198^5.25 -> 2.019115275e-10 | D198: 1.744515598e-05 | J198: 4.447314338 | K198: 0.1798 | L198: 4.974259948e-08 | M198: =L198*86400 -> 0.004297760595 | S198: =5.04*(U198+0.434)^(-0.28) -> 1.480568762 | T198: 1.482841722 | U198: 79.0001 | V198: 1.434041254e-09 | W198: 0.0001239011644 | X198: 3.584627144e-09 | Y198: 0.0003097117853 | AE198: =2.8*AF198^(-0.284) -> 2.812044195 | AF198: 0.985 | AG198: 7.033487189e-09 | AH198: 0.0006076932931
A199: 0.946184164 | B199: 17.33 | C199: 2.002011579e-10 | D199: 1.729738004e-05 | J199: 4.442359183 | K199: 0.1808 | L199: 4.949920098e-08 | M199: 0.004276730965 | S199: 1.477969771 | T199: 1.480224498 | U199: 79.5001 | V199: 1.422989702e-09 | W199: 0.0001229463103 | X199: 3.553104181e-09 | Y199: 0.0003069882012 | AE199: 2.808003444 | AF199: 0.99 | AG199: 6.983098559e-09 | AH199: 0.0006033397155
A200: 0.9446610397 | B200: 17.43 | C200: 1.985149932e-10 | D200: 1.715169541e-05 | J200: 4.437436835 | K200: 0.1818 | L200: 4.925832618e-08 | M200: 0.004255919382 | S200: 1.475391505 | T200: 1.477628259 | U200: 80.0001 | V200: 1.412090401e-09 | W200: 0.0001220046107 | X200: 3.522053469e-09 | Y200: 0.0003043054197 | AE200: 2.803988812 | AF200: 0.995 | AG200: 6.933322049e-09 | AH200: 0.000599039025
... 1600 more rows

Sheet FLOPAM
A1: Result: | B1: Simulated Height | C1: Time(Years) | D1: Simulated Surface Flux | E1: Top flux (mm/d) | G1: Time(Days) | H1: Tailings Height(m) | I1: Top flux(mm/day) | J1: Day | K1: UNSATCON H [m]
A2: Unit: | B2: m | C2: m | D2: m/day | G2: 0.05093 | H2: 99.99981 | I2: 3.71246
A3: 0 | B3: 100 | C3: =A3/365 -> 0 | D3: 0.003665 | E3: =D3*1000 -> 3.665 | G3: 0.10069 | H3: 99.99963 | I3: 3.71241
A4: 1 | B4: 100 | C4: =A4/365 -> 0.002739726027 | D4: 0.003664 | E4: =D4*1000 -> 3.664 | G4: 0.15046 | H4: 99.99944 | I4: 3.71237
A5: 2 | B5: 99.99 | C5: 0.005479452055 | D5: 0.003664 | E5: 3.664 | G5: 0.20023 | H5: 99.99926 | I5: 3.71232
A6: 3 | B6: 99.99 | C6: 0.008219178082 | D6: 0.003664 | E6: 3.664 | G6: 0.25 | H6: 99.99907 | I6: 3.71227
A7: 4 | B7: 99.99 | C7: 0.01095890411 | D7: 0.003664 | E7: 3.664 | G7: 0.30093 | H7: 99.99888 | I7: 3.71222
A8: 5 | B8: 99.98 | C8: 0.01369863014 | D8: 0.003664 | E8: 3.664 | G8: 0.35069 | H8: 99.9987 | I8: 3.71217
A9: 6 | B9: 99.98 | C9: 0.01643835616 | D9: 0.003664 | E9: 3.664 | G9: 0.40046 | H9: 99.99851 | I9: 3.71212
A10: 7 | B10: 99.98 | C10: 0.01917808219 | D10: 0.003664 | E10: 3.664 | G10: 0.45023 | H10: 99.99833 | I10: 3.71207
A11: 8 | B11: 99.97 | C11: 0.02191780822 | D11: 0.003664 | E11: 3.664 | G11: 0.5 | H11: 99.99814 | I11: 3.71202
A12: 9 | B12: 99.97 | C12: 0.02465753425 | D12: 0.003664 | E12: 3.664 | G12: 0.55093 | H12: 99.99795 | I12: 3.71197
A13: 10 | B13: 99.97 | C13: 0.02739726027 | D13: 0.003664 | E13: 3.664 | G13: 0.60069 | H13: 99.99777 | I13: 3.71193
A14: 11 | B14: 99.96 | C14: 0.0301369863 | D14: 0.003664 | E14: 3.664 | G14: 0.65046 | H14: 99.99759 | I14: 3.71188
A15: 12 | B15: 99.96 | C15: 0.03287671233 | D15: 0.003664 | E15: 3.664 | G15: 0.70023 | H15: 99.9974 | I15: 3.71183
A16: 13 | B16: 99.96 | C16: 0.03561643836 | D16: 0.003664 | E16: 3.664 | G16: 0.75 | H16: 99.99722 | I16: 3.71178
A17: 14 | B17: 99.95 | C17: 0.03835616438 | D17: 0.003664 | E17: 3.664 | G17: 0.80093 | H17: 99.99703 | I17: 3.71173
A18: 15 | B18: 99.95 | C18: 0.04109589041 | D18: 0.003664 | E18: 3.664 | G18: 0.85069 | H18: 99.99684 | I18: 3.71168
A19: 16 | B19: 99.94 | C19: 0.04383561644 | D19: 0.003664 | E19: 3.664 | G19: 0.90046 | H19: 99.99666 | I19: 3.71164
A20: 17 | B20: 99.94 | C20: 0.04657534247 | D20: 0.003664 | E20: 3.664 | G20: 0.95023 | H20: 99.99647 | I20: 3.71159
A21: 18 | B21: 99.94 | C21: 0.04931506849 | D21: 0.003664 | E21: 3.664 | G21: 1 | H21: 99.99629 | I21: 3.71154
A22: 19 | B22: 99.93 | C22: 0.05205479452 | D22: 0.003664 | E22: 3.664 | G22: 1.05093 | H22: 99.9961 | I22: 3.71149
A23: 20 | B23: 99.93 | C23: 0.05479452055 | D23: 0.003664 | E23: 3.664 | G23: 1.10069 | H23: 99.99591 | I23: 3.71144
A24: 21 | B24: 99.93 | C24: 0.05753424658 | D24: 0.003664 | E24: 3.664 | G24: 1.15046 | H24: 99.99573 | I24: 3.71139
A25: 22 | B25: 99.92 | C25: 0.0602739726 | D25: 0.003664 | E25: 3.664 | G25: 1.20023 | H25: 99.99554 | I25: 3.71135
A26: 23 | B26: 99.92 | C26: 0.06301369863 | D26: 0.003664 | E26: 3.664 | G26: 1.25 | H26: 99.99536 | I26: 3.7113
A27: 24 | B27: 99.92 | C27: 0.06575342466 | D27: 0.003664 | E27: 3.664 | G27: 1.30093 | H27: 99.99517 | I27: 3.71125
A28: 25 | B28: 99.91 | C28: 0.06849315068 | D28: 0.003664 | E28: 3.664 | G28: 1.35069 | H28: 99.99499 | I28: 3.7112
A29: 26 | B29: 99.91 | C29: 0.07123287671 | D29: 0.003664 | E29: 3.664 | G29: 1.40046 | H29: 99.9948 | I29: 3.71115
A30: 27 | B30: 99.91 | C30: 0.07397260274 | D30: 0.003664 | E30: 3.664 | G30: 1.45023 | H30: 99.99462 | I30: 3.7111
A31: 28 | B31: 99.9 | C31: 0.07671232877 | D31: 0.003664 | E31: 3.664 | G31: 1.5 | H31: 99.99443 | I31: 3.71106
A32: 29 | B32: 99.9 | C32: 0.07945205479 | D32: 0.003664 | E32: 3.664 | G32: 1.55093 | H32: 99.99424 | I32: 3.71101
A33: 30 | B33: 99.9 | C33: 0.08219178082 | D33: 0.003664 | E33: 3.664 | G33: 1.60069 | H33: 99.99406 | I33: 3.71096
A34: 31 | B34: 99.89 | C34: 0.08493150685 | D34: 0.003664 | E34: 3.664 | G34: 1.65046 | H34: 99.99387 | I34: 3.71091
A35: 32 | B35: 99.89 | C35: 0.08767123288 | D35: 0.003664 | E35: 3.664 | G35: 1.70023 | H35: 99.99369 | I35: 3.71086
A36: 33 | B36: 99.89 | C36: 0.0904109589 | D36: 0.003664 | E36: 3.664 | G36: 1.75 | H36: 99.9935 | I36: 3.71082
A37: 34 | B37: 99.88 | C37: 0.09315068493 | D37: 0.003664 | E37: 3.664 | G37: 1.80093 | H37: 99.99332 | I37: 3.71077
A38: 35 | B38: 99.88 | C38: 0.09589041096 | D38: 0.003664 | E38: 3.664 | G38: 1.85069 | H38: 99.99313 | I38: 3.71072
A39: 36 | B39: 99.88 | C39: 0.09863013699 | D39: 0.003664 | E39: 3.664 | G39: 1.90046 | H39: 99.99295 | I39: 3.71067
A40: 37 | B40: 99.87 | C40: 0.101369863 | D40: 0.003664 | E40: 3.664 | G40: 1.95023 | H40: 99.99276 | I40: 3.71062
A41: 38 | B41: 99.87 | C41: 0.104109589 | D41: 0.003664 | E41: 3.664 | G41: 2 | H41: 99.99258 | I41: 3.71058
A42: 39 | B42: 99.87 | C42: 0.1068493151 | D42: 0.003664 | E42: 3.664 | G42: 2.05093 | H42: 99.99239 | I42: 3.71053
A43: 40 | B43: 99.86 | C43: 0.1095890411 | D43: 0.003664 | E43: 3.664 | G43: 2.10069 | H43: 99.9922 | I43: 3.71048
A44: 41 | B44: 99.86 | C44: 0.1123287671 | D44: 0.003664 | E44: 3.664 | G44: 2.15046 | H44: 99.99202 | I44: 3.71043
A45: 42 | B45: 99.86 | C45: 0.1150684932 | D45: 0.003664 | E45: 3.664 | G45: 2.20023 | H45: 99.99183 | I45: 3.71038
A46: 43 | B46: 99.85 | C46: 0.1178082192 | D46: 0.003664 | E46: 3.664 | G46: 2.25 | H46: 99.99165 | I46: 3.71034
A47: 44 | B47: 99.85 | C47: 0.1205479452 | D47: 0.003664 | E47: 3.664 | G47: 2.30093 | H47: 99.99146 | I47: 3.71029
A48: 45 | B48: 99.85 | C48: 0.1232876712 | D48: 0.003664 | E48: 3.664 | G48: 2.35069 | H48: 99.99128 | I48: 3.71024
A49: 46 | B49: 99.84 | C49: 0.1260273973 | D49: 0.003664 | E49: 3.664 | G49: 2.40046 | H49: 99.99109 | I49: 3.71019
A50: 47 | B50: 99.84 | C50: 0.1287671233 | D50: 0.003664 | E50: 3.664 | G50: 2.45023 | H50: 99.99091 | I50: 3.71015
A51: 48 | B51: 99.84 | C51: 0.1315068493 | D51: 0.003664 | E51: 3.664 | G51: 2.5 | H51: 99.99072 | I51: 3.7101
A52: 49 | B52: 99.83 | C52: 0.1342465753 | D52: 0.003664 | E52: 3.664 | G52: 2.55093 | H52: 99.99053 | I52: 3.71005
A53: 50 | B53: 99.83 | C53: 0.1369863014 | D53: 0.003664 | E53: 3.664 | G53: 2.60069 | H53: 99.99035 | I53: 3.71
A54: 51 | B54: 99.83 | C54: 0.1397260274 | D54: 0.003664 | E54: 3.664 | G54: 2.65046 | H54: 99.99016 | I54: 3.70996
A55: 52 | B55: 99.82 | C55: 0.1424657534 | D55: 0.003664 | E55: 3.664 | G55: 2.70023 | H55: 99.98998 | I55: 3.70991
A56: 53 | B56: 99.82 | C56: 0.1452054795 | D56: 0.003664 | E56: 3.664 | G56: 2.75 | H56: 99.98979 | I56: 3.70986
A57: 54 | B57: 99.82 | C57: 0.1479452055 | D57: 0.003664 | E57: 3.664 | G57: 2.80093 | H57: 99.98961 | I57: 3.70981
A58: 55 | B58: 99.81 | C58: 0.1506849315 | D58: 0.003664 | E58: 3.664 | G58: 2.85069 | H58: 99.98942 | I58: 3.70977
A59: 56 | B59: 99.81 | C59: 0.1534246575 | D59: 0.003664 | E59: 3.664 | G59: 2.90046 | H59: 99.98924 | I59: 3.70972
A60: 57 | B60: 99.81 | C60: 0.1561643836 | D60: 0.003664 | E60: 3.664 | G60: 2.95023 | H60: 99.98905 | I60: 3.70967
A61: 58 | B61: 99.8 | C61: 0.1589041096 | D61: 0.003664 | E61: 3.664 | G61: 3 | H61: 99.98887 | I61: 3.70963
A62: 59 | B62: 99.8 | C62: 0.1616438356 | D62: 0.003664 | E62: 3.664 | G62: 3.05093 | H62: 99.98868 | I62: 3.70958
A63: 60 | B63: 99.8 | C63: 0.1643835616 | D63: 0.003664 | E63: 3.664 | G63: 3.10069 | H63: 99.98849 | I63: 3.70953
A64: 61 | B64: 99.79 | C64: 0.1671232877 | D64: 0.003664 | E64: 3.664 | G64: 3.15046 | H64: 99.98831 | I64: 3.70948
A65: 62 | B65: 99.79 | C65: 0.1698630137 | D65: 0.003664 | E65: 3.664 | G65: 3.20023 | H65: 99.98812 | I65: 3.70944
A66: 63 | B66: 99.79 | C66: 0.1726027397 | D66: 0.003664 | E66: 3.664 | G66: 3.25 | H66: 99.98794 | I66: 3.70939
A67: 64 | B67: 99.78 | C67: 0.1753424658 | D67: 0.003664 | E67: 3.664 | G67: 3.30093 | H67: 99.98775 | I67: 3.70934
A68: 65 | B68: 99.78 | C68: =A68/365 -> 0.1780821918 | D68: 0.003664 | E68: =D68*1000 -> 3.664 | G68: 3.35069 | H68: 99.98757 | I68: 3.70929
A69: 66 | B69: 99.78 | C69: 0.1808219178 | D69: 0.003664 | E69: 3.664 | G69: 3.40046 | H69: 99.98738 | I69: 3.70925
A70: 67 | B70: 99.77 | C70: 0.1835616438 | D70: 0.003664 | E70: 3.664 | G70: 3.45023 | H70: 99.9872 | I70: 3.7092
A71: 68 | B71: 99.77 | C71: 0.1863013699 | D71: 0.003664 | E71: 3.664 | G71: 3.5 | H71: 99.98701 | I71: 3.70915
A72: 69 | B72: 99.77 | C72: 0.1890410959 | D72: 0.003664 | E72: 3.664 | G72: 3.55093 | H72: 99.98682 | I72: 3.70911
A73: 70 | B73: 99.76 | C73: 0.1917808219 | D73: 0.003664 | E73: 3.664 | G73: 3.60069 | H73: 99.98664 | I73: 3.70906
A74: 71 | B74: 99.76 | C74: 0.1945205479 | D74: 0.003664 | E74: 3.664 | G74: 3.65046 | H74: 99.98645 | I74: 3.70901
A75: 72 | B75: 99.76 | C75: 0.197260274 | D75: 0.003664 | E75: 3.664 | G75: 3.70023 | H75: 99.98627 | I75: 3.70897
A76: 73 | B76: 99.75 | C76: 0.2 | D76: 0.003664 | E76: 3.664 | G76: 3.75 | H76: 99.98608 | I76: 3.70892
A77: 74 | B77: 99.75 | C77: 0.202739726 | D77: 0.003664 | E77: 3.664 | G77: 3.80093 | H77: 99.9859 | I77: 3.70887
A78: 75 | B78: 99.75 | C78: 0.2054794521 | D78: 0.003664 | E78: 3.664 | G78: 3.85069 | H78: 99.98571 | I78: 3.70882
A79: 76 | B79: 99.74 | C79: 0.2082191781 | D79: 0.003664 | E79: 3.664 | G79: 3.90046 | H79: 99.98553 | I79: 3.70878
A80: 77 | B80: 99.74 | C80: 0.2109589041 | D80: 0.003664 | E80: 3.664 | G80: 3.95023 | H80: 99.98534 | I80: 3.70873
A81: 78 | B81: 99.74 | C81: 0.2136986301 | D81: 0.003664 | E81: 3.664 | G81: 4 | H81: 99.98516 | I81: 3.70868
A82: 79 | B82: 99.73 | C82: 0.2164383562 | D82: 0.003664 | E82: 3.664 | G82: 4.05093 | H82: 99.98497 | I82: 3.70864
A83: 80 | B83: 99.73 | C83: 0.2191780822 | D83: 0.003664 | E83: 3.664 | G83: 4.10069 | H83: 99.98478 | I83: 3.70859
A84: 81 | B84: 99.73 | C84: 0.2219178082 | D84: 0.003664 | E84: 3.664 | G84: 4.15046 | H84: 99.9846 | I84: 3.70854
A85: 82 | B85: 99.72 | C85: 0.2246575342 | D85: 0.003664 | E85: 3.664 | G85: 4.20023 | H85: 99.98442 | I85: 3.7085
A86: 83 | B86: 99.72 | C86: 0.2273972603 | D86: 0.003664 | E86: 3.664 | G86: 4.25 | H86: 99.98423 | I86: 3.70845
A87: 84 | B87: 99.72 | C87: 0.2301369863 | D87: 0.003664 | E87: 3.664 | G87: 4.30093 | H87: 99.98404 | I87: 3.7084
A88: 85 | B88: 99.71 | C88: 0.2328767123 | D88: 0.003664 | E88: 3.664 | G88: 4.35069 | H88: 99.98386 | I88: 3.70836
A89: 86 | B89: 99.71 | C89: 0.2356164384 | D89: 0.003664 | E89: 3.664 | G89: 4.40046 | H89: 99.98367 | I89: 3.70831
A90: 87 | B90: 99.71 | C90: 0.2383561644 | D90: 0.003664 | E90: 3.664 | G90: 4.45023 | H90: 99.98349 | I90: 3.70827
A91: 88 | B91: 99.7 | C91: 0.2410958904 | D91: 0.003664 | E91: 3.664 | G91: 4.5 | H91: 99.9833 | I91: 3.70822
A92: 89 | B92: 99.7 | C92: 0.2438356164 | D92: 0.003664 | E92: 3.664 | G92: 4.55093 | H92: 99.98311 | I92: 3.70817
A93: 90 | B93: 99.7 | C93: 0.2465753425 | D93: 0.003664 | E93: 3.664 | G93: 4.60069 | H93: 99.98293 | I93: 3.70813
A94: 91 | B94: 99.69 | C94: 0.2493150685 | D94: 0.003664 | E94: 3.664 | G94: 4.65046 | H94: 99.98275 | I94: 3.70808
A95: 92 | B95: 99.69 | C95: 0.2520547945 | D95: 0.003664 | E95: 3.664 | G95: 4.70023 | H95: 99.98256 | I95: 3.70803
A96: 93 | B96: 99.69 | C96: 0.2547945205 | D96: 0.003664 | E96: 3.664 | G96: 4.75 | H96: 99.98238 | I96: 3.70799
A97: 94 | B97: 99.68 | C97: 0.2575342466 | D97: 0.003664 | E97: 3.664 | G97: 4.80093 | H97: 99.98219 | I97: 3.70794
A98: 95 | B98: 99.68 | C98: 0.2602739726 | D98: 0.003664 | E98: 3.664 | G98: 4.85069 | H98: 99.982 | I98: 3.70789
A99: 96 | B99: 99.68 | C99: 0.2630136986 | D99: 0.003664 | E99: 3.664 | G99: 4.90046 | H99: 99.98182 | I99: 3.70785
A100: 97 | B100: 99.67 | C100: 0.2657534247 | D100: 0.003664 | E100: 3.664 | G100: 4.95023 | H100: 99.98163 | I100: 3.7078
A101: 98 | B101: 99.67 | C101: 0.2684931507 | D101: 0.003664 | E101: 3.664 | G101: 5 | H101: 99.98145 | I101: 3.70776
A102: 99 | B102: 99.67 | C102: 0.2712328767 | D102: 0.003664 | E102: 3.664 | G102: 5.05093 | H102: 99.98126 | I102: 3.70771
A103: 100 | B103: 99.66 | C103: 0.2739726027 | D103: 0.003664 | E103: 3.664 | G103: 5.10069 | H103: 99.98108 | I103: 3.70766
A104: 101 | B104: 99.66 | C104: 0.2767123288 | D104: 0.003664 | E104: 3.664 | G104: 5.15046 | H104: 99.98089 | I104: 3.70762
A105: 102 | B105: 99.66 | C105: 0.2794520548 | D105: 0.003664 | E105: 3.664 | G105: 5.20023 | H105: 99.98071 | I105: 3.70757
A106: 103 | B106: 99.65 | C106: 0.2821917808 | D106: 0.003664 | E106: 3.664 | G106: 5.25 | H106: 99.98052 | I106: 3.70753
A107: 104 | B107: 99.65 | C107: 0.2849315068 | D107: 0.003664 | E107: 3.664 | G107: 5.30093 | H107: 99.98033 | I107: 3.70748
A108: 105 | B108: 99.65 | C108: 0.2876712329 | D108: 0.003664 | E108: 3.664 | G108: 5.35069 | H108: 99.98015 | I108: 3.70743
A109: 106 | B109: 99.64 | C109: 0.2904109589 | D109: 0.003664 | E109: 3.664 | G109: 5.40046 | H109: 99.97996 | I109: 3.70739
A110: 107 | B110: 99.64 | C110: 0.2931506849 | D110: 0.003664 | E110: 3.664 | G110: 5.45023 | H110: 99.97978 | I110: 3.70734
A111: 108 | B111: 99.64 | C111: 0.295890411 | D111: 0.003664 | E111: 3.664 | G111: 5.5 | H111: 99.9796 | I111: 3.7073
A112: 109 | B112: 99.63 | C112: 0.298630137 | D112: 0.003664 | E112: 3.664 | G112: 5.55093 | H112: 99.97941 | I112: 3.70725
A113: 110 | B113: 99.63 | C113: 0.301369863 | D113: 0.003664 | E113: 3.664 | G113: 5.60069 | H113: 99.97922 | I113: 3.7072
A114: 111 | B114: 99.63 | C114: 0.304109589 | D114: 0.003664 | E114: 3.664 | G114: 5.65046 | H114: 99.97904 | I114: 3.70716
A115: 112 | B115: 99.62 | C115: 0.3068493151 | D115: 0.003664 | E115: 3.664 | G115: 5.70023 | H115: 99.97885 | I115: 3.70711
A116: 113 | B116: 99.62 | C116: 0.3095890411 | D116: 0.003664 | E116: 3.664 | G116: 5.75 | H116: 99.97867 | I116: 3.70707
A117: 114 | B117: 99.62 | C117: 0.3123287671 | D117: 0.003664 | E117: 3.664 | G117: 5.80093 | H117: 99.97848 | I117: 3.70702
A118: 115 | B118: 99.61 | C118: 0.3150684932 | D118: 0.003664 | E118: 3.664 | G118: 5.85069 | H118: 99.9783 | I118: 3.70697
A119: 116 | B119: 99.61 | C119: 0.3178082192 | D119: 0.003664 | E119: 3.664 | G119: 5.90046 | H119: 99.97811 | I119: 3.70693
A120: 117 | B120: 99.61 | C120: 0.3205479452 | D120: 0.003664 | E120: 3.664 | G120: 5.95023 | H120: 99.97793 | I120: 3.70688
A121: 118 | B121: 99.6 | C121: 0.3232876712 | D121: 0.003664 | E121: 3.664 | G121: 6 | H121: 99.97774 | I121: 3.70684
A122: 119 | B122: 99.6 | C122: 0.3260273973 | D122: 0.003664 | E122: 3.664 | G122: 6.05093 | H122: 99.97755 | I122: 3.70679
A123: 120 | B123: 99.6 | C123: 0.3287671233 | D123: 0.003664 | E123: 3.664 | G123: 6.10069 | H123: 99.97737 | I123: 3.70675
A124: 121 | B124: 99.59 | C124: 0.3315068493 | D124: 0.003664 | E124: 3.664 | G124: 6.15046 | H124: 99.97718 | I124: 3.7067
A125: 122 | B125: 99.59 | C125: 0.3342465753 | D125: 0.003664 | E125: 3.664 | G125: 6.20023 | H125: 99.977 | I125: 3.70665
A126: 123 | B126: 99.59 | C126: 0.3369863014 | D126: 0.003664 | E126: 3.664 | G126: 6.25 | H126: 99.97682 | I126: 3.70661
A127: 124 | B127: 99.58 | C127: 0.3397260274 | D127: 0.003664 | E127: 3.664 | G127: 6.30093 | H127: 99.97663 | I127: 3.70656
A128: 125 | B128: 99.58 | C128: 0.3424657534 | D128: 0.003664 | E128: 3.664 | G128: 6.35069 | H128: 99.97644 | I128: 3.70652
A129: 126 | B129: 99.58 | C129: 0.3452054795 | D129: 0.003664 | E129: 3.664 | G129: 6.40046 | H129: 99.97626 | I129: 3.70647
A130: 127 | B130: 99.57 | C130: 0.3479452055 | D130: 0.003664 | E130: 3.664 | G130: 6.45023 | H130: 99.97607 | I130: 3.70643
A131: 128 | B131: 99.57 | C131: 0.3506849315 | D131: 0.003664 | E131: 3.664 | G131: 6.5 | H131: 99.97589 | I131: 3.70638
A132: 129 | B132: 99.57 | C132: =A132/365 -> 0.3534246575 | D132: 0.003664 | E132: =D132*1000 -> 3.664 | G132: 6.55093 | H132: 99.9757 | I132: 3.70634
A133: 130 | B133: 99.56 | C133: 0.3561643836 | D133: 0.003664 | E133: 3.664 | G133: 6.60069 | H133: 99.97552 | I133: 3.70629
A134: 131 | B134: 99.56 | C134: 0.3589041096 | D134: 0.003664 | E134: 3.664 | G134: 6.65046 | H134: 99.97533 | I134: 3.70625
A135: 132 | B135: 99.56 | C135: 0.3616438356 | D135: 0.003664 | E135: 3.664 | G135: 6.70023 | H135: 99.97515 | I135: 3.7062
A136: 133 | B136: 99.55 | C136: 0.3643835616 | D136: 0.003664 | E136: 3.664 | G136: 6.75 | H136: 99.97496 | I136: 3.70616
A137: 134 | B137: 99.55 | C137: 0.3671232877 | D137: 0.003664 | E137: 3.664 | G137: 6.80093 | H137: 99.97477 | I137: 3.70611
A138: 135 | B138: 99.55 | C138: 0.3698630137 | D138: 0.003664 | E138: 3.664 | G138: 6.85069 | H138: 99.97459 | I138: 3.70606
A139: 136 | B139: 99.54 | C139: 0.3726027397 | D139: 0.003664 | E139: 3.664 | G139: 6.90046 | H139: 99.9744 | I139: 3.70602
A140: 137 | B140: 99.54 | C140: 0.3753424658 | D140: 0.003664 | E140: 3.664 | G140: 6.95023 | H140: 99.97422 | I140: 3.70597
A141: 138 | B141: 99.54 | C141: 0.3780821918 | D141: 0.003664 | E141: 3.664 | G141: 7 | H141: 99.97404 | I141: 3.70593
A142: 139 | B142: 99.53 | C142: 0.3808219178 | D142: 0.003664 | E142: 3.664 | G142: 7.05093 | H142: 99.97385 | I142: 3.70588
A143: 140 | B143: 99.53 | C143: 0.3835616438 | D143: 0.003664 | E143: 3.664 | G143: 7.10069 | H143: 99.97366 | I143: 3.70584
A144: 141 | B144: 99.53 | C144: 0.3863013699 | D144: 0.003664 | E144: 3.664 | G144: 7.15046 | H144: 99.97348 | I144: 3.70579
A145: 142 | B145: 99.52 | C145: 0.3890410959 | D145: 0.003664 | E145: 3.664 | G145: 7.20023 | H145: 99.97329 | I145: 3.70575
A146: 143 | B146: 99.52 | C146: 0.3917808219 | D146: 0.003664 | E146: 3.664 | G146: 7.25 | H146: 99.97311 | I146: 3.7057
A147: 144 | B147: 99.52 | C147: 0.3945205479 | D147: 0.003664 | E147: 3.664 | G147: 7.30093 | H147: 99.97292 | I147: 3.70566
A148: 145 | B148: 99.51 | C148: 0.397260274 | D148: 0.003664 | E148: 3.664 | G148: 7.35069 | H148: 99.97274 | I148: 3.70561
A149: 146 | B149: 99.51 | C149: 0.4 | D149: 0.003664 | E149: 3.664 | G149: 7.40046 | H149: 99.97255 | I149: 3.70557
A150: 147 | B150: 99.51 | C150: 0.402739726 | D150: 0.003664 | E150: 3.664 | G150: 7.45023 | H150: 99.97237 | I150: 3.70553
A151: 148 | B151: 99.5 | C151: 0.4054794521 | D151: 0.003664 | E151: 3.664 | G151: 7.5 | H151: 99.97218 | I151: 3.70548
A152: 149 | B152: 99.5 | C152: 0.4082191781 | D152: 0.003664 | E152: 3.664 | G152: 7.55093 | H152: 99.97199 | I152: 3.70543
A153: 150 | B153: 99.5 | C153: 0.4109589041 | D153: 0.003664 | E153: 3.664 | G153: 7.60069 | H153: 99.97181 | I153: 3.70539
A154: 151 | B154: 99.49 | C154: 0.4136986301 | D154: 0.003664 | E154: 3.664 | G154: 7.65046 | H154: 99.97163 | I154: 3.70535
A155: 152 | B155: 99.49 | C155: 0.4164383562 | D155: 0.003664 | E155: 3.664 | G155: 7.70023 | H155: 99.97144 | I155: 3.7053
A156: 153 | B156: 99.49 | C156: 0.4191780822 | D156: 0.003664 | E156: 3.664 | G156: 7.75 | H156: 99.97126 | I156: 3.70526
A157: 154 | B157: 99.48 | C157: 0.4219178082 | D157: 0.003664 | E157: 3.664 | G157: 7.80093 | H157: 99.97107 | I157: 3.70521
A158: 155 | B158: 99.48 | C158: 0.4246575342 | D158: 0.003664 | E158: 3.664 | G158: 7.85069 | H158: 99.97088 | I158: 3.70517
A159: 156 | B159: 99.48 | C159: 0.4273972603 | D159: 0.003664 | E159: 3.664 | G159: 7.90046 | H159: 99.9707 | I159: 3.70512
A160: 157 | B160: 99.47 | C160: 0.4301369863 | D160: 0.003664 | E160: 3.664 | G160: 7.95023 | H160: 99.97051 | I160: 3.70508
A161: 158 | B161: 99.47 | C161: 0.4328767123 | D161: 0.003664 | E161: 3.664 | G161: 8 | H161: 99.97033 | I161: 3.70503
A162: 159 | B162: 99.47 | C162: 0.4356164384 | D162: 0.003664 | E162: 3.664 | G162: 8.05093 | H162: 99.97014 | I162: 3.70499
A163: 160 | B163: 99.46 | C163: 0.4383561644 | D163: 0.003664 | E163: 3.664 | G163: 8.10069 | H163: 99.96996 | I163: 3.70494
A164: 161 | B164: 99.46 | C164: 0.4410958904 | D164: 0.003664 | E164: 3.664 | G164: 8.15046 | H164: 99.96977 | I164: 3.7049
A165: 162 | B165: 99.46 | C165: 0.4438356164 | D165: 0.003664 | E165: 3.664 | G165: 8.20023 | H165: 99.96959 | I165: 3.70486
A166: 163 | B166: 99.45 | C166: 0.4465753425 | D166: 0.003664 | E166: 3.664 | G166: 8.25 | H166: 99.9694 | I166: 3.70481
A167: 164 | B167: 99.45 | C167: 0.4493150685 | D167: 0.003664 | E167: 3.664 | G167: 8.30093 | H167: 99.96922 | I167: 3.70477
A168: 165 | B168: 99.45 | C168: 0.4520547945 | D168: 0.003664 | E168: 3.664 | G168: 8.35069 | H168: 99.96903 | I168: 3.70472
A169: 166 | B169: 99.44 | C169: 0.4547945205 | D169: 0.003664 | E169: 3.664 | G169: 8.40046 | H169: 99.96885 | I169: 3.70468
A170: 167 | B170: 99.44 | C170: 0.4575342466 | D170: 0.003664 | E170: 3.664 | G170: 8.45023 | H170: 99.96866 | I170: 3.70463
A171: 168 | B171: 99.44 | C171: 0.4602739726 | D171: 0.003664 | E171: 3.664 | G171: 8.5 | H171: 99.96848 | I171: 3.70459
A172: 169 | B172: 99.43 | C172: 0.4630136986 | D172: 0.003664 | E172: 3.664 | G172: 8.55093 | H172: 99.96829 | I172: 3.70454
A173: 170 | B173: 99.43 | C173: 0.4657534247 | D173: 0.003664 | E173: 3.664 | G173: 8.60069 | H173: 99.9681 | I173: 3.7045
A174: 171 | B174: 99.43 | C174: 0.4684931507 | D174: 0.003664 | E174: 3.664 | G174: 8.65046 | H174: 99.96792 | I174: 3.70446
A175: 172 | B175: 99.42 | C175: 0.4712328767 | D175: 0.003664 | E175: 3.664 | G175: 8.70023 | H175: 99.96774 | I175: 3.70441
A176: 173 | B176: 99.42 | C176: 0.4739726027 | D176: 0.003664 | E176: 3.664 | G176: 8.75 | H176: 99.96755 | I176: 3.70437
A177: 174 | B177: 99.42 | C177: 0.4767123288 | D177: 0.003664 | E177: 3.664 | G177: 8.80093 | H177: 99.96736 | I177: 3.70432
A178: 175 | B178: 99.41 | C178: 0.4794520548 | D178: 0.003664 | E178: 3.664 | G178: 8.85069 | H178: 99.96718 | I178: 3.70428
A179: 176 | B179: 99.41 | C179: 0.4821917808 | D179: 0.003664 | E179: 3.664 | G179: 8.90046 | H179: 99.96699 | I179: 3.70424
A180: 177 | B180: 99.41 | C180: 0.4849315068 | D180: 0.003664 | E180: 3.664 | G180: 8.95023 | H180: 99.96681 | I180: 3.70419
A181: 178 | B181: 99.4 | C181: 0.4876712329 | D181: 0.003664 | E181: 3.664 | G181: 9 | H181: 99.96663 | I181: 3.70415
A182: 179 | B182: 99.4 | C182: 0.4904109589 | D182: 0.003664 | E182: 3.664 | G182: 9.05093 | H182: 99.96644 | I182: 3.7041
A183: 180 | B183: 99.4 | C183: 0.4931506849 | D183: 0.003664 | E183: 3.664 | G183: 9.10069 | H183: 99.96625 | I183: 3.70406
A184: 181 | B184: 99.39 | C184: 0.495890411 | D184: 0.003664 | E184: 3.664 | G184: 9.15046 | H184: 99.96607 | I184: 3.70402
A185: 182 | B185: 99.39 | C185: 0.498630137 | D185: 0.003664 | E185: 3.664 | G185: 9.20023 | H185: 99.96588 | I185: 3.70397
A186: 183 | B186: 99.39 | C186: 0.501369863 | D186: 0.003664 | E186: 3.664 | G186: 9.25 | H186: 99.9657 | I186: 3.70393
A187: 184 | B187: 99.38 | C187: 0.504109589 | D187: 0.003664 | E187: 3.664 | G187: 9.30093 | H187: 99.96551 | I187: 3.70388
A188: 185 | B188: 99.38 | C188: 0.5068493151 | D188: 0.003664 | E188: 3.664 | G188: 9.35069 | H188: 99.96533 | I188: 3.70384
A189: 186 | B189: 99.38 | C189: 0.5095890411 | D189: 0.003664 | E189: 3.664 | G189: 9.40046 | H189: 99.96514 | I189: 3.7038
A190: 187 | B190: 99.37 | C190: 0.5123287671 | D190: 0.003664 | E190: 3.664 | G190: 9.45023 | H190: 99.96496 | I190: 3.70375
A191: 188 | B191: 99.37 | C191: 0.5150684932 | D191: 0.003664 | E191: 3.664 | G191: 9.5 | H191: 99.96477 | I191: 3.70371
A192: 189 | B192: 99.37 | C192: 0.5178082192 | D192: 0.003664 | E192: 3.664 | G192: 9.55093 | H192: 99.96459 | I192: 3.70366
A193: 190 | B193: 99.36 | C193: 0.5205479452 | D193: 0.003664 | E193: 3.664 | G193: 9.60069 | H193: 99.9644 | I193: 3.70362
A194: 191 | B194: 99.36 | C194: 0.5232876712 | D194: 0.003664 | E194: 3.664 | G194: 9.65046 | H194: 99.96422 | I194: 3.70358
A195: 192 | B195: 99.36 | C195: 0.5260273973 | D195: 0.003664 | E195: 3.664 | G195: 9.70023 | H195: 99.96403 | I195: 3.70353
A196: 193 | B196: 99.35 | C196: =A196/365 -> 0.5287671233 | D196: 0.003664 | E196: =D196*1000 -> 3.664 | G196: 9.75 | H196: 99.96385 | I196: 3.70349
A197: 194 | B197: 99.35 | C197: 0.5315068493 | D197: 0.003664 | E197: 3.664 | G197: 9.80093 | H197: 99.96366 | I197: 3.70345
A198: 195 | B198: 99.35 | C198: 0.5342465753 | D198: 0.003664 | E198: 3.664 | G198: 9.85069 | H198: 99.96347 | I198: 3.7034
A199: 196 | B199: 99.34 | C199: 0.5369863014 | D199: 0.003664 | E199: 3.664 | G199: 9.90046 | H199: 99.96329 | I199: 3.70336
A200: 197 | B200: 99.34 | C200: 0.5397260274 | D200: 0.003664 | E200: 3.664 | G200: 9.95023 | H200: 99.96311 | I200: 3.70332
... 4300 more rows

Sheet Untreated
A1: Result: | B1: Simulated Height | C1: Simulated Surface Flux | D1: Flux | F1: Time(Days) | G1: Tailings Height(m) | H1: Top flux(mm/day)
A2: Unit: | B2: m | C2: m/day | D2: mm/d | F2: 0.05093 | G2: 99.99862 | H2: 27.05757
A3: 0 | B3: 100 | C3: 0.02632 | D3: =C3*1000 -> 26.32 | F3: 0.10069 | G3: 99.99728 | H3: 27.05479
A4: 1 | B4: 99.97 | C4: 0.02632 | D4: =C4*1000 -> 26.32 | F4: 0.15046 | G4: 99.99593 | H4: 27.05202
A5: 2 | B5: 99.95 | C5: 0.02632 | D5: 26.32 | F5: 0.20023 | G5: 99.99458 | H5: 27.04926
A6: 3 | B6: 99.92 | C6: 0.02632 | D6: 26.32 | F6: 0.25 | G6: 99.99324 | H6: 27.0465
A7: 4 | B7: 99.9 | C7: 0.02632 | D7: 26.32 | F7: 0.30093 | G7: 99.99186 | H7: 27.04368
A8: 5 | B8: 99.87 | C8: 0.02632 | D8: 26.32 | F8: 0.35069 | G8: 99.99051 | H8: 27.04093
A9: 6 | B9: 99.85 | C9: 0.02632 | D9: 26.32 | F9: 0.40046 | G9: 99.98917 | H9: 27.03818
A10: 7 | B10: 99.82 | C10: 0.02632 | D10: 26.32 | F10: 0.45023 | G10: 99.98782 | H10: 27.03545
A11: 8 | B11: 99.79 | C11: 0.02632 | D11: 26.32 | F11: 0.5 | G11: 99.98648 | H11: 27.03271
A12: 9 | B12: 99.76 | C12: 0.02632 | D12: 26.32 | F12: 0.55093 | G12: 99.9851 | H12: 27.02992
A13: 10 | B13: 99.74 | C13: 0.02632 | D13: 26.32 | F13: 0.60069 | G13: 99.98376 | H13: 27.0272
A14: 11 | B14: 99.71 | C14: 0.02632 | D14: 26.32 | F14: 0.65046 | G14: 99.98241 | H14: 27.02449
A15: 12 | B15: 99.69 | C15: 0.02632 | D15: 26.32 | F15: 0.70023 | G15: 99.98107 | H15: 27.02178
A16: 13 | B16: 99.66 | C16: 0.02632 | D16: 26.32 | F16: 0.75 | G16: 99.97972 | H16: 27.01907
A17: 14 | B17: 99.64 | C17: 0.02632 | D17: 26.32 | F17: 0.80093 | G17: 99.97835 | H17: 27.01631
A18: 15 | B18: 99.61 | C18: 0.02632 | D18: 26.32 | F18: 0.85069 | G18: 99.977 | H18: 27.01362
A19: 16 | B19: 99.59 | C19: 0.02632 | D19: 26.32 | F19: 0.90046 | G19: 99.97566 | H19: 27.01093
A20: 17 | B20: 99.56 | C20: 0.02632 | D20: 26.32 | F20: 0.95023 | G20: 99.97431 | H20: 27.00825
A21: 18 | B21: 99.54 | C21: 0.02632 | D21: 26.32 | F21: 1 | G21: 99.97297 | H21: 27.00557
A22: 19 | B22: 99.51 | C22: 0.02632 | D22: 26.32 | F22: 1.05093 | G22: 99.97159 | H22: 27.00283
A23: 20 | B23: 99.48 | C23: 0.02632 | D23: 26.32 | F23: 1.10069 | G23: 99.97025 | H23: 27.00017
A24: 21 | B24: 99.46 | C24: 0.02632 | D24: 26.32 | F24: 1.15046 | G24: 99.96891 | H24: 26.99751
A25: 22 | B25: 99.44 | C25: 0.02632 | D25: 26.32 | F25: 1.20023 | G25: 99.96756 | H25: 26.99485
A26: 23 | B26: 99.41 | C26: 0.02632 | D26: 26.32 | F26: 1.25 | G26: 99.96622 | H26: 26.9922
A27: 24 | B27: 99.39 | C27: 0.02632 | D27: 26.32 | F27: 1.30093 | G27: 99.96484 | H27: 26.98949
A28: 25 | B28: 99.36 | C28: 0.02632 | D28: 26.32 | F28: 1.35069 | G28: 99.9635 | H28: 26.98686
A29: 26 | B29: 99.34 | C29: 0.02632 | D29: 26.32 | F29: 1.40046 | G29: 99.96216 | H29: 26.98422
A30: 27 | B30: 99.31 | C30: 0.02632 | D30: 26.32 | F30: 1.45023 | G30: 99.96081 | H30: 26.98159
A31: 28 | B31: 99.29 | C31: 0.02632 | D31: 26.32 | F31: 1.5 | G31: 99.95947 | H31: 26.97897
A32: 29 | B32: 99.26 | C32: 0.02632 | D32: 26.32 | F32: 1.55093 | G32: 99.9581 | H32: 26.97629
A33: 30 | B33: 99.24 | C33: 0.02632 | D33: 26.32 | F33: 1.60069 | G33: 99.95676 | H33: 26.97368
A34: 31 | B34: 99.21 | C34: 0.02632 | D34: 26.32 | F34: 1.65046 | G34: 99.95541 | H34: 26.97107
A35: 32 | B35: 99.19 | C35: 0.02632 | D35: 26.32 | F35: 1.70023 | G35: 99.95407 | H35: 26.96847
A36: 33 | B36: 99.16 | C36: 0.02632 | D36: 26.32 | F36: 1.75 | G36: 99.95273 | H36: 26.96588
A37: 34 | B37: 99.14 | C37: 0.02632 | D37: 26.32 | F37: 1.80093 | G37: 99.95136 | H37: 26.96323
A38: 35 | B38: 99.12 | C38: 0.02632 | D38: 26.32 | F38: 1.85069 | G38: 99.95001 | H38: 26.96064
A39: 36 | B39: 99.09 | C39: 0.02632 | D39: 26.32 | F39: 1.90046 | G39: 99.94867 | H39: 26.95806
A40: 37 | B40: 99.07 | C40: 0.02632 | D40: 26.32 | F40: 1.95023 | G40: 99.94733 | H40: 26.95549
A41: 38 | B41: 99.04 | C41: 0.02632 | D41: 26.32 | F41: 2 | G41: 99.94599 | H41: 26.95292
A42: 39 | B42: 99.02 | C42: 0.02632 | D42: 26.32 | F42: 2.05093 | G42: 99.94462 | H42: 26.9503
A43: 40 | B43: 98.99 | C43: 0.02632 | D43: 26.32 | F43: 2.10069 | G43: 99.94328 | H43: 26.94774
A44: 41 | B44: 98.97 | C44: 0.02632 | D44: 26.32 | F44: 2.15046 | G44: 99.94193 | H44: 26.94519
A45: 42 | B45: 98.94 | C45: 0.02632 | D45: 26.32 | F45: 2.20023 | G45: 99.94059 | H45: 26.94264
A46: 43 | B46: 98.92 | C46: 0.02632 | D46: 26.32 | F46: 2.25 | G46: 99.93925 | H46: 26.9401
A47: 44 | B47: 98.89 | C47: 0.02632 | D47: 26.32 | F47: 2.30093 | G47: 99.93788 | H47: 26.9375
A48: 45 | B48: 98.87 | C48: 0.02632 | D48: 26.32 | F48: 2.35069 | G48: 99.93654 | H48: 26.93497
A49: 46 | B49: 98.84 | C49: 0.02632 | D49: 26.32 | F49: 2.40046 | G49: 99.9352 | H49: 26.93245
A50: 47 | B50: 98.82 | C50: 0.02632 | D50: 26.32 | F50: 2.45023 | G50: 99.93386 | H50: 26.92993
A51: 48 | B51: 98.79 | C51: 0.02632 | D51: 26.32 | F51: 2.5 | G51: 99.93252 | H51: 26.92741
A52: 49 | B52: 98.77 | C52: 0.02632 | D52: 26.32 | F52: 2.55093 | G52: 99.93115 | H52: 26.92484
A53: 50 | B53: 98.74 | C53: 0.02632 | D53: 26.32 | F53: 2.60069 | G53: 99.92981 | H53: 26.92234
A54: 51 | B54: 98.72 | C54: 0.02632 | D54: 26.32 | F54: 2.65046 | G54: 99.92847 | H54: 26.91984
A55: 52 | B55: 98.7 | C55: 0.02632 | D55: 26.32 | F55: 2.70023 | G55: 99.92713 | H55: 26.91735
A56: 53 | B56: 98.67 | C56: 0.02632 | D56: 26.32 | F56: 2.75 | G56: 99.92579 | H56: 26.91486
A57: 54 | B57: 98.65 | C57: 0.02632 | D57: 26.32 | F57: 2.80093 | G57: 99.92442 | H57: 26.91232
A58: 55 | B58: 98.62 | C58: 0.02632 | D58: 26.32 | F58: 2.85069 | G58: 99.92308 | H58: 26.90984
A59: 56 | B59: 98.6 | C59: 0.02632 | D59: 26.32 | F59: 2.90046 | G59: 99.92174 | H59: 26.90737
A60: 57 | B60: 98.57 | C60: 0.02632 | D60: 26.32 | F60: 2.95023 | G60: 99.9204 | H60: 26.9049
A61: 58 | B61: 98.55 | C61: 0.02632 | D61: 26.32 | F61: 3 | G61: 99.91906 | H61: 26.90244
A62: 59 | B62: 98.52 | C62: 0.02632 | D62: 26.32 | F62: 3.05093 | G62: 99.91769 | H62: 26.89992
A63: 60 | B63: 98.5 | C63: 0.02632 | D63: 26.32 | F63: 3.10069 | G63: 99.91635 | H63: 26.89747
A64: 61 | B64: 98.47 | C64: 0.02632 | D64: 26.32 | F64: 3.15046 | G64: 99.91501 | H64: 26.89503
A65: 62 | B65: 98.45 | C65: 0.02632 | D65: 26.32 | F65: 3.20023 | G65: 99.91368 | H65: 26.89259
A66: 63 | B66: 98.43 | C66: 0.02632 | D66: 26.32 | F66: 3.25 | G66: 99.91234 | H66: 26.89015
A67: 64 | B67: 98.4 | C67: 0.02632 | D67: 26.32 | F67: 3.30093 | G67: 99.91097 | H67: 26.88767
A68: 65 | B68: 98.38 | C68: 0.02632 | D68: =C68*1000 -> 26.32 | F68: 3.35069 | G68: 99.90963 | H68: 26.88524
A69: 66 | B69: 98.35 | C69: 0.02632 | D69: 26.32 | F69: 3.40046 | G69: 99.90829 | H69: 26.88282
A70: 67 | B70: 98.33 | C70: 0.02632 | D70: 26.32 | F70: 3.45023 | G70: 99.90695 | H70: 26.88041
A71: 68 | B71: 98.3 | C71: 0.02632 | D71: 26.32 | F71: 3.5 | G71: 99.90562 | H71: 26.878
A72: 69 | B72: 98.28 | C72: 0.02632 | D72: 26.32 | F72: 3.55093 | G72: 99.90425 | H72: 26.87554
A73: 70 | B73: 98.26 | C73: 0.02632 | D73: 26.32 | F73: 3.60069 | G73: 99.90291 | H73: 26.87314
A74: 71 | B74: 98.23 | C74: 0.02632 | D74: 26.32 | F74: 3.65046 | G74: 99.90157 | H74: 26.87075
A75: 72 | B75: 98.21 | C75: 0.02632 | D75: 26.32 | F75: 3.70023 | G75: 99.90024 | H75: 26.86836
A76: 73 | B76: 98.18 | C76: 0.02632 | D76: 26.32 | F76: 3.75 | G76: 99.8989 | H76: 26.86598
A77: 74 | B77: 98.16 | C77: 0.02632 | D77: 26.32 | F77: 3.80093 | G77: 99.89753 | H77: 26.86354
A78: 75 | B78: 98.14 | C78: 0.02632 | D78: 26.32 | F78: 3.85069 | G78: 99.89619 | H78: 26.86117
A79: 76 | B79: 98.11 | C79: 0.02632 | D79: 26.32 | F79: 3.90046 | G79: 99.89486 | H79: 26.85881
A80: 77 | B80: 98.09 | C80: 0.02632 | D80: 26.32 | F80: 3.95023 | G80: 99.89352 | H80: 26.85644
A81: 78 | B81: 98.06 | C81: 0.02632 | D81: 26.32 | F81: 4 | G81: 99.89218 | H81: 26.85409
A82: 79 | B82: 98.04 | C82: 0.02632 | D82: 26.32 | F82: 4.05093 | G82: 99.89082 | H82: 26.85168
A83: 80 | B83: 98.01 | C83: 0.02632 | D83: 26.32 | F83: 4.10069 | G83: 99.88948 | H83: 26.84934
A84: 81 | B84: 97.99 | C84: 0.02632 | D84: 26.32 | F84: 4.15046 | G84: 99.88814 | H84: 26.84699
A85: 82 | B85: 97.96 | C85: 0.02632 | D85: 26.32 | F85: 4.20023 | G85: 99.88681 | H85: 26.84466
A86: 83 | B86: 97.94 | C86: 0.02632 | D86: 26.32 | F86: 4.25 | G86: 99.88547 | H86: 26.84233
A87: 84 | B87: 97.91 | C87: 0.02632 | D87: 26.32 | F87: 4.30093 | G87: 99.8841 | H87: 26.83995
A88: 85 | B88: 97.89 | C88: 0.02632 | D88: 26.32 | F88: 4.35069 | G88: 99.88277 | H88: 26.83763
A89: 86 | B89: 97.86 | C89: 0.02632 | D89: 26.32 | F89: 4.40046 | G89: 99.88143 | H89: 26.83531
A90: 87 | B90: 97.84 | C90: 0.02632 | D90: 26.32 | F90: 4.45023 | G90: 99.8801 | H90: 26.833
A91: 88 | B91: 97.81 | C91: 0.02632 | D91: 26.32 | F91: 4.5 | G91: 99.87876 | H91: 26.8307
A92: 89 | B92: 97.79 | C92: 0.02632 | D92: 26.32 | F92: 4.55093 | G92: 99.8774 | H92: 26.82835
A93: 90 | B93: 97.77 | C93: 0.02632 | D93: 26.32 | F93: 4.60069 | G93: 99.87606 | H93: 26.82605
A94: 91 | B94: 97.74 | C94: 0.02632 | D94: 26.32 | F94: 4.65046 | G94: 99.87473 | H94: 26.82376
A95: 92 | B95: 97.72 | C95: 0.02632 | D95: 26.32 | F95: 4.70023 | G95: 99.87339 | H95: 26.82148
A96: 93 | B96: 97.69 | C96: 0.02632 | D96: 26.32 | F96: 4.75 | G96: 99.87206 | H96: 26.8192
A97: 94 | B97: 97.67 | C97: 0.02632 | D97: 26.32 | F97: 4.80093 | G97: 99.87069 | H97: 26.81688
A98: 95 | B98: 97.64 | C98: 0.02632 | D98: 26.32 | F98: 4.85069 | G98: 99.86936 | H98: 26.81461
A99: 96 | B99: 97.62 | C99: 0.02632 | D99: 26.32 | F99: 4.90046 | G99: 99.86802 | H99: 26.81234
A100: 97 | B100: 97.6 | C100: 0.02632 | D100: 26.32 | F100: 4.95023 | G100: 99.86669 | H100: 26.81009
A101: 98 | B101: 97.57 | C101: 0.02632 | D101: 26.32 | F101: 5 | G101: 99.86535 | H101: 26.80783
A102: 99 | B102: 97.55 | C102: 0.02632 | D102: 26.32 | F102: 5.05093 | G102: 99.86399 | H102: 26.80553
A103: 100 | B103: 97.52 | C103: 0.02632 | D103: 26.32 | F103: 5.10069 | G103: 99.86265 | H103: 26.80329
A104: 101 | B104: 97.5 | C104: 0.02632 | D104: 26.32 | F104: 5.15046 | G104: 99.86132 | H104: 26.80105
A105: 102 | B105: 97.47 | C105: 0.02632 | D105: 26.32 | F105: 5.20023 | G105: 99.85999 | H105: 26.79882
A106: 103 | B106: 97.45 | C106: 0.02632 | D106: 26.32 | F106: 5.25 | G106: 99.85865 | H106: 26.79659
A107: 104 | B107: 97.42 | C107: 0.02632 | D107: 26.32 | F107: 5.30093 | G107: 99.85729 | H107: 26.79432
A108: 105 | B108: 97.4 | C108: 0.02632 | D108: 26.32 | F108: 5.35069 | G108: 99.85595 | H108: 26.7921
A109: 106 | B109: 97.37 | C109: 0.02632 | D109: 26.32 | F109: 5.40046 | G109: 99.85462 | H109: 26.78989
A110: 107 | B110: 97.35 | C110: 0.02632 | D110: 26.32 | F110: 5.45023 | G110: 99.85329 | H110: 26.78768
A111: 108 | B111: 97.32 | C111: 0.02632 | D111: 26.32 | F111: 5.5 | G111: 99.85195 | H111: 26.78548
A112: 109 | B112: 97.3 | C112: 0.02632 | D112: 26.32 | F112: 5.55093 | G112: 99.85059 | H112: 26.78323
A113: 110 | B113: 97.27 | C113: 0.02632 | D113: 26.32 | F113: 5.60069 | G113: 99.84926 | H113: 26.78104
A114: 111 | B114: 97.25 | C114: 0.02632 | D114: 26.32 | F114: 5.65046 | G114: 99.84792 | H114: 26.77885
A115: 112 | B115: 97.22 | C115: 0.02632 | D115: 26.32 | F115: 5.70023 | G115: 99.84659 | H115: 26.77667
A116: 113 | B116: 97.2 | C116: 0.02632 | D116: 26.32 | F116: 5.75 | G116: 99.84526 | H116: 26.7745
A117: 114 | B117: 97.17 | C117: 0.02632 | D117: 26.32 | F117: 5.80093 | G117: 99.8439 | H117: 26.77227
A118: 115 | B118: 97.15 | C118: 0.02632 | D118: 26.32 | F118: 5.85069 | G118: 99.84256 | H118: 26.77011
A119: 116 | B119: 97.12 | C119: 0.02632 | D119: 26.32 | F119: 5.90046 | G119: 99.84123 | H119: 26.76795
A120: 117 | B120: 97.1 | C120: 0.02632 | D120: 26.32 | F120: 5.95023 | G120: 99.8399 | H120: 26.76579
A121: 118 | B121: 97.08 | C121: 0.02632 | D121: 26.32 | F121: 6 | G121: 99.83857 | H121: 26.76364
A122: 119 | B122: 97.05 | C122: 0.02632 | D122: 26.32 | F122: 6.05093 | G122: 99.8372 | H122: 26.76144
A123: 120 | B123: 97.03 | C123: 0.02632 | D123: 26.32 | F123: 6.10069 | G123: 99.83587 | H123: 26.7593
A124: 121 | B124: 97 | C124: 0.02632 | D124: 26.32 | F124: 6.15046 | G124: 99.83454 | H124: 26.75717
A125: 122 | B125: 96.97 | C125: 0.02632 | D125: 26.32 | F125: 6.20023 | G125: 99.83321 | H125: 26.75503
A126: 123 | B126: 96.95 | C126: 0.02632 | D126: 26.32 | F126: 6.25 | G126: 99.83188 | H126: 26.75291
A127: 124 | B127: 96.93 | C127: 0.02632 | D127: 26.32 | F127: 6.30093 | G127: 99.83052 | H127: 26.75074
A128: 125 | B128: 96.9 | C128: 0.02632 | D128: 26.32 | F128: 6.35069 | G128: 99.82918 | H128: 26.74862
A129: 126 | B129: 96.88 | C129: 0.02632 | D129: 26.32 | F129: 6.40046 | G129: 99.82785 | H129: 26.74651
A130: 127 | B130: 96.85 | C130: 0.02632 | D130: 26.32 | F130: 6.45023 | G130: 99.82652 | H130: 26.7444
A131: 128 | B131: 96.83 | C131: 0.02632 | D131: 26.32 | F131: 6.5 | G131: 99.82519 | H131: 26.7423
A132: 129 | B132: 96.8 | C132: 0.02632 | D132: =C132*1000 -> 26.32 | F132: 6.55093 | G132: 99.82383 | H132: 26.74016
A133: 130 | B133: 96.78 | C133: 0.02632 | D133: 26.32 | F133: 6.60069 | G133: 99.8225 | H133: 26.73807
A134: 131 | B134: 96.75 | C134: 0.02632 | D134: 26.32 | F134: 6.65046 | G134: 99.82117 | H134: 26.73598
A135: 132 | B135: 96.73 | C135: 0.02632 | D135: 26.32 | F135: 6.70023 | G135: 99.81984 | H135: 26.7339
A136: 133 | B136: 96.7 | C136: 0.02632 | D136: 26.32 | F136: 6.75 | G136: 99.81851 | H136: 26.73182
A137: 134 | B137: 96.68 | C137: 0.02632 | D137: 26.32 | F137: 6.80093 | G137: 99.81715 | H137: 26.7297
A138: 135 | B138: 96.65 | C138: 0.02632 | D138: 26.32 | F138: 6.85069 | G138: 99.81582 | H138: 26.72764
A139: 136 | B139: 96.63 | C139: 0.02632 | D139: 26.32 | F139: 6.90046 | G139: 99.81448 | H139: 26.72558
A140: 137 | B140: 96.61 | C140: 0.02632 | D140: 26.32 | F140: 6.95023 | G140: 99.81315 | H140: 26.72352
A141: 138 | B141: 96.58 | C141: 0.02632 | D141: 26.32 | F141: 7 | G141: 99.81182 | H141: 26.72147
A142: 139 | B142: 96.56 | C142: 0.02632 | D142: 26.32 | F142: 7.05093 | G142: 99.81046 | H142: 26.71937
A143: 140 | B143: 96.53 | C143: 0.02632 | D143: 26.32 | F143: 7.10069 | G143: 99.80913 | H143: 26.71733
A144: 141 | B144: 96.51 | C144: 0.02632 | D144: 26.32 | F144: 7.15046 | G144: 99.8078 | H144: 26.7153
A145: 142 | B145: 96.48 | C145: 0.02632 | D145: 26.32 | F145: 7.20023 | G145: 99.80648 | H145: 26.71326
A146: 143 | B146: 96.46 | C146: 0.02632 | D146: 26.32 | F146: 7.25 | G146: 99.80515 | H146: 26.71124
A147: 144 | B147: 96.43 | C147: 0.02632 | D147: 26.32 | F147: 7.30093 | G147: 99.80379 | H147: 26.70917
A148: 145 | B148: 96.41 | C148: 0.02632 | D148: 26.32 | F148: 7.35069 | G148: 99.80246 | H148: 26.70715
A149: 146 | B149: 96.38 | C149: 0.02632 | D149: 26.32 | F149: 7.40046 | G149: 99.80113 | H149: 26.70514
A150: 147 | B150: 96.36 | C150: 0.02632 | D150: 26.32 | F150: 7.45023 | G150: 99.7998 | H150: 26.70313
A151: 148 | B151: 96.33 | C151: 0.02632 | D151: 26.32 | F151: 7.5 | G151: 99.79847 | H151: 26.70113
A152: 149 | B152: 96.31 | C152: 0.02632 | D152: 26.32 | F152: 7.55093 | G152: 99.79711 | H152: 26.69909
A153: 150 | B153: 96.28 | C153: 0.02632 | D153: 26.32 | F153: 7.60069 | G153: 99.79578 | H153: 26.69709
A154: 151 | B154: 96.26 | C154: 0.02632 | D154: 26.32 | F154: 7.65046 | G154: 99.79445 | H154: 26.69511
A155: 152 | B155: 96.23 | C155: 0.02632 | D155: 26.32 | F155: 7.70023 | G155: 99.79312 | H155: 26.69312
A156: 153 | B156: 96.21 | C156: 0.02632 | D156: 26.32 | F156: 7.75 | G156: 99.7918 | H156: 26.69115
A157: 154 | B157: 96.18 | C157: 0.02632 | D157: 26.32 | F157: 7.80093 | G157: 99.79044 | H157: 26.68913
A158: 155 | B158: 96.16 | C158: 0.02632 | D158: 26.32 | F158: 7.85069 | G158: 99.78911 | H158: 26.68716
A159: 156 | B159: 96.13 | C159: 0.02632 | D159: 26.32 | F159: 7.90046 | G159: 99.78778 | H159: 26.6852
A160: 157 | B160: 96.11 | C160: 0.02632 | D160: 26.32 | F160: 7.95023 | G160: 99.78645 | H160: 26.68324
A161: 158 | B161: 96.08 | C161: 0.02632 | D161: 26.32 | F161: 8 | G161: 99.78512 | H161: 26.68128
A162: 159 | B162: 96.06 | C162: 0.02632 | D162: 26.32 | F162: 8.05093 | G162: 99.78376 | H162: 26.67929
A163: 160 | B163: 96.03 | C163: 0.02632 | D163: 26.32 | F163: 8.10069 | G163: 99.78244 | H163: 26.67735
A164: 161 | B164: 96.01 | C164: 0.02632 | D164: 26.32 | F164: 8.15046 | G164: 99.78111 | H164: 26.67541
A165: 162 | B165: 95.98 | C165: 0.02632 | D165: 26.32 | F165: 8.20023 | G165: 99.77978 | H165: 26.67347
A166: 163 | B166: 95.96 | C166: 0.02632 | D166: 26.32 | F166: 8.25 | G166: 99.77845 | H166: 26.67154
A167: 164 | B167: 95.93 | C167: 0.02632 | D167: 26.32 | F167: 8.30093 | G167: 99.7771 | H167: 26.66957
A168: 165 | B168: 95.91 | C168: 0.02632 | D168: 26.32 | F168: 8.35069 | G168: 99.77577 | H168: 26.66765
A169: 166 | B169: 95.88 | C169: 0.02632 | D169: 26.32 | F169: 8.40046 | G169: 99.77444 | H169: 26.66574
A170: 167 | B170: 95.86 | C170: 0.02632 | D170: 26.32 | F170: 8.45023 | G170: 99.77311 | H170: 26.66383
A171: 168 | B171: 95.83 | C171: 0.02632 | D171: 26.32 | F171: 8.5 | G171: 99.77179 | H171: 26.66192
A172: 169 | B172: 95.81 | C172: 0.02632 | D172: 26.32 | F172: 8.55093 | G172: 99.77043 | H172: 26.65998
A173: 170 | B173: 95.79 | C173: 0.02632 | D173: 26.32 | F173: 8.60069 | G173: 99.7691 | H173: 26.65808
A174: 171 | B174: 95.76 | C174: 0.02632 | D174: 26.32 | F174: 8.65046 | G174: 99.76778 | H174: 26.65619
A175: 172 | B175: 95.74 | C175: 0.02632 | D175: 26.32 | F175: 8.70023 | G175: 99.76645 | H175: 26.65431
A176: 173 | B176: 95.72 | C176: 0.02632 | D176: 26.32 | F176: 8.75 | G176: 99.76512 | H176: 26.65243
A177: 174 | B177: 95.7 | C177: 0.02632 | D177: 26.32 | F177: 8.80093 | G177: 99.76377 | H177: 26.65051
A178: 175 | B178: 95.67 | C178: 0.02632 | D178: 26.32 | F178: 8.85069 | G178: 99.76244 | H178: 26.64863
A179: 176 | B179: 95.65 | C179: 0.02632 | D179: 26.32 | F179: 8.90046 | G179: 99.76111 | H179: 26.64677
A180: 177 | B180: 95.63 | C180: 0.02632 | D180: 26.32 | F180: 8.95023 | G180: 99.75979 | H180: 26.6449
A181: 178 | B181: 95.6 | C181: 0.02632 | D181: 26.32 | F181: 9 | G181: 99.75846 | H181: 26.64305
A182: 179 | B182: 95.58 | C182: 0.02632 | D182: 26.32 | F182: 9.05093 | G182: 99.7571 | H182: 26.64115
A183: 180 | B183: 95.56 | C183: 0.02632 | D183: 26.32 | F183: 9.10069 | G183: 99.75578 | H183: 26.6393
A184: 181 | B184: 95.54 | C184: 0.02632 | D184: 26.32 | F184: 9.15046 | G184: 99.75445 | H184: 26.63746
A185: 182 | B185: 95.51 | C185: 0.02632 | D185: 26.32 | F185: 9.20023 | G185: 99.75313 | H185: 26.63562
A186: 183 | B186: 95.49 | C186: 0.02632 | D186: 26.32 | F186: 9.25 | G186: 99.7518 | H186: 26.63379
A187: 184 | B187: 95.47 | C187: 0.02632 | D187: 26.32 | F187: 9.30093 | G187: 99.75045 | H187: 26.63192
A188: 185 | B188: 95.44 | C188: 0.02632 | D188: 26.32 | F188: 9.35069 | G188: 99.74912 | H188: 26.63009
A189: 186 | B189: 95.42 | C189: 0.02632 | D189: 26.32 | F189: 9.40046 | G189: 99.7478 | H189: 26.62827
A190: 187 | B190: 95.39 | C190: 0.02632 | D190: 26.32 | F190: 9.45023 | G190: 99.74647 | H190: 26.62646
A191: 188 | B191: 95.37 | C191: 0.02632 | D191: 26.32 | F191: 9.5 | G191: 99.74514 | H191: 26.62465
A192: 189 | B192: 95.35 | C192: 0.02632 | D192: 26.32 | F192: 9.55093 | G192: 99.74379 | H192: 26.6228
A193: 190 | B193: 95.32 | C193: 0.02632 | D193: 26.32 | F193: 9.60069 | G193: 99.74246 | H193: 26.621
A194: 191 | B194: 95.3 | C194: 0.02632 | D194: 26.32 | F194: 9.65046 | G194: 99.74114 | H194: 26.6192
A195: 192 | B195: 95.27 | C195: 0.02632 | D195: 26.32 | F195: 9.70023 | G195: 99.73981 | H195: 26.61741
A196: 193 | B196: 95.25 | C196: 0.02632 | D196: =C196*1000 -> 26.32 | F196: 9.75 | G196: 99.73849 | H196: 26.61562
A197: 194 | B197: 95.23 | C197: 0.02632 | D197: 26.32 | F197: 9.80093 | G197: 99.73713 | H197: 26.6138
A198: 195 | B198: 95.2 | C198: 0.02632 | D198: 26.32 | F198: 9.85069 | G198: 99.73581 | H198: 26.61202
A199: 196 | B199: 95.18 | C199: 0.02632 | D199: 26.32 | F199: 9.90046 | G199: 99.73449 | H199: 26.61025
A200: 197 | B200: 95.16 | C200: 0.02632 | D200: 26.32 | F200: 9.95023 | G200: 99.73316 | H200: 26.60848
... 4300 more rows

Sheet PVBTMAC
A1: Result: | B1: Simulated Height | C1: Simulated Surface Flux | D1: Flux | F1: Time(Days) | G1: Water Height(m) | H1: Top flux(mm/day) | I1: Time [years] | J1: Day | K1: UNSATCON H [m]
A2: Unit: | B2: m | C2: m/day | D2: mm/d | F2: 0.05093 | G2: 99.994 | H2: 117.67033
A3: 0 | B3: 100 | C3: 0.1468 | D3: =C3*1000 -> 146.8 | F3: 0.10069 | G3: 99.98812 | H3: 118.75135
A4: 1 | B4: 99.91 | C4: 0.1467 | D4: =C4*1000 -> 146.7 | F4: 0.15046 | G4: 99.98218 | H4: 119.81
A5: 2 | B5: 99.82 | C5: 0.1467 | D5: 146.7 | F5: 0.20023 | G5: 99.97619 | H5: 120.84606
A6: 3 | B6: 99.72 | C6: 0.1467 | D6: 146.7 | F6: 0.25 | G6: 99.97015 | H6: 121.85938
A7: 4 | B7: 99.62 | C7: 0.1467 | D7: 146.7 | F7: 0.30093 | G7: 99.96392 | H7: 122.87255
A8: 5 | B8: 99.52 | C8: 0.1467 | D8: 146.7 | F8: 0.35069 | G8: 99.95778 | H8: 123.83941
A9: 6 | B9: 99.42 | C9: 0.1467 | D9: 146.7 | F9: 0.40046 | G9: 99.95159 | H9: 124.78317
A10: 7 | B10: 99.31 | C10: 0.1467 | D10: 146.7 | F10: 0.45023 | G10: 99.94536 | H10: 125.70379
A11: 8 | B11: 99.19 | C11: 0.1467 | D11: 146.7 | F11: 0.5 | G11: 99.93908 | H11: 126.60124
A12: 9 | B12: 99.07 | C12: 0.1467 | D12: 146.7 | F12: 0.55093 | G12: 99.93261 | H12: 127.49558
A13: 10 | B13: 98.95 | C13: 0.1467 | D13: 146.7 | F13: 0.60069 | G13: 99.92624 | H13: 128.3462
A14: 11 | B14: 98.82 | C14: 0.1467 | D14: 146.7 | F14: 0.65046 | G14: 99.91983 | H14: 129.17377
A15: 12 | B15: 98.69 | C15: 0.1467 | D15: 146.7 | F15: 0.70023 | G15: 99.91338 | H15: 129.97836
A16: 13 | B16: 98.56 | C16: 0.1467 | D16: 146.7 | F16: 0.75 | G16: 99.90689 | H16: 130.76009
A17: 14 | B17: 98.42 | C17: 0.1467 | D17: 146.7 | F17: 0.80093 | G17: 99.90021 | H17: 131.53649
A18: 15 | B18: 98.27 | C18: 0.1467 | D18: 146.7 | F18: 0.85069 | G18: 99.89365 | H18: 132.27243
A19: 16 | B19: 98.13 | C19: 0.1467 | D19: 146.7 | F19: 0.90046 | G19: 99.88705 | H19: 132.98601
A20: 17 | B20: 98.03 | C20: 0.1467 | D20: 146.7 | F20: 0.95023 | G20: 99.88041 | H20: 133.67744
A21: 18 | B21: 97.92 | C21: 0.1467 | D21: 146.7 | F21: 1 | G21: 99.87374 | H21: 134.34694
A22: 19 | B22: 97.82 | C22: 0.1467 | D22: 146.7 | F22: 1.05093 | G22: 99.86688 | H22: 135.00957
A23: 20 | B23: 97.71 | C23: 0.1467 | D23: 146.7 | F23: 1.10069 | G23: 99.86015 | H23: 135.63547
A24: 21 | B24: 97.6 | C24: 0.1467 | D24: 146.7 | F24: 1.15046 | G24: 99.85338 | H24: 136.24025
A25: 22 | B25: 97.48 | C25: 0.1467 | D25: 146.7 | F25: 1.20023 | G25: 99.84659 | H25: 136.82419
A26: 23 | B26: 97.37 | C26: 0.1467 | D26: 146.7 | F26: 1.25 | G26: 99.83976 | H26: 137.38762
A27: 24 | B27: 97.25 | C27: 0.1467 | D27: 146.7 | F27: 1.30093 | G27: 99.83275 | H27: 137.94324
A28: 25 | B28: 97.12 | C28: 0.1467 | D28: 146.7 | F28: 1.35069 | G28: 99.82587 | H28: 138.46615
A29: 26 | B29: 97 | C29: 0.1467 | D29: 146.7 | F29: 1.40046 | G29: 99.81897 | H29: 138.96956
A30: 27 | B30: 96.87 | C30: 0.1467 | D30: 146.7 | F30: 1.45023 | G30: 99.81204 | H30: 139.45383
A31: 28 | B31: 96.73 | C31: 0.1467 | D31: 146.7 | F31: 1.5 | G31: 99.80509 | H31: 139.91932
A32: 29 | B32: 96.6 | C32: 0.1467 | D32: 146.7 | F32: 1.55093 | G32: 99.79795 | H32: 140.37659
A33: 30 | B33: 96.46 | C33: 0.1467 | D33: 146.7 | F33: 1.60069 | G33: 99.79095 | H33: 140.80525
A34: 31 | B34: 96.34 | C34: 0.1467 | D34: 146.7 | F34: 1.65046 | G34: 99.78393 | H34: 141.21629
A35: 32 | B35: 96.21 | C35: 0.1467 | D35: 146.7 | F35: 1.70023 | G35: 99.7769 | H35: 141.6101
A36: 33 | B36: 96.08 | C36: 0.1467 | D36: 146.7 | F36: 1.75 | G36: 99.76984 | H36: 141.98709
A37: 34 | B37: 95.95 | C37: 0.1467 | D37: 146.7 | F37: 1.80093 | G37: 99.7626 | H37: 142.35584
A38: 35 | B38: 95.81 | C38: 0.1467 | D38: 146.7 | F38: 1.85069 | G38: 99.7555 | H38: 142.70001
A39: 36 | B39: 95.67 | C39: 0.1467 | D39: 146.7 | F39: 1.90046 | G39: 99.74839 | H39: 143.02857
A40: 37 | B40: 95.53 | C40: 0.1467 | D40: 146.7 | F40: 1.95023 | G40: 99.74127 | H40: 143.34193
A41: 38 | B41: 95.38 | C41: 0.1467 | D41: 146.7 | F41: 2 | G41: 99.73413 | H41: 143.6405
A42: 39 | B42: 95.23 | C42: 0.1467 | D42: 146.7 | F42: 2.05093 | G42: 99.7268 | H42: 143.93112
A43: 40 | B43: 95.08 | C43: 0.1467 | D43: 146.7 | F43: 2.10069 | G43: 99.71963 | H43: 144.201
A44: 41 | B44: 94.96 | C44: 0.1467 | D44: 146.7 | F44: 2.15046 | G44: 99.71245 | H44: 144.45731
A45: 42 | B45: 94.84 | C45: 0.1467 | D45: 146.7 | F45: 2.20023 | G45: 99.70525 | H45: 144.70046
A46: 43 | B46: 94.72 | C46: 0.1467 | D46: 146.7 | F46: 2.25 | G46: 99.69805 | H46: 144.93084
A47: 44 | B47: 94.6 | C47: 0.1467 | D47: 146.7 | F47: 2.30093 | G47: 99.69066 | H47: 145.15378
A48: 45 | B48: 94.48 | C48: 0.1467 | D48: 146.7 | F48: 2.35069 | G48: 99.68343 | H48: 145.35954
A49: 46 | B49: 94.35 | C49: 0.1467 | D49: 146.7 | F49: 2.40046 | G49: 99.67619 | H49: 145.55372
A50: 47 | B50: 94.23 | C50: 0.1467 | D50: 146.7 | F50: 2.45023 | G50: 99.66894 | H50: 145.73671
A51: 48 | B51: 94.1 | C51: 0.1467 | D51: 146.7 | F51: 2.5 | G51: 99.66168 | H51: 145.90887
A52: 49 | B52: 93.97 | C52: 0.1467 | D52: 146.7 | F52: 2.55093 | G52: 99.65425 | H52: 146.07423
A53: 50 | B53: 93.84 | C53: 0.1467 | D53: 146.7 | F53: 2.60069 | G53: 99.64698 | H53: 146.22564
A54: 51 | B54: 93.71 | C54: 0.1467 | D54: 146.7 | F54: 2.65046 | G54: 99.63969 | H54: 146.36734
A55: 52 | B55: 93.58 | C55: 0.1467 | D55: 146.7 | F55: 2.70023 | G55: 99.63241 | H55: 146.49969
A56: 53 | B56: 93.44 | C56: 0.1467 | D56: 146.7 | F56: 2.75 | G56: 99.62511 | H56: 146.62304
A57: 54 | B57: 93.3 | C57: 0.1467 | D57: 146.7 | F57: 2.80093 | G57: 99.61764 | H57: 146.7403
A58: 55 | B58: 93.15 | C58: 0.1467 | D58: 146.7 | F58: 2.85069 | G58: 99.61034 | H58: 146.84648
A59: 56 | B59: 93.01 | C59: 0.1467 | D59: 146.7 | F59: 2.90046 | G59: 99.60303 | H59: 146.94467
A60: 57 | B60: 92.87 | C60: 0.1467 | D60: 146.7 | F60: 2.95023 | G60: 99.59571 | H60: 147.0352
A61: 58 | B61: 92.72 | C61: 0.1467 | D61: 146.7 | F61: 3 | G61: 99.58839 | H61: 147.11838
A62: 59 | B62: 92.57 | C62: 0.1467 | D62: 146.7 | F62: 3.05093 | G62: 99.5809 | H62: 147.19621
A63: 60 | B63: 92.42 | C63: 0.1467 | D63: 146.7 | F63: 3.10069 | G63: 99.57357 | H63: 147.26546
A64: 61 | B64: 92.27 | C64: 0.1467 | D64: 146.7 | F64: 3.15046 | G64: 99.56624 | H64: 147.32827
A65: 62 | B65: 92.12 | C65: 0.1467 | D65: 146.7 | F65: 3.20023 | G65: 99.5589 | H65: 147.38493
A66: 63 | B66: 91.96 | C66: 0.1467 | D66: 146.7 | F66: 3.25 | G66: 99.55157 | H66: 147.43572
A67: 64 | B67: 91.82 | C67: 0.1467 | D67: 146.7 | F67: 3.30093 | G67: 99.54406 | H67: 147.4819
A68: 65 | B68: 91.7 | C68: 0.1467 | D68: =C68*1000 -> 146.7 | F68: 3.35069 | G68: 99.53672 | H68: 147.52164
A69: 66 | B69: 91.58 | C69: 0.1467 | D69: 146.7 | F69: 3.40046 | G69: 99.52937 | H69: 147.5563
A70: 67 | B70: 91.45 | C70: 0.1467 | D70: 146.7 | F70: 3.45023 | G70: 99.52203 | H70: 147.58614
A71: 68 | B71: 91.33 | C71: 0.1467 | D71: 146.7 | F71: 3.5 | G71: 99.51468 | H71: 147.61141
A72: 69 | B72: 91.2 | C72: 0.1467 | D72: 146.7 | F72: 3.55093 | G72: 99.50717 | H72: 147.63276
A73: 70 | B73: 91.07 | C73: 0.1467 | D73: 146.7 | F73: 3.60069 | G73: 99.49982 | H73: 147.64948
A74: 71 | B74: 90.94 | C74: 0.1467 | D74: 146.7 | F74: 3.65046 | G74: 99.49247 | H74: 147.6623
A75: 72 | B75: 90.81 | C75: 0.1467 | D75: 146.7 | F75: 3.70023 | G75: 99.48512 | H75: 147.67145
A76: 73 | B76: 90.68 | C76: 0.1467 | D76: 146.7 | F76: 3.75 | G76: 99.47777 | H76: 147.67714
A77: 74 | B77: 90.55 | C77: 0.1467 | D77: 146.7 | F77: 3.80093 | G77: 99.47025 | H77: 147.67958
A78: 75 | B78: 90.41 | C78: 0.1467 | D78: 146.7 | F78: 3.85069 | G78: 99.4629 | H78: 147.67887
A79: 76 | B79: 90.27 | C79: 0.1467 | D79: 146.7 | F79: 3.90046 | G79: 99.45555 | H79: 147.67527
A80: 77 | B80: 90.14 | C80: 0.1467 | D80: 146.7 | F80: 3.95023 | G80: 99.4482 | H80: 147.66898
A81: 78 | B81: 89.99 | C81: 0.1467 | D81: 146.7 | F81: 4 | G81: 99.44085 | H81: 147.66017
A82: 79 | B82: 89.85 | C82: 0.1467 | D82: 146.7 | F82: 4.05093 | G82: 99.43333 | H82: 147.64872
A83: 80 | B83: 89.71 | C83: 0.1467 | D83: 146.7 | F83: 4.10069 | G83: 99.42599 | H83: 147.63532
A84: 81 | B84: 89.56 | C84: 0.1467 | D84: 146.7 | F84: 4.15046 | G84: 99.41864 | H84: 147.61988
A85: 82 | B85: 89.41 | C85: 0.1467 | D85: 146.7 | F85: 4.20023 | G85: 99.41129 | H85: 147.60256
A86: 83 | B86: 89.27 | C86: 0.1467 | D86: 146.7 | F86: 4.25 | G86: 99.40395 | H86: 147.58351
A87: 84 | B87: 89.12 | C87: 0.1467 | D87: 146.7 | F87: 4.30093 | G87: 99.39643 | H87: 147.56237
A88: 85 | B88: 88.96 | C88: 0.1467 | D88: 146.7 | F88: 4.35069 | G88: 99.38909 | H88: 147.54023
A89: 86 | B89: 88.81 | C89: 0.1467 | D89: 146.7 | F89: 4.40046 | G89: 99.38175 | H89: 147.51676
A90: 87 | B90: 88.66 | C90: 0.1467 | D90: 146.7 | F90: 4.45023 | G90: 99.3744 | H90: 147.49207
A91: 88 | B91: 88.53 | C91: 0.1467 | D91: 146.7 | F91: 4.5 | G91: 99.36706 | H91: 147.4663
A92: 89 | B92: 88.4 | C92: 0.1467 | D92: 146.7 | F92: 4.55093 | G92: 99.35956 | H92: 147.43892
A93: 90 | B93: 88.27 | C93: 0.1467 | D93: 146.7 | F93: 4.60069 | G93: 99.35222 | H93: 147.41129
A94: 91 | B94: 88.13 | C94: 0.1467 | D94: 146.7 | F94: 4.65046 | G94: 99.34488 | H94: 147.38288
A95: 92 | B95: 88 | C95: 0.1466 | D95: 146.6 | F95: 4.70023 | G95: 99.33755 | H95: 147.35382
A96: 93 | B96: 87.86 | C96: 0.1466 | D96: 146.6 | F96: 4.75 | G96: 99.33022 | H96: 147.32418
A97: 94 | B97: 87.73 | C97: 0.1466 | D97: 146.6 | F97: 4.80093 | G97: 99.32271 | H97: 147.29335
A98: 95 | B98: 87.59 | C98: 0.1466 | D98: 146.6 | F98: 4.85069 | G98: 99.31538 | H98: 147.26282
A99: 96 | B99: 87.45 | C99: 0.1466 | D99: 146.6 | F99: 4.90046 | G99: 99.30806 | H99: 147.23198
A100: 97 | B100: 87.31 | C100: 0.1466 | D100: 146.6 | F100: 4.95023 | G100: 99.30073 | H100: 147.20091
A101: 98 | B101: 87.17 | C101: 0.1466 | D101: 146.6 | F101: 5 | G101: 99.2934 | H101: 147.16967
A102: 99 | B102: 87.03 | C102: 0.1466 | D102: 146.6 | F102: 5.05093 | G102: 99.28591 | H102: 147.1376
A103: 100 | B103: 86.89 | C103: 0.1466 | D103: 146.6 | F103: 5.10069 | G103: 99.27859 | H103: 147.10624
A104: 101 | B104: 86.76 | C104: 0.1465 | D104: 146.5 | F104: 5.15046 | G104: 99.27127 | H104: 147.07491
A105: 102 | B105: 86.62 | C105: 0.1465 | D105: 146.5 | F105: 5.20023 | G105: 99.26395 | H105: 147.04367
A106: 103 | B106: 86.47 | C106: 0.1465 | D106: 146.5 | F106: 5.25 | G106: 99.25663 | H106: 147.01258
A107: 104 | B107: 86.33 | C107: 0.1465 | D107: 146.5 | F107: 5.30093 | G107: 99.24914 | H107: 146.98098
A108: 105 | B108: 86.19 | C108: 0.1465 | D108: 146.5 | F108: 5.35069 | G108: 99.24183 | H108: 146.95035
A109: 106 | B109: 86.04 | C109: 0.1464 | D109: 146.4 | F109: 5.40046 | G109: 99.23452 | H109: 146.92001
A110: 107 | B110: 85.9 | C110: 0.1464 | D110: 146.4 | F110: 5.45023 | G110: 99.22721 | H110: 146.89002
A111: 108 | B111: 85.75 | C111: 0.1464 | D111: 146.4 | F111: 5.5 | G111: 99.2199 | H111: 146.8604
A112: 109 | B112: 85.6 | C112: 0.1464 | D112: 146.4 | F112: 5.55093 | G112: 99.21242 | H112: 146.83053
A113: 110 | B113: 85.45 | C113: 0.1463 | D113: 146.3 | F113: 5.60069 | G113: 99.20511 | H113: 146.80179
A114: 111 | B114: 85.32 | C114: 0.1463 | D114: 146.3 | F114: 5.65046 | G114: 99.19781 | H114: 146.77353
A115: 112 | B115: 85.19 | C115: 0.1463 | D115: 146.3 | F115: 5.70023 | G115: 99.1905 | H115: 146.74579
A116: 113 | B116: 85.06 | C116: 0.1462 | D116: 146.2 | F116: 5.75 | G116: 99.1832 | H116: 146.71859
A117: 114 | B117: 84.93 | C117: 0.1462 | D117: 146.2 | F117: 5.80093 | G117: 99.17573 | H117: 146.69134
A118: 115 | B118: 84.79 | C118: 0.1461 | D118: 146.1 | F118: 5.85069 | G118: 99.16843 | H118: 146.66531
A119: 116 | B119: 84.66 | C119: 0.1461 | D119: 146.1 | F119: 5.90046 | G119: 99.16113 | H119: 146.63989
A120: 117 | B120: 84.52 | C120: 0.146 | D120: 146 | F120: 5.95023 | G120: 99.15383 | H120: 146.61509
A121: 118 | B121: 84.38 | C121: 0.146 | D121: 146 | F121: 6 | G121: 99.14654 | H121: 146.59094
A122: 119 | B122: 84.24 | C122: 0.1459 | D122: 145.9 | F122: 6.05093 | G122: 99.13907 | H122: 146.56691
A123: 120 | B123: 84.1 | C123: 0.1458 | D123: 145.8 | F123: 6.10069 | G123: 99.13178 | H123: 146.54411
A124: 121 | B124: 83.96 | C124: 0.1458 | D124: 145.8 | F124: 6.15046 | G124: 99.12449 | H124: 146.52199
A125: 122 | B125: 83.82 | C125: 0.1457 | D125: 145.7 | F125: 6.20023 | G125: 99.11719 | H125: 146.50056
A126: 123 | B126: 83.68 | C126: 0.1456 | D126: 145.6 | F126: 6.25 | G126: 99.1099 | H126: 146.47984
A127: 124 | B127: 83.53 | C127: 0.1455 | D127: 145.5 | F127: 6.30093 | G127: 99.10244 | H127: 146.45936
A128: 125 | B128: 83.39 | C128: 0.1455 | D128: 145.5 | F128: 6.35069 | G128: 99.09516 | H128: 146.44008
A129: 126 | B129: 83.24 | C129: 0.1454 | D129: 145.4 | F129: 6.40046 | G129: 99.08787 | H129: 146.42151
A130: 127 | B130: 83.09 | C130: 0.1453 | D130: 145.3 | F130: 6.45023 | G130: 99.08058 | H130: 146.40366
A131: 128 | B131: 82.94 | C131: 0.1452 | D131: 145.2 | F131: 6.5 | G131: 99.0733 | H131: 146.38653
A132: 129 | B132: 82.79 | C132: 0.145 | D132: =C132*1000 -> 145 | F132: 6.55093 | G132: 99.06584 | H132: 146.36974
A133: 130 | B133: 82.64 | C133: 0.1449 | D133: 144.9 | F133: 6.60069 | G133: 99.05856 | H133: 146.35407
A134: 131 | B134: 82.49 | C134: 0.1448 | D134: 144.8 | F134: 6.65046 | G134: 99.05127 | H134: 146.33911
A135: 132 | B135: 82.33 | C135: 0.1447 | D135: 144.7 | F135: 6.70023 | G135: 99.04399 | H135: 146.32486
A136: 133 | B136: 82.18 | C136: 0.1445 | D136: 144.5 | F136: 6.75 | G136: 99.03671 | H136: 146.31133
A137: 134 | B137: 82.05 | C137: 0.1444 | D137: 144.4 | F137: 6.80093 | G137: 99.02926 | H137: 146.29821
A138: 135 | B138: 81.92 | C138: 0.1442 | D138: 144.2 | F138: 6.85069 | G138: 99.02198 | H138: 146.28609
A139: 136 | B139: 81.79 | C139: 0.144 | D139: 144 | F139: 6.90046 | G139: 99.0147 | H139: 146.27466
A140: 137 | B140: 81.66 | C140: 0.1439 | D140: 143.9 | F140: 6.95023 | G140: 99.00742 | H140: 146.26392
A141: 138 | B141: 81.53 | C141: 0.1437 | D141: 143.7 | F141: 7 | G141: 99.00014 | H141: 146.25385
A142: 139 | B142: 81.4 | C142: 0.1435 | D142: 143.5 | F142: 7.05093 | G142: 98.99269 | H142: 146.24423
A143: 140 | B143: 81.27 | C143: 0.1433 | D143: 143.3 | F143: 7.10069 | G143: 98.98541 | H143: 146.2355
A144: 141 | B144: 81.13 | C144: 0.143 | D144: 143 | F144: 7.15046 | G144: 98.97813 | H144: 146.22741
A145: 142 | B145: 81 | C145: 0.1428 | D145: 142.8 | F145: 7.20023 | G145: 98.97086 | H145: 146.21996
A146: 143 | B146: 80.86 | C146: 0.1426 | D146: 142.6 | F146: 7.25 | G146: 98.96358 | H146: 146.21312
A147: 144 | B147: 80.73 | C147: 0.1423 | D147: 142.3 | F147: 7.30093 | G147: 98.95613 | H147: 146.20677
A148: 145 | B148: 80.59 | C148: 0.142 | D148: 142 | F148: 7.35069 | G148: 98.94886 | H148: 146.20116
A149: 146 | B149: 80.45 | C149: 0.1417 | D149: 141.7 | F149: 7.40046 | G149: 98.94158 | H149: 146.19614
A150: 147 | B150: 80.31 | C150: 0.1414 | D150: 141.4 | F150: 7.45023 | G150: 98.93431 | H150: 146.19169
A151: 148 | B151: 80.17 | C151: 0.1411 | D151: 141.1 | F151: 7.5 | G151: 98.92703 | H151: 146.18781
A152: 149 | B152: 80.03 | C152: 0.1408 | D152: 140.8 | F152: 7.55093 | G152: 98.91959 | H152: 146.1844
A153: 150 | B153: 79.88 | C153: 0.1404 | D153: 140.4 | F153: 7.60069 | G153: 98.91231 | H153: 146.1816
A154: 151 | B154: 79.74 | C154: 0.1401 | D154: 140.1 | F154: 7.65046 | G154: 98.90504 | H154: 146.17932
A155: 152 | B155: 79.6 | C155: 0.1397 | D155: 139.7 | F155: 7.70023 | G155: 98.89776 | H155: 146.17755
A156: 153 | B156: 79.45 | C156: 0.1393 | D156: 139.3 | F156: 7.75 | G156: 98.89049 | H156: 146.17627
A157: 154 | B157: 79.31 | C157: 0.1389 | D157: 138.9 | F157: 7.80093 | G157: 98.88304 | H157: 146.17544
A158: 155 | B158: 79.16 | C158: 0.1384 | D158: 138.4 | F158: 7.85069 | G158: 98.87577 | H158: 146.1751
A159: 156 | B159: 79.03 | C159: 0.1379 | D159: 137.9 | F159: 7.90046 | G159: 98.86849 | H159: 146.17521
A160: 157 | B160: 78.9 | C160: 0.1375 | D160: 137.5 | F160: 7.95023 | G160: 98.86122 | H160: 146.17575
A161: 158 | B161: 78.77 | C161: 0.1369 | D161: 136.9 | F161: 8 | G161: 98.85394 | H161: 146.1767
A162: 159 | B162: 78.63 | C162: 0.1364 | D162: 136.4 | F162: 8.05093 | G162: 98.8465 | H162: 146.17808
A163: 160 | B163: 78.5 | C163: 0.1359 | D163: 135.9 | F163: 8.10069 | G163: 98.83922 | H163: 146.17983
A164: 161 | B164: 78.36 | C164: 0.1353 | D164: 135.3 | F164: 8.15046 | G164: 98.83195 | H164: 146.18194
A165: 162 | B165: 78.23 | C165: 0.1347 | D165: 134.7 | F165: 8.20023 | G165: 98.82467 | H165: 146.18441
A166: 163 | B166: 78.09 | C166: 0.134 | D166: 134 | F166: 8.25 | G166: 98.8174 | H166: 146.18722
A167: 164 | B167: 77.95 | C167: 0.1333 | D167: 133.3 | F167: 8.30093 | G167: 98.80995 | H167: 146.19043
A168: 165 | B168: 77.81 | C168: 0.1327 | D168: 132.7 | F168: 8.35069 | G168: 98.80268 | H168: 146.19389
A169: 166 | B169: 77.67 | C169: 0.1319 | D169: 131.9 | F169: 8.40046 | G169: 98.7954 | H169: 146.19763
A170: 167 | B170: 77.53 | C170: 0.1312 | D170: 131.2 | F170: 8.45023 | G170: 98.78812 | H170: 146.20166
A171: 168 | B171: 77.4 | C171: 0.1304 | D171: 130.4 | F171: 8.5 | G171: 98.78085 | H171: 146.20596
A172: 169 | B172: 77.26 | C172: 0.1296 | D172: 129.6 | F172: 8.55093 | G172: 98.7734 | H172: 146.21062
A173: 170 | B173: 77.12 | C173: 0.1287 | D173: 128.7 | F173: 8.60069 | G173: 98.76612 | H173: 146.21541
A174: 171 | B174: 76.99 | C174: 0.1278 | D174: 127.8 | F174: 8.65046 | G174: 98.75885 | H174: 146.22043
A175: 172 | B175: 76.85 | C175: 0.1269 | D175: 126.9 | F175: 8.70023 | G175: 98.75157 | H175: 146.22566
A176: 173 | B176: 76.72 | C176: 0.1259 | D176: 125.9 | F176: 8.75 | G176: 98.74429 | H176: 146.23108
A177: 174 | B177: 76.58 | C177: 0.1249 | D177: 124.9 | F177: 8.80093 | G177: 98.73685 | H177: 146.23683
A178: 175 | B178: 76.45 | C178: 0.1239 | D178: 123.9 | F178: 8.85069 | G178: 98.72957 | H178: 146.24261
A179: 176 | B179: 76.31 | C179: 0.1228 | D179: 122.8 | F179: 8.90046 | G179: 98.72229 | H179: 146.24855
A180: 177 | B180: 76.18 | C180: 0.1216 | D180: 121.6 | F180: 8.95023 | G180: 98.71501 | H180: 146.25464
A181: 178 | B181: 76.06 | C181: 0.1205 | D181: 120.5 | F181: 9 | G181: 98.70773 | H181: 146.26087
A182: 179 | B182: 75.93 | C182: 0.1193 | D182: 119.3 | F182: 9.05093 | G182: 98.70028 | H182: 146.26736
A183: 180 | B183: 75.81 | C183: 0.118 | D183: 118 | F183: 9.10069 | G183: 98.693 | H183: 146.27381
A184: 181 | B184: 75.69 | C184: 0.1167 | D184: 116.7 | F184: 9.15046 | G184: 98.68572 | H184: 146.28037
A185: 182 | B185: 75.57 | C185: 0.1153 | D185: 115.3 | F185: 9.20023 | G185: 98.67844 | H185: 146.28701
A186: 183 | B186: 75.45 | C186: 0.1139 | D186: 113.9 | F186: 9.25 | G186: 98.67116 | H186: 146.29372
A187: 184 | B187: 75.33 | C187: 0.1125 | D187: 112.5 | F187: 9.30093 | G187: 98.66371 | H187: 146.30066
A188: 185 | B188: 75.21 | C188: 0.111 | D188: 111 | F188: 9.35069 | G188: 98.65643 | H188: 146.3075
A189: 186 | B189: 75.08 | C189: 0.1095 | D189: 109.5 | F189: 9.40046 | G189: 98.64915 | H189: 146.31438
A190: 187 | B190: 74.96 | C190: 0.1079 | D190: 107.9 | F190: 9.45023 | G190: 98.64187 | H190: 146.32129
A191: 188 | B191: 74.84 | C191: 0.1062 | D191: 106.2 | F191: 9.5 | G191: 98.63458 | H191: 146.32823
A192: 189 | B192: 74.72 | C192: 0.1045 | D192: 104.5 | F192: 9.55093 | G192: 98.62713 | H192: 146.33534
A193: 190 | B193: 74.59 | C193: 0.1027 | D193: 102.7 | F193: 9.60069 | G193: 98.61985 | H193: 146.3423
A194: 191 | B194: 74.47 | C194: 0.1009 | D194: 100.9 | F194: 9.65046 | G194: 98.61257 | H194: 146.34926
A195: 192 | B195: 74.35 | C195: 0.09905 | D195: 99.05 | F195: 9.70023 | G195: 98.60528 | H195: 146.35621
A196: 193 | B196: 74.23 | C196: 0.09712 | D196: =C196*1000 -> 97.12 | F196: 9.75 | G196: 98.598 | H196: 146.36314
A197: 194 | B197: 74.1 | C197: 0.09514 | D197: 95.14 | F197: 9.80093 | G197: 98.59054 | H197: 146.3702
A198: 195 | B198: 73.98 | C198: 0.09309 | D198: 93.09 | F198: 9.85069 | G198: 98.58326 | H198: 146.37706
A199: 196 | B199: 73.86 | C199: 0.09099 | D199: 90.99 | F199: 9.90046 | G199: 98.57597 | H199: 146.38389
A200: 197 | B200: 73.74 | C200: 0.08882 | D200: 88.82 | F200: 9.95023 | G200: 98.56869 | H200: 146.39066
... 4300 more rows

Sheet AP_g_PAM
A1: Result: | B1: Simulated Height | C1: Simulated Surface Flux | D1: Top flux | F1: Time(Days) | G1: Tailings Height(m) | H1: Top flux(mm/day)
A2: Unit: | B2: m | C2: m/day | D2: mm/d | F2: 0.05093 | G2: 99.99623 | H2: 74.16519
A3: 0 | B3: 100 | C3: 0.05997 | D3: =C3*1000 -> 59.97 | F3: 0.10069 | G3: 99.99255 | H3: 73.96819
A4: 1 | B4: 99.95 | C4: 0.05997 | D4: =C4*1000 -> 59.97 | F4: 0.15046 | G4: 99.98887 | H4: 73.77316
A5: 2 | B5: 99.9 | C5: 0.05997 | D5: 59.97 | F5: 0.20023 | G5: 99.98521 | H5: 73.5801
A6: 3 | B6: 99.85 | C6: 0.05997 | D6: 59.97 | F6: 0.25 | G6: 99.98155 | H6: 73.38897
A7: 4 | B7: 99.81 | C7: 0.05997 | D7: 59.97 | F7: 0.30093 | G7: 99.97782 | H7: 73.19539
A8: 5 | B8: 99.76 | C8: 0.05997 | D8: 59.97 | F8: 0.35069 | G8: 99.97418 | H8: 73.00811
A9: 6 | B9: 99.72 | C9: 0.05997 | D9: 59.97 | F9: 0.40046 | G9: 99.97055 | H9: 72.82271
A10: 7 | B10: 99.67 | C10: 0.05997 | D10: 59.97 | F10: 0.45023 | G10: 99.96693 | H10: 72.63916
A11: 8 | B11: 99.62 | C11: 0.05997 | D11: 59.97 | F11: 0.5 | G11: 99.96332 | H11: 72.45744
A12: 9 | B12: 99.57 | C12: 0.05997 | D12: 59.97 | F12: 0.55093 | G12: 99.95963 | H12: 72.27336
A13: 10 | B13: 99.52 | C13: 0.05997 | D13: 59.97 | F13: 0.60069 | G13: 99.95604 | H13: 72.09528
A14: 11 | B14: 99.48 | C14: 0.05997 | D14: 59.97 | F14: 0.65046 | G14: 99.95246 | H14: 71.91898
A15: 12 | B15: 99.43 | C15: 0.05997 | D15: 59.97 | F15: 0.70023 | G15: 99.94888 | H15: 71.74442
A16: 13 | B16: 99.38 | C16: 0.05997 | D16: 59.97 | F16: 0.75 | G16: 99.94532 | H16: 71.5716
A17: 14 | B17: 99.34 | C17: 0.05997 | D17: 59.97 | F17: 0.80093 | G17: 99.94168 | H17: 71.39653
A18: 15 | B18: 99.29 | C18: 0.05997 | D18: 59.97 | F18: 0.85069 | G18: 99.93813 | H18: 71.22716
A19: 16 | B19: 99.24 | C19: 0.05997 | D19: 59.97 | F19: 0.90046 | G19: 99.93459 | H19: 71.05946
A20: 17 | B20: 99.19 | C20: 0.05997 | D20: 59.97 | F20: 0.95023 | G20: 99.93106 | H20: 70.89343
A21: 18 | B21: 99.15 | C21: 0.05997 | D21: 59.97 | F21: 1 | G21: 99.92753 | H21: 70.72903
A22: 19 | B22: 99.1 | C22: 0.05997 | D22: 59.97 | F22: 1.05093 | G22: 99.92393 | H22: 70.5625
A23: 20 | B23: 99.05 | C23: 0.05997 | D23: 59.97 | F23: 1.10069 | G23: 99.92043 | H23: 70.40137
A24: 21 | B24: 99 | C24: 0.05997 | D24: 59.97 | F24: 1.15046 | G24: 99.91693 | H24: 70.24184
A25: 22 | B25: 98.95 | C25: 0.05997 | D25: 59.97 | F25: 1.20023 | G25: 99.91343 | H25: 70.08388
A26: 23 | B26: 98.91 | C26: 0.05997 | D26: 59.97 | F26: 1.25 | G26: 99.90995 | H26: 69.92748
A27: 24 | B27: 98.86 | C27: 0.05997 | D27: 59.97 | F27: 1.30093 | G27: 99.90639 | H27: 69.76904
A28: 25 | B28: 98.81 | C28: 0.05997 | D28: 59.97 | F28: 1.35069 | G28: 99.90292 | H28: 69.61575
A29: 26 | B29: 98.76 | C29: 0.05997 | D29: 59.97 | F29: 1.40046 | G29: 99.89946 | H29: 69.46396
A30: 27 | B30: 98.72 | C30: 0.05997 | D30: 59.97 | F30: 1.45023 | G30: 99.89601 | H30: 69.31367
A31: 28 | B31: 98.67 | C31: 0.05997 | D31: 59.97 | F31: 1.5 | G31: 99.89256 | H31: 69.16486
A32: 29 | B32: 98.62 | C32: 0.05997 | D32: 59.97 | F32: 1.55093 | G32: 99.88905 | H32: 69.01411
A33: 30 | B33: 98.57 | C33: 0.05997 | D33: 59.97 | F33: 1.60069 | G33: 99.88562 | H33: 68.86825
A34: 31 | B34: 98.53 | C34: 0.05997 | D34: 59.97 | F34: 1.65046 | G34: 99.88219 | H34: 68.72382
A35: 32 | B35: 98.48 | C35: 0.05997 | D35: 59.97 | F35: 1.70023 | G35: 99.87878 | H35: 68.58082
A36: 33 | B36: 98.43 | C36: 0.05997 | D36: 59.97 | F36: 1.75 | G36: 99.87537 | H36: 68.43922
A37: 34 | B37: 98.38 | C37: 0.05997 | D37: 59.97 | F37: 1.80093 | G37: 99.87188 | H37: 68.29578
A38: 35 | B38: 98.33 | C38: 0.05997 | D38: 59.97 | F38: 1.85069 | G38: 99.86849 | H38: 68.15699
A39: 36 | B39: 98.29 | C39: 0.05997 | D39: 59.97 | F39: 1.90046 | G39: 99.8651 | H39: 68.01956
A40: 37 | B40: 98.24 | C40: 0.05997 | D40: 59.97 | F40: 1.95023 | G40: 99.86172 | H40: 67.88349
A41: 38 | B41: 98.19 | C41: 0.05997 | D41: 59.97 | F41: 2 | G41: 99.85834 | H41: 67.74876
A42: 39 | B42: 98.14 | C42: 0.05997 | D42: 59.97 | F42: 2.05093 | G42: 99.8549 | H42: 67.61227
A43: 40 | B43: 98.09 | C43: 0.05997 | D43: 59.97 | F43: 2.10069 | G43: 99.85154 | H43: 67.48021
A44: 41 | B44: 98.04 | C44: 0.05997 | D44: 59.97 | F44: 2.15046 | G44: 99.84818 | H44: 67.34945
A45: 42 | B45: 97.99 | C45: 0.05997 | D45: 59.97 | F45: 2.20023 | G45: 99.84483 | H45: 67.21998
A46: 43 | B46: 97.94 | C46: 0.05997 | D46: 59.97 | F46: 2.25 | G46: 99.84149 | H46: 67.09179
A47: 44 | B47: 97.89 | C47: 0.05997 | D47: 59.97 | F47: 2.30093 | G47: 99.83808 | H47: 66.96193
A48: 45 | B48: 97.84 | C48: 0.05997 | D48: 59.97 | F48: 2.35069 | G48: 99.83475 | H48: 66.83628
A49: 46 | B49: 97.79 | C49: 0.05997 | D49: 59.97 | F49: 2.40046 | G49: 99.83142 | H49: 66.71187
A50: 47 | B50: 97.75 | C50: 0.05997 | D50: 59.97 | F50: 2.45023 | G50: 99.82811 | H50: 66.5887
A51: 48 | B51: 97.7 | C51: 0.05997 | D51: 59.97 | F51: 2.5 | G51: 99.8248 | H51: 66.46674
A52: 49 | B52: 97.65 | C52: 0.05997 | D52: 59.97 | F52: 2.55093 | G52: 99.82141 | H52: 66.34319
A53: 50 | B53: 97.6 | C53: 0.05997 | D53: 59.97 | F53: 2.60069 | G53: 99.81811 | H53: 66.22366
A54: 51 | B54: 97.55 | C54: 0.05997 | D54: 59.97 | F54: 2.65046 | G54: 99.81482 | H54: 66.10532
A55: 52 | B55: 97.5 | C55: 0.05997 | D55: 59.97 | F55: 2.70023 | G55: 99.81154 | H55: 65.98814
A56: 53 | B56: 97.45 | C56: 0.05997 | D56: 59.97 | F56: 2.75 | G56: 99.80825 | H56: 65.87213
A57: 54 | B57: 97.4 | C57: 0.05997 | D57: 59.97 | F57: 2.80093 | G57: 99.8049 | H57: 65.75462
A58: 55 | B58: 97.35 | C58: 0.05997 | D58: 59.97 | F58: 2.85069 | G58: 99.80163 | H58: 65.64093
A59: 56 | B59: 97.3 | C59: 0.05997 | D59: 59.97 | F59: 2.90046 | G59: 99.79837 | H59: 65.52837
A60: 57 | B60: 97.25 | C60: 0.05997 | D60: 59.97 | F60: 2.95023 | G60: 99.79511 | H60: 65.41693
A61: 58 | B61: 97.2 | C61: 0.05997 | D61: 59.97 | F61: 3 | G61: 99.79186 | H61: 65.30661
A62: 59 | B62: 97.15 | C62: 0.05997 | D62: 59.97 | F62: 3.05093 | G62: 99.78853 | H62: 65.19485
A63: 60 | B63: 97.11 | C63: 0.05997 | D63: 59.97 | F63: 3.10069 | G63: 99.78529 | H63: 65.08674
A64: 61 | B64: 97.06 | C64: 0.05997 | D64: 59.97 | F64: 3.15046 | G64: 99.78206 | H64: 64.97971
A65: 62 | B65: 97.01 | C65: 0.05997 | D65: 59.97 | F65: 3.20023 | G65: 99.77883 | H65: 64.87376
A66: 63 | B66: 96.97 | C66: 0.05997 | D66: 59.97 | F66: 3.25 | G66: 99.7756 | H66: 64.76886
A67: 64 | B67: 96.92 | C67: 0.05997 | D67: 59.97 | F67: 3.30093 | G67: 99.7723 | H67: 64.66262
A68: 65 | B68: 96.87 | C68: 0.05997 | D68: =C68*1000 -> 59.97 | F68: 3.35069 | G68: 99.76909 | H68: 64.55984
A69: 66 | B69: 96.82 | C69: 0.05997 | D69: 59.97 | F69: 3.40046 | G69: 99.76588 | H69: 64.4581
A70: 67 | B70: 96.78 | C70: 0.05997 | D70: 59.97 | F70: 3.45023 | G70: 99.76267 | H70: 64.35739
A71: 68 | B71: 96.73 | C71: 0.05997 | D71: 59.97 | F71: 3.5 | G71: 99.75947 | H71: 64.25769
A72: 69 | B72: 96.68 | C72: 0.05997 | D72: 59.97 | F72: 3.55093 | G72: 99.7562 | H72: 64.15672
A73: 70 | B73: 96.63 | C73: 0.05997 | D73: 59.97 | F73: 3.60069 | G73: 99.75301 | H73: 64.05906
A74: 71 | B74: 96.58 | C74: 0.05997 | D74: 59.97 | F74: 3.65046 | G74: 99.74983 | H74: 63.96238
A75: 72 | B75: 96.52 | C75: 0.05997 | D75: 59.97 | F75: 3.70023 | G75: 99.74664 | H75: 63.86669
A76: 73 | B76: 96.47 | C76: 0.05997 | D76: 59.97 | F76: 3.75 | G76: 99.74347 | H76: 63.77197
A77: 74 | B77: 96.42 | C77: 0.05997 | D77: 59.97 | F77: 3.80093 | G77: 99.74022 | H77: 63.67604
A78: 75 | B78: 96.37 | C78: 0.05997 | D78: 59.97 | F78: 3.85069 | G78: 99.73706 | H78: 63.58327
A79: 76 | B79: 96.32 | C79: 0.05997 | D79: 59.97 | F79: 3.90046 | G79: 99.73389 | H79: 63.49144
A80: 77 | B80: 96.27 | C80: 0.05997 | D80: 59.97 | F80: 3.95023 | G80: 99.73074 | H80: 63.40056
A81: 78 | B81: 96.22 | C81: 0.05997 | D81: 59.97 | F81: 4 | G81: 99.72758 | H81: 63.31061
A82: 79 | B82: 96.16 | C82: 0.05997 | D82: 59.97 | F82: 4.05093 | G82: 99.72436 | H82: 63.21953
A83: 80 | B83: 96.11 | C83: 0.05997 | D83: 59.97 | F83: 4.10069 | G83: 99.72122 | H83: 63.13144
A84: 81 | B84: 96.05 | C84: 0.05997 | D84: 59.97 | F84: 4.15046 | G84: 99.71808 | H84: 63.04427
A85: 82 | B85: 96 | C85: 0.05997 | D85: 59.97 | F85: 4.20023 | G85: 99.71494 | H85: 62.95799
A86: 83 | B86: 95.94 | C86: 0.05997 | D86: 59.97 | F86: 4.25 | G86: 99.71181 | H86: 62.87262
A87: 84 | B87: 95.89 | C87: 0.05997 | D87: 59.97 | F87: 4.30093 | G87: 99.70861 | H87: 62.78617
A88: 85 | B88: 95.83 | C88: 0.05997 | D88: 59.97 | F88: 4.35069 | G88: 99.70549 | H88: 62.70259
A89: 86 | B89: 95.78 | C89: 0.05997 | D89: 59.97 | F89: 4.40046 | G89: 99.70237 | H89: 62.61987
A90: 87 | B90: 95.72 | C90: 0.05997 | D90: 59.97 | F90: 4.45023 | G90: 99.69926 | H90: 62.53803
A91: 88 | B91: 95.67 | C91: 0.05997 | D91: 59.97 | F91: 4.5 | G91: 99.69615 | H91: 62.45704
A92: 89 | B92: 95.62 | C92: 0.05997 | D92: 59.97 | F92: 4.55093 | G92: 99.69297 | H92: 62.37505
A93: 90 | B93: 95.57 | C93: 0.05997 | D93: 59.97 | F93: 4.60069 | G93: 99.68987 | H93: 62.29578
A94: 91 | B94: 95.52 | C94: 0.05997 | D94: 59.97 | F94: 4.65046 | G94: 99.68677 | H94: 62.21735
A95: 92 | B95: 95.47 | C95: 0.05997 | D95: 59.97 | F95: 4.70023 | G95: 99.68367 | H95: 62.13975
A96: 93 | B96: 95.42 | C96: 0.05997 | D96: 59.97 | F96: 4.75 | G96: 99.68058 | H96: 62.06297
A97: 94 | B97: 95.36 | C97: 0.05997 | D97: 59.97 | F97: 4.80093 | G97: 99.67742 | H97: 61.98526
A98: 95 | B98: 95.31 | C98: 0.05997 | D98: 59.97 | F98: 4.85069 | G98: 99.67434 | H98: 61.91014
A99: 96 | B99: 95.26 | C99: 0.05997 | D99: 59.97 | F99: 4.90046 | G99: 99.67126 | H99: 61.83582
A100: 97 | B100: 95.21 | C100: 0.05997 | D100: 59.97 | F100: 4.95023 | G100: 99.66819 | H100: 61.7623
A101: 98 | B101: 95.16 | C101: 0.05997 | D101: 59.97 | F101: 5 | G101: 99.66511 | H101: 61.68957
A102: 99 | B102: 95.1 | C102: 0.05997 | D102: 59.97 | F102: 5.05093 | G102: 99.66197 | H102: 61.61597
A103: 100 | B103: 95.05 | C103: 0.05997 | D103: 59.97 | F103: 5.10069 | G103: 99.65891 | H103: 61.54483
A104: 101 | B104: 95 | C104: 0.05997 | D104: 59.97 | F104: 5.15046 | G104: 99.65585 | H104: 61.47447
A105: 102 | B105: 94.95 | C105: 0.05997 | D105: 59.97 | F105: 5.20023 | G105: 99.65279 | H105: 61.40487
A106: 103 | B106: 94.89 | C106: 0.05997 | D106: 59.97 | F106: 5.25 | G106: 99.64974 | H106: 61.33604
A107: 104 | B107: 94.84 | C107: 0.05997 | D107: 59.97 | F107: 5.30093 | G107: 99.64661 | H107: 61.26639
A108: 105 | B108: 94.79 | C108: 0.05997 | D108: 59.97 | F108: 5.35069 | G108: 99.64357 | H108: 61.19908
A109: 106 | B109: 94.73 | C109: 0.05997 | D109: 59.97 | F109: 5.40046 | G109: 99.64052 | H109: 61.13251
A110: 107 | B110: 94.68 | C110: 0.05997 | D110: 59.97 | F110: 5.45023 | G110: 99.63748 | H110: 61.06669
A111: 108 | B111: 94.62 | C111: 0.05997 | D111: 59.97 | F111: 5.5 | G111: 99.63444 | H111: 61.0016
A112: 109 | B112: 94.57 | C112: 0.05997 | D112: 59.97 | F112: 5.55093 | G112: 99.63134 | H112: 60.93575
A113: 110 | B113: 94.51 | C113: 0.05997 | D113: 59.97 | F113: 5.60069 | G113: 99.62831 | H113: 60.87212
A114: 111 | B114: 94.46 | C114: 0.05997 | D114: 59.97 | F114: 5.65046 | G114: 99.62528 | H114: 60.80921
A115: 112 | B115: 94.4 | C115: 0.05997 | D115: 59.97 | F115: 5.70023 | G115: 99.62226 | H115: 60.74702
A116: 113 | B116: 94.35 | C116: 0.05997 | D116: 59.97 | F116: 5.75 | G116: 99.61923 | H116: 60.68553
A117: 114 | B117: 94.3 | C117: 0.05997 | D117: 59.97 | F117: 5.80093 | G117: 99.61615 | H117: 60.62333
A118: 115 | B118: 94.25 | C118: 0.05997 | D118: 59.97 | F118: 5.85069 | G118: 99.61313 | H118: 60.56326
A119: 116 | B119: 94.2 | C119: 0.05997 | D119: 59.97 | F119: 5.90046 | G119: 99.61012 | H119: 60.50387
A120: 117 | B120: 94.14 | C120: 0.05997 | D120: 59.97 | F120: 5.95023 | G120: 99.60711 | H120: 60.44516
A121: 118 | B121: 94.09 | C121: 0.05997 | D121: 59.97 | F121: 6 | G121: 99.6041 | H121: 60.38714
A122: 119 | B122: 94.04 | C122: 0.05997 | D122: 59.97 | F122: 6.05093 | G122: 99.60103 | H122: 60.32847
A123: 120 | B123: 93.98 | C123: 0.05997 | D123: 59.97 | F123: 6.10069 | G123: 99.59803 | H123: 60.2718
A124: 121 | B124: 93.93 | C124: 0.05997 | D124: 59.97 | F124: 6.15046 | G124: 99.59503 | H124: 60.2158
A125: 122 | B125: 93.88 | C125: 0.05997 | D125: 59.97 | F125: 6.20023 | G125: 99.59203 | H125: 60.16046
A126: 123 | B126: 93.82 | C126: 0.05997 | D126: 59.97 | F126: 6.25 | G126: 99.58904 | H126: 60.10578
A127: 124 | B127: 93.77 | C127: 0.05997 | D127: 59.97 | F127: 6.30093 | G127: 99.58598 | H127: 60.05049
A128: 125 | B128: 93.71 | C128: 0.05997 | D128: 59.97 | F128: 6.35069 | G128: 99.58299 | H128: 59.99712
A129: 126 | B129: 93.66 | C129: 0.05997 | D129: 59.97 | F129: 6.40046 | G129: 99.58001 | H129: 59.94438
A130: 127 | B130: 93.6 | C130: 0.05996 | D130: 59.96 | F130: 6.45023 | G130: 99.57703 | H130: 59.89228
A131: 128 | B131: 93.55 | C131: 0.05996 | D131: 59.96 | F131: 6.5 | G131: 99.57405 | H131: 59.84081
A132: 129 | B132: 93.49 | C132: 0.05996 | D132: =C132*1000 -> 59.96 | F132: 6.55093 | G132: 99.571 | H132: 59.78879
A133: 130 | B133: 93.44 | C133: 0.05996 | D133: 59.96 | F133: 6.60069 | G133: 99.56803 | H133: 59.73858
A134: 131 | B134: 93.38 | C134: 0.05996 | D134: 59.96 | F134: 6.65046 | G134: 99.56505 | H134: 59.68899
A135: 132 | B135: 93.32 | C135: 0.05996 | D135: 59.96 | F135: 6.70023 | G135: 99.56208 | H135: 59.64001
A136: 133 | B136: 93.27 | C136: 0.05996 | D136: 59.96 | F136: 6.75 | G136: 99.55912 | H136: 59.59164
A137: 134 | B137: 93.22 | C137: 0.05996 | D137: 59.96 | F137: 6.80093 | G137: 99.55608 | H137: 59.54276
A138: 135 | B138: 93.16 | C138: 0.05996 | D138: 59.96 | F138: 6.85069 | G138: 99.55312 | H138: 59.49561
A139: 136 | B139: 93.11 | C139: 0.05996 | D139: 59.96 | F139: 6.90046 | G139: 99.55016 | H139: 59.44904
A140: 137 | B140: 93.05 | C140: 0.05996 | D140: 59.96 | F140: 6.95023 | G140: 99.54721 | H140: 59.40307
A141: 138 | B141: 93 | C141: 0.05996 | D141: 59.96 | F141: 7 | G141: 99.54425 | H141: 59.35768
A142: 139 | B142: 92.95 | C142: 0.05996 | D142: 59.96 | F142: 7.05093 | G142: 99.54123 | H142: 59.31184
A143: 140 | B143: 92.89 | C143: 0.05996 | D143: 59.96 | F143: 7.10069 | G143: 99.53828 | H143: 59.26763
A144: 141 | B144: 92.84 | C144: 0.05996 | D144: 59.96 | F144: 7.15046 | G144: 99.53533 | H144: 59.22399
A145: 142 | B145: 92.79 | C145: 0.05996 | D145: 59.96 | F145: 7.20023 | G145: 99.53238 | H145: 59.18091
A146: 143 | B146: 92.74 | C146: 0.05996 | D146: 59.96 | F146: 7.25 | G146: 99.52944 | H146: 59.1384
A147: 144 | B147: 92.69 | C147: 0.05996 | D147: 59.96 | F147: 7.30093 | G147: 99.52643 | H147: 59.09548
A148: 145 | B148: 92.63 | C148: 0.05996 | D148: 59.96 | F148: 7.35069 | G148: 99.52349 | H148: 59.0541
A149: 146 | B149: 92.58 | C149: 0.05996 | D149: 59.96 | F149: 7.40046 | G149: 99.52055 | H149: 59.01328
A150: 147 | B150: 92.53 | C150: 0.05996 | D150: 59.96 | F150: 7.45023 | G150: 99.51761 | H150: 58.973
A151: 148 | B151: 92.48 | C151: 0.05996 | D151: 59.96 | F151: 7.5 | G151: 99.51468 | H151: 58.93326
A152: 149 | B152: 92.42 | C152: 0.05996 | D152: 59.96 | F152: 7.55093 | G152: 99.51168 | H152: 58.89316
A153: 150 | B153: 92.37 | C153: 0.05996 | D153: 59.96 | F153: 7.60069 | G153: 99.50875 | H153: 58.85452
A154: 151 | B154: 92.31 | C154: 0.05996 | D154: 59.96 | F154: 7.65046 | G154: 99.50582 | H154: 58.8164
A155: 152 | B155: 92.26 | C155: 0.05996 | D155: 59.96 | F155: 7.70023 | G155: 99.5029 | H155: 58.77882
A156: 153 | B156: 92.21 | C156: 0.05996 | D156: 59.96 | F156: 7.75 | G156: 99.49997 | H156: 58.74175
A157: 154 | B157: 92.15 | C157: 0.05996 | D157: 59.96 | F157: 7.80093 | G157: 99.49698 | H157: 58.70437
A158: 155 | B158: 92.1 | C158: 0.05996 | D158: 59.96 | F158: 7.85069 | G158: 99.49406 | H158: 58.66836
A159: 156 | B159: 92.05 | C159: 0.05996 | D159: 59.96 | F159: 7.90046 | G159: 99.49114 | H159: 58.63286
A160: 157 | B160: 91.99 | C160: 0.05996 | D160: 59.96 | F160: 7.95023 | G160: 99.48822 | H160: 58.59787
A161: 158 | B161: 91.94 | C161: 0.05996 | D161: 59.96 | F161: 8 | G161: 99.48531 | H161: 58.56339
A162: 159 | B162: 91.88 | C162: 0.05996 | D162: 59.96 | F162: 8.05093 | G162: 99.48233 | H162: 58.52862
A163: 160 | B163: 91.83 | C163: 0.05996 | D163: 59.96 | F163: 8.10069 | G163: 99.47941 | H163: 58.49515
A164: 161 | B164: 91.77 | C164: 0.05996 | D164: 59.96 | F164: 8.15046 | G164: 99.4765 | H164: 58.46218
A165: 162 | B165: 91.72 | C165: 0.05996 | D165: 59.96 | F165: 8.20023 | G165: 99.4736 | H165: 58.42969
A166: 163 | B166: 91.66 | C166: 0.05996 | D166: 59.96 | F166: 8.25 | G166: 99.47069 | H166: 58.39769
A167: 164 | B167: 91.6 | C167: 0.05996 | D167: 59.96 | F167: 8.30093 | G167: 99.46772 | H167: 58.36545
A168: 165 | B168: 91.55 | C168: 0.05996 | D168: 59.96 | F168: 8.35069 | G168: 99.46481 | H168: 58.33443
A169: 166 | B169: 91.49 | C169: 0.05996 | D169: 59.96 | F169: 8.40046 | G169: 99.46191 | H169: 58.30389
A170: 167 | B170: 91.44 | C170: 0.05996 | D170: 59.96 | F170: 8.45023 | G170: 99.45901 | H170: 58.27381
A171: 168 | B171: 91.38 | C171: 0.05996 | D171: 59.96 | F171: 8.5 | G171: 99.45611 | H171: 58.24421
A172: 169 | B172: 91.32 | C172: 0.05996 | D172: 59.96 | F172: 8.55093 | G172: 99.45314 | H172: 58.21441
A173: 170 | B173: 91.27 | C173: 0.05996 | D173: 59.96 | F173: 8.60069 | G173: 99.45025 | H173: 58.18574
A174: 171 | B174: 91.21 | C174: 0.05996 | D174: 59.96 | F174: 8.65046 | G174: 99.44735 | H174: 58.15754
A175: 172 | B175: 91.16 | C175: 0.05995 | D175: 59.95 | F175: 8.70023 | G175: 99.44446 | H175: 58.1298
A176: 173 | B176: 91.1 | C176: 0.05995 | D176: 59.95 | F176: 8.75 | G176: 99.44157 | H176: 58.1025
A177: 174 | B177: 91.04 | C177: 0.05995 | D177: 59.95 | F177: 8.80093 | G177: 99.43861 | H177: 58.07504
A178: 175 | B178: 90.99 | C178: 0.05995 | D178: 59.95 | F178: 8.85069 | G178: 99.43572 | H178: 58.04866
A179: 176 | B179: 90.93 | C179: 0.05995 | D179: 59.95 | F179: 8.90046 | G179: 99.43283 | H179: 58.02271
A180: 177 | B180: 90.87 | C180: 0.05995 | D180: 59.95 | F180: 8.95023 | G180: 99.42994 | H180: 57.99721
A181: 178 | B181: 90.81 | C181: 0.05995 | D181: 59.95 | F181: 9 | G181: 99.42706 | H181: 57.97214
A182: 179 | B182: 90.76 | C182: 0.05995 | D182: 59.95 | F182: 9.05093 | G182: 99.4241 | H182: 57.94694
A183: 180 | B183: 90.7 | C183: 0.05995 | D183: 59.95 | F183: 9.10069 | G183: 99.42122 | H183: 57.92274
A184: 181 | B184: 90.64 | C184: 0.05995 | D184: 59.95 | F184: 9.15046 | G184: 99.41834 | H184: 57.89898
A185: 182 | B185: 90.58 | C185: 0.05995 | D185: 59.95 | F185: 9.20023 | G185: 99.41546 | H185: 57.87563
A186: 183 | B186: 90.52 | C186: 0.05995 | D186: 59.95 | F186: 9.25 | G186: 99.41258 | H186: 57.85271
A187: 184 | B187: 90.46 | C187: 0.05994 | D187: 59.94 | F187: 9.30093 | G187: 99.40963 | H187: 57.82968
A188: 185 | B188: 90.41 | C188: 0.05994 | D188: 59.94 | F188: 9.35069 | G188: 99.40676 | H188: 57.8076
A189: 186 | B189: 90.35 | C189: 0.05994 | D189: 59.94 | F189: 9.40046 | G189: 99.40388 | H189: 57.78592
A190: 187 | B190: 90.29 | C190: 0.05994 | D190: 59.94 | F190: 9.45023 | G190: 99.401 | H190: 57.76466
A191: 188 | B191: 90.24 | C191: 0.05994 | D191: 59.94 | F191: 9.5 | G191: 99.39813 | H191: 57.7438
A192: 189 | B192: 90.18 | C192: 0.05994 | D192: 59.94 | F192: 9.55093 | G192: 99.39519 | H192: 57.72287
A193: 190 | B193: 90.13 | C193: 0.05994 | D193: 59.94 | F193: 9.60069 | G193: 99.39232 | H193: 57.70282
A194: 191 | B194: 90.08 | C194: 0.05994 | D194: 59.94 | F194: 9.65046 | G194: 99.38945 | H194: 57.68316
A195: 192 | B195: 90.02 | C195: 0.05994 | D195: 59.94 | F195: 9.70023 | G195: 99.38658 | H195: 57.6639
A196: 193 | B196: 89.97 | C196: 0.05993 | D196: =C196*1000 -> 59.93 | F196: 9.75 | G196: 99.38371 | H196: 57.64502
A197: 194 | B197: 89.91 | C197: 0.05993 | D197: 59.93 | F197: 9.80093 | G197: 99.38077 | H197: 57.62611
A198: 195 | B198: 89.86 | C198: 0.05993 | D198: 59.93 | F198: 9.85069 | G198: 99.3779 | H198: 57.60802
A199: 196 | B199: 89.8 | C199: 0.05993 | D199: 59.93 | F199: 9.90046 | G199: 99.37504 | H199: 57.5903
A200: 197 | B200: 89.75 | C200: 0.05993 | D200: 59.93 | F200: 9.95023 | G200: 99.37217 | H200: 57.57296
... 4300 more rows
